Workbook

Sheet Forside
A1: Sjekkliste årsberetning
A2: Selskap
A3: År | B3: 2024
A4: Utfylt
A5: Review
B8: Ubesvart | C8: Ja | D8: Nei | E8: IA | F8: Sum
A9: Årsberetning | B9: =F9-SUM(C9:E9) -> 131 | C9: =_xlfn.AGGREGATE(3,5,'Sjekkliste for utfylling'!E8:E256) -> 0 | D9: =_xlfn.AGGREGATE(3,5,'Sjekkliste for utfylling'!F8:F256) -> 0 | E9: =_xlfn.AGGREGATE(3,5,'Sjekkliste for utfylling'!G8:G256)+(F9-_xlfn.AGGREGATE(2,5,'Sjekkliste for utfylling'!A8:A256)) -> 0 | F9: =_xlfn.AGGREGATE(2,4,'Sjekkliste for utfylling'!A8:A256) -> 131
A11: Ønsker du å bruke full sjekkliste, eller kun å kontrollere endringer i regelverk fra tidligere år, og eventuelle utvalgte risikoområder i virksomheten?
A13: Veiledning for bruk av full sjekkliste: Sjekklisten kan spisses sånn at den kun omfatter forhold som er relevante for den aktuelle virksomheten.
A15: Full sjekkliste
A16: Er følgende aktuelt for foretaket:
A17: Resultatdisponering og utbyttegrunnlag | C17: Ja | E17: Nei
A18: Regnskapspliktige som er utstedere med verdipapirer notert på regulert marked | C18: Ja | E18: Nei
A19: Bærekraftsrapportering | C19: Ja | E19: Nei
A20: Redegjørelse etter åpenhetsloven | C20: Ja | E20: Nei
A21: Redegjørelse for foretaksstyring | C21: Ja | E21: Nei
A22: Rapportering om betalinger til myndigheter m.v. (land-for-land rapportering) | C22: Ja | E22: Nei
A24: Er foretaket omfattet av disse bransjereglene:
A25: Bank, finansieringsforetak med mer | C25: Ja | E25: Nei
A26: Livsforsikringsforetak eller skadeforsikringsforetak | C26: Ja | E26: Nei
A27: Verdipapirfond | C27: Ja | E27: Nei
A28: Verdipapirforetak | C28: Ja | E28: Nei
A29: Pensjonsforetak | C29: Ja | E29: Nei
A30: Borettslag | C30: Ja | E30: Nei
A34: Veiledning for bruk av endringssjekkliste: Endringssjekklisten inneholder de punkter hvor det har vært lovendringer inneværende år. Ved avkryssing i listen nedenfor velger du i tillegg de deler av sjekklisten som er relevante for det temaet du krysser av for. Du får da opp alle sjekkpunkter i regelverket som er aktuelle for det temaet du har valgt.
A36: Endringssjekkliste
A37: Er policy for bruk av endringssjekkliste fulgt? | C37: Ja | E37: Nei
A39: Angi siste år for gjennomgang av full sjekkliste
A41: Har det vært endringer i foretaket, eller er det spesifikke områder som kan ha økt risiko for feil, som man ønsker å kontrollere?
A44: Resultatdisponering og utbyttegrunnlag | C44: Ja | E44: Nei
A45: Regnskapspliktige som er utstedere med verdipapirer notert på regulert marked | C45: Ja | E45: Nei
A46: Bærekraftsrapportering | C46: Ja | E46: Nei
A47: Redegjørelse etter åpenhetsloven | C47: Ja | E47: Nei
A48: Redegjørelse for foretaksstyring | C48: Ja | E48: Nei
A49: Rapportering om betalinger til myndigheter m.v. (land-for-land rapportering) | C49: Ja | E49: Nei
A50: Bank, finansieringsforetak med mer | C50: Ja | E50: Nei
A51: Livsforsikringsforetak eller skadeforsikringsforetak | C51: Ja | E51: Nei
A52: Verdipapirfond | C52: Ja | E52: Nei
A53: Verdipapirforetak | C53: Ja | E53: Nei
A54: Pensjonskasse | C54: Ja | E54: Nei
A55: Borettslag | C55: Ja | E55: Nei

Sheet sjekkliste_matrix (hidden)
A1: F0 | B1: E0 | C1: F1 | D1: F2 | E1: F3 | F1: F4 | G1: F5 | H1: F6 | I1: F7 | J1: F8 | K1: F9 | L1: F10 | M1: F11 | N1: F12 | O1: E1 | P1: E2 | Q1: E3 | R1: E4 | S1: E5 | T1: E6 | U1: E7 | V1: E8 | W1: E9 | X1: E10 | Y1: E11 | Z1: E12 | AA1: E13 | AB1: E14
A2: x | B2: x | C2: x | D2: x | E2: x | F2: x | G2: x | H2: x | I2: x | J2: x | K2: x | L2: x | M2: x | N2: x | O2: x | P2: x | Q2: x | R2: x | S2: x | T2: x | U2: x | V2: x | W2: x | X2: x | Y2: x | Z2: x | AA2: x | AB2: x
A3: x | B3: x | C3: x | D3: x | E3: x | F3: x | G3: x | H3: x | I3: x | J3: x | K3: x | L3: x | M3: x | N3: x | O3: x | P3: x | Q3: x | R3: x | S3: x | T3: x | U3: x | V3: x | W3: x | X3: x | Y3: x | Z3: x | AA3: x | AB3: x
A4: x | B4: x | C4: x | D4: x | E4: x | F4: x | G4: x | H4: x | I4: x | J4: x | K4: x | L4: x | M4: x | N4: x | O4: x | P4: x | Q4: x | R4: x | S4: x | T4: x | U4: x | V4: x | W4: x | X4: x | Y4: x | Z4: x | AA4: x | AB4: x
A5: x | B5: x | C5: x | D5: x | E5: x | F5: x | G5: x | H5: x | I5: x | J5: x | K5: x | L5: x | M5: x | N5: x | O5: x | P5: x | Q5: x | R5: x | S5: x | T5: x | U5: x | V5: x | W5: x | X5: x | Y5: x | Z5: x | AA5: x | AB5: x
A6: x | B6: x | C6: x | D6: x | E6: x | F6: x | G6: x | H6: x | I6: x | J6: x | K6: x | L6: x | M6: x | N6: x | O6: x | P6: x | Q6: x | R6: x | S6: x | T6: x | U6: x | V6: x | W6: x | X6: x | Y6: x | Z6: x | AA6: x | AB6: x
A7: x | B7: x | C7: x | D7: x | E7: x | F7: x | G7: x | H7: x | I7: x | J7: x | K7: x | L7: x | M7: x | N7: x | O7: x | P7: x | Q7: x | R7: x | S7: x | T7: x | U7: x | V7: x | W7: x | X7: x | Y7: x | Z7: x | AA7: x | AB7: x
A8: x | B8: x | C8: x | D8: x | E8: x | F8: x | G8: x | H8: x | I8: x | J8: x | K8: x | L8: x | M8: x | N8: x | O8: x | P8: x | Q8: x | R8: x | S8: x | T8: x | U8: x | V8: x | W8: x | X8: x | Y8: x | Z8: x | AA8: x | AB8: x
A9: x | B9: x | C9: x | D9: x | E9: x | F9: x | G9: x | H9: x | I9: x | J9: x | K9: x | L9: x | M9: x | N9: x | O9: x | P9: x | Q9: x | R9: x | S9: x | T9: x | U9: x | V9: x | W9: x | X9: x | Y9: x | Z9: x | AA9: x | AB9: x
A10: x | B10: x | C10: x | D10: x | E10: x | F10: x | G10: x | H10: x | I10: x | J10: x | K10: x | L10: x | M10: x | N10: x | O10: x | P10: x | Q10: x | R10: x | S10: x | T10: x | U10: x | V10: x | W10: x | X10: x | Y10: x | Z10: x | AA10: x | AB10: x
A11: x | B11: x | C11: x | D11: x | E11: x | F11: x | G11: x | H11: x | I11: x | J11: x | K11: x | L11: x | M11: x | N11: x | O11: x | P11: x | Q11: x | R11: x | S11: x | T11: x | U11: x | V11: x | W11: x | X11: x | Y11: x | Z11: x | AA11: x | AB11: x
A12: x | B12: x | C12: x | D12: x | E12: x | F12: x | G12: x | H12: x | I12: x | J12: x | K12: x | L12: x | M12: x | N12: x | O12: x | P12: x | Q12: x | R12: x | S12: x | T12: x | U12: x | V12: x | W12: x | X12: x | Y12: x | Z12: x | AA12: x | AB12: x
A13: x | C13: x | D13: x | E13: x | F13: x | G13: x | H13: x | I13: x | J13: x | K13: x | L13: x | M13: x | N13: x
A14: x | C14: x | D14: x | E14: x | F14: x | G14: x | H14: x | I14: x | J14: x | K14: x | L14: x | M14: x | N14: x
A15: x | C15: x | D15: x | E15: x | F15: x | G15: x | H15: x | I15: x | J15: x | K15: x | L15: x | M15: x | N15: x
A16: x | C16: x | D16: x | E16: x | F16: x | G16: x | H16: x | I16: x | J16: x | K16: x | L16: x | M16: x | N16: x
A17: x | C17: x | D17: x | E17: x | F17: x | G17: x | H17: x | I17: x | J17: x | K17: x | L17: x | M17: x | N17: x
A18: x | C18: x | D18: x | E18: x | F18: x | G18: x | H18: x | I18: x | J18: x | K18: x | L18: x | M18: x | N18: x
A19: x | B19: x | C19: x | D19: x | E19: x | F19: x | G19: x | H19: x | I19: x | J19: x | K19: x | L19: x | M19: x | N19: x | O19: x | P19: x | Q19: x | R19: x | S19: x | T19: x | U19: x | V19: x | W19: x | X19: x | Y19: x | Z19: x | AA19: x | AB19: x
A20: x | C20: x | D20: x | E20: x | F20: x | G20: x | H20: x | I20: x | J20: x | K20: x | L20: x | M20: x | N20: x
A21: x | C21: x | D21: x | E21: x | F21: x | G21: x | H21: x | I21: x | J21: x | K21: x | L21: x | M21: x | N21: x
A22: x | C22: x | D22: x | E22: x | F22: x | G22: x | H22: x | I22: x | J22: x | K22: x | L22: x | M22: x | N22: x
A23: x | C23: x | D23: x | E23: x | F23: x | G23: x | H23: x | I23: x | J23: x | K23: x | L23: x | M23: x | N23: x | P23: x
A24: x | C24: x | D24: x | E24: x | F24: x | G24: x | H24: x | I24: x | J24: x | K24: x | L24: x | M24: x | N24: x
A25: x | C25: x | D25: x | E25: x | F25: x | G25: x | H25: x | I25: x | J25: x | K25: x | L25: x | M25: x | N25: x
A26: x | C26: x | D26: x | E26: x | F26: x | G26: x | H26: x | I26: x | J26: x | K26: x | L26: x | M26: x | N26: x | P26: x
A27: x | C27: x | D27: x | E27: x | F27: x | G27: x | H27: x | I27: x | J27: x | K27: x | L27: x | M27: x | N27: x
A28: x | C28: x | D28: x | E28: x | F28: x | G28: x | H28: x | I28: x | J28: x | K28: x | L28: x | M28: x | N28: x
A29: x | B29: x | C29: x | D29: x | E29: x | F29: x | G29: x | H29: x | I29: x | J29: x | K29: x | L29: x | M29: x | N29: x | O29: x | P29: x | Q29: x | R29: x | S29: x | T29: x | U29: x | V29: x | W29: x | X29: x | Y29: x | Z29: x | AA29: x | AB29: x
A30: x | B30: x | C30: x | D30: x | E30: x | F30: x | G30: x | H30: x | I30: x | J30: x | K30: x | L30: x | M30: x | N30: x | O30: x | P30: x | Q30: x | R30: x | S30: x | T30: x | U30: x | V30: x | W30: x | X30: x | Y30: x | Z30: x | AA30: x | AB30: x
A31: x | B31: x | C31: x | D31: x | E31: x | F31: x | G31: x | H31: x | I31: x | J31: x | K31: x | L31: x | M31: x | N31: x | O31: x | P31: x | Q31: x | R31: x | S31: x | T31: x | U31: x | V31: x | W31: x | X31: x | Y31: x | Z31: x | AA31: x | AB31: x
A32: x | C32: x | D32: x | E32: x | F32: x | G32: x | H32: x | I32: x | J32: x | K32: x | L32: x | M32: x | N32: x
A33: x | C33: x | D33: x | E33: x | F33: x | G33: x | H33: x | I33: x | J33: x | K33: x | L33: x | M33: x | N33: x
A34: x | C34: x | D34: x | E34: x | F34: x | G34: x | H34: x | I34: x | J34: x | K34: x | L34: x | M34: x | N34: x
A35: x | C35: x | D35: x | E35: x | F35: x | G35: x | H35: x | I35: x | J35: x | K35: x | L35: x | M35: x | N35: x
A36: x | C36: x | D36: x | E36: x | F36: x | G36: x | H36: x | I36: x | J36: x | K36: x | L36: x | M36: x | N36: x
A37: x | B37: x | C37: x | D37: x | E37: x | F37: x | G37: x | H37: x | I37: x | J37: x | K37: x | L37: x | M37: x | N37: x | O37: x | P37: x | Q37: x | R37: x | S37: x | T37: x | U37: x | V37: x | W37: x | X37: x | Y37: x | Z37: x | AA37: x | AB37: x
A38: x | B38: x | C38: x | D38: x | E38: x | F38: x | G38: x | H38: x | I38: x | J38: x | K38: x | L38: x | M38: x | N38: x | O38: x | P38: x | Q38: x | R38: x | S38: x | T38: x | U38: x | V38: x | W38: x | X38: x | Y38: x | Z38: x | AA38: x | AB38: x
A39: x | C39: x | D39: x | E39: x | F39: x | G39: x | H39: x | I39: x | J39: x | K39: x | L39: x | M39: x | N39: x | P39: x
A40: x | C40: x | D40: x | E40: x | F40: x | G40: x | H40: x | I40: x | J40: x | K40: x | L40: x | M40: x | N40: x | P40: x
A41: x | C41: x | D41: x | E41: x | F41: x | G41: x | H41: x | I41: x | J41: x | K41: x | L41: x | M41: x | N41: x | P41: x
A42: x | C42: x | D42: x | E42: x | F42: x | G42: x | H42: x | I42: x | J42: x | K42: x | L42: x | M42: x | N42: x | P42: x
A43: x | C43: x | D43: x | E43: x | F43: x | G43: x | H43: x | I43: x | J43: x | K43: x | L43: x | M43: x | N43: x | P43: x
A44: x | C44: x | D44: x | E44: x | F44: x | G44: x | H44: x | I44: x | J44: x | K44: x | L44: x | M44: x | N44: x | P44: x
A45: x | C45: x | D45: x | E45: x | F45: x | G45: x | H45: x | I45: x | J45: x | K45: x | L45: x | M45: x | N45: x | P45: x
A46: x | C46: x | D46: x | E46: x | F46: x | G46: x | H46: x | I46: x | J46: x | K46: x | L46: x | M46: x | N46: x | P46: x
A47: x | C47: x | D47: x | E47: x | F47: x | G47: x | H47: x | I47: x | J47: x | K47: x | L47: x | M47: x | N47: x | P47: x
A48: x | C48: x | D48: x | E48: x | F48: x | G48: x | H48: x | I48: x | J48: x | K48: x | L48: x | M48: x | N48: x | P48: x
A49: x | C49: x | D49: x | E49: x | F49: x | G49: x | H49: x | I49: x | J49: x | K49: x | L49: x | M49: x | N49: x | P49: x
A50: x | C50: x | D50: x | E50: x | F50: x | G50: x | H50: x | I50: x | J50: x | K50: x | L50: x | M50: x | N50: x | P50: x
A51: x | C51: x | D51: x | E51: x | F51: x | G51: x | H51: x | I51: x | J51: x | K51: x | L51: x | M51: x | N51: x | P51: x
A52: x | C52: x | D52: x | E52: x | F52: x | G52: x | H52: x | I52: x | J52: x | K52: x | L52: x | M52: x | N52: x | P52: x
A53: x | C53: x | D53: x | E53: x | F53: x | G53: x | H53: x | I53: x | J53: x | K53: x | L53: x | M53: x | N53: x | P53: x
A54: x | C54: x | D54: x | E54: x | F54: x | G54: x | H54: x | I54: x | J54: x | K54: x | L54: x | M54: x | N54: x | P54: x
A55: x | C55: x | D55: x | E55: x | F55: x | G55: x | H55: x | I55: x | J55: x | K55: x | L55: x | M55: x | N55: x | P55: x
A56: x | C56: x | D56: x | E56: x | F56: x | G56: x | H56: x | I56: x | J56: x | K56: x | L56: x | M56: x | N56: x | P56: x
A57: x | C57: x | D57: x | E57: x | F57: x | G57: x | H57: x | I57: x | J57: x | K57: x | L57: x | M57: x | N57: x | P57: x
A58: x | C58: x | D58: x | E58: x | F58: x | G58: x | H58: x | I58: x | J58: x | K58: x | L58: x | M58: x | N58: x | P58: x
A59: x | C59: x | D59: x | E59: x | F59: x | G59: x | H59: x | I59: x | J59: x | K59: x | L59: x | M59: x | N59: x | P59: x
A60: x | C60: x | D60: x | E60: x | F60: x | G60: x | H60: x | I60: x | J60: x | K60: x | L60: x | M60: x | N60: x | P60: x
A61: x | C61: x | D61: x | E61: x | F61: x | G61: x | H61: x | I61: x | J61: x | K61: x | L61: x | M61: x | N61: x | P61: x
A62: x | C62: x | D62: x | E62: x | F62: x | G62: x | H62: x | I62: x | J62: x | K62: x | L62: x | M62: x | N62: x | P62: x
A63: x | C63: x | D63: x | E63: x | F63: x | G63: x | H63: x | I63: x | J63: x | K63: x | L63: x | M63: x | N63: x | P63: x
A64: x | C64: x | D64: x | E64: x | F64: x | G64: x | H64: x | I64: x | J64: x | K64: x | L64: x | M64: x | N64: x | P64: x
A65: x | C65: x | D65: x | E65: x | F65: x | G65: x | H65: x | I65: x | J65: x | K65: x | L65: x | M65: x | N65: x | P65: x
A66: x | C66: x | D66: x | E66: x | F66: x | G66: x | H66: x | I66: x | J66: x | K66: x | L66: x | M66: x | N66: x | P66: x
A67: x | C67: x | D67: x | E67: x | F67: x | G67: x | H67: x | I67: x | J67: x | K67: x | L67: x | M67: x | N67: x | P67: x
A68: x | C68: x | D68: x | E68: x | F68: x | G68: x | H68: x | I68: x | J68: x | K68: x | L68: x | M68: x | N68: x | P68: x
A69: x | B69: x | C69: x | D69: x | E69: x | F69: x | G69: x | H69: x | I69: x | J69: x | K69: x | L69: x | M69: x | N69: x | O69: x | P69: x | Q69: x | R69: x | S69: x | T69: x | U69: x | V69: x | W69: x | X69: x | Y69: x | Z69: x | AA69: x | AB69: x
A70: x | B70: x | C70: x | D70: x | E70: x | F70: x | G70: x | H70: x | I70: x | J70: x | K70: x | L70: x | M70: x | N70: x | O70: x | P70: x | Q70: x | R70: x | S70: x | T70: x | U70: x | V70: x | W70: x | X70: x | Y70: x | Z70: x | AA70: x | AB70: x
A71: x | C71: x | D71: x | E71: x | F71: x | G71: x | H71: x | I71: x | J71: x | K71: x | L71: x | M71: x | N71: x
A72: x | C72: x | D72: x | E72: x | F72: x | G72: x | H72: x | I72: x | J72: x | K72: x | L72: x | M72: x | N72: x
A73: x | C73: x | D73: x | E73: x | F73: x | G73: x | H73: x | I73: x | J73: x | K73: x | L73: x | M73: x | N73: x
A74: x | C74: x | D74: x | E74: x | F74: x | G74: x | H74: x | I74: x | J74: x | K74: x | L74: x | M74: x | N74: x
A75: x | C75: x | D75: x | E75: x | F75: x | G75: x | H75: x | I75: x | J75: x | K75: x | L75: x | M75: x | N75: x
A76: x | C76: x | D76: x | E76: x | F76: x | G76: x | H76: x | I76: x | J76: x | K76: x | L76: x | M76: x | N76: x
A77: x | C77: x | D77: x | E77: x | F77: x | G77: x | H77: x | I77: x | J77: x | K77: x | L77: x | M77: x | N77: x
A78: x | C78: x | D78: x | E78: x | F78: x | G78: x | H78: x | I78: x | J78: x | K78: x | L78: x | M78: x | N78: x
A79: x | C79: x | D79: x | E79: x | F79: x | G79: x | H79: x | I79: x | J79: x | K79: x | L79: x | M79: x | N79: x
A80: x | C80: x | D80: x | E80: x | F80: x | G80: x | H80: x | I80: x | J80: x | K80: x | L80: x | M80: x | N80: x
A81: x | C81: x | D81: x | E81: x | F81: x | G81: x | H81: x | I81: x | J81: x | K81: x | L81: x | M81: x | N81: x
A82: x | B82: x | C82: x | D82: x | E82: x | F82: x | G82: x | H82: x | I82: x | J82: x | K82: x | L82: x | M82: x | N82: x | O82: x | P82: x | Q82: x | R82: x | S82: x | T82: x | U82: x | V82: x | W82: x | X82: x | Y82: x | Z82: x | AA82: x | AB82: x
A83: x | B83: x | C83: x | D83: x | E83: x | F83: x | G83: x | H83: x | I83: x | J83: x | K83: x | L83: x | M83: x | N83: x | O83: x | P83: x | Q83: x | R83: x | S83: x | T83: x | U83: x | V83: x | W83: x | X83: x | Y83: x | Z83: x | AA83: x | AB83: x
A84: x | C84: x | D84: x | E84: x | F84: x | G84: x | H84: x | I84: x | J84: x | K84: x | L84: x | M84: x | N84: x
A85: x | C85: x | D85: x | E85: x | F85: x | G85: x | H85: x | I85: x | J85: x | K85: x | L85: x | M85: x | N85: x
A86: x | C86: x | D86: x | E86: x | F86: x | G86: x | H86: x | I86: x | J86: x | K86: x | L86: x | M86: x | N86: x
A87: x | C87: x | D87: x | E87: x | F87: x | G87: x | H87: x | I87: x | J87: x | K87: x | L87: x | M87: x | N87: x
A88: x | C88: x | D88: x | E88: x | F88: x | G88: x | H88: x | I88: x | J88: x | K88: x | L88: x | M88: x | N88: x
A89: x | B89: x | C89: x | D89: x | E89: x | F89: x | G89: x | H89: x | I89: x | J89: x | K89: x | L89: x | M89: x | N89: x
A90: x | B90: x | C90: x | D90: x | E90: x | F90: x | G90: x | H90: x | I90: x | J90: x | K90: x | L90: x | M90: x | N90: x
A91: x | B91: x | C91: x | D91: x | E91: x | F91: x | G91: x | H91: x | I91: x | J91: x | K91: x | L91: x | M91: x | N91: x
A92: x | B92: x | C92: x | D92: x | E92: x | F92: x | G92: x | H92: x | I92: x | J92: x | K92: x | L92: x | M92: x | N92: x
A93: x | B93: x | C93: x | D93: x | E93: x | F93: x | G93: x | H93: x | I93: x | J93: x | K93: x | L93: x | M93: x | N93: x
A94: x | B94: x | C94: x | D94: x | E94: x | F94: x | G94: x | H94: x | I94: x | J94: x | K94: x | L94: x | M94: x | N94: x
A95: x | B95: x | C95: x | D95: x | E95: x | F95: x | G95: x | H95: x | I95: x | J95: x | K95: x | L95: x | M95: x | N95: x | O95: x | P95: x | Q95: x | R95: x | S95: x | T95: x | U95: x | V95: x | W95: x | X95: x | Y95: x | Z95: x | AA95: x | AB95: x
A96: x | B96: x | C96: x | D96: x | E96: x | F96: x | G96: x | H96: x | I96: x | J96: x | K96: x | L96: x | M96: x | N96: x | O96: x | P96: x | Q96: x | R96: x | S96: x | T96: x | U96: x | V96: x | W96: x | X96: x | Y96: x | Z96: x | AA96: x | AB96: x
A97: x | B97: x | C97: x | D97: x | E97: x | F97: x | G97: x | H97: x | I97: x | J97: x | K97: x | L97: x | M97: x | N97: x | O97: x | P97: x | Q97: x | R97: x | S97: x | T97: x | U97: x | V97: x | W97: x | X97: x | Y97: x | Z97: x | AA97: x | AB97: x
A98: x | C98: x | D98: x | E98: x | F98: x | G98: x | H98: x | I98: x | J98: x | K98: x | L98: x | M98: x | N98: x | P98: x
A99: x | C99: x | D99: x | E99: x | F99: x | G99: x | H99: x | I99: x | J99: x | K99: x | L99: x | M99: x | N99: x | P99: x
A100: x | C100: x | D100: x | E100: x | F100: x | G100: x | H100: x | I100: x | J100: x | K100: x | L100: x | M100: x | N100: x | P100: x
A101: x | C101: x | D101: x | E101: x | F101: x | G101: x | H101: x | I101: x | J101: x | K101: x | L101: x | M101: x | N101: x | P101: x
A102: x | C102: x | D102: x | E102: x | F102: x | G102: x | H102: x | I102: x | J102: x | K102: x | L102: x | M102: x | N102: x | P102: x
A103: x | C103: x | D103: x | E103: x | F103: x | G103: x | H103: x | I103: x | J103: x | K103: x | L103: x | M103: x | N103: x | P103: x
A104: x | C104: x | D104: x | E104: x | F104: x | G104: x | H104: x | I104: x | J104: x | K104: x | L104: x | M104: x | N104: x | P104: x
A105: x | C105: x | D105: x | E105: x | F105: x | G105: x | H105: x | I105: x | J105: x | K105: x | L105: x | M105: x | N105: x | P105: x
A106: x | C106: x | D106: x | E106: x | F106: x | G106: x | H106: x | I106: x | J106: x | K106: x | L106: x | M106: x | N106: x | P106: x
A107: x | C107: x | D107: x | E107: x | F107: x | G107: x | H107: x | I107: x | J107: x | K107: x | L107: x | M107: x | N107: x | P107: x
A108: x | C108: x | D108: x | E108: x | F108: x | G108: x | H108: x | I108: x | J108: x | K108: x | L108: x | M108: x | N108: x | P108: x
A109: x | B109: x | C109: x | D109: x | E109: x | F109: x | G109: x | H109: x | I109: x | J109: x | K109: x | L109: x | M109: x | N109: x | O109: x | P109: x | Q109: x | R109: x | S109: x | T109: x | U109: x | V109: x | W109: x | X109: x | Y109: x | Z109: x | AA109: x | AB109: x
A110: x | B110: x | C110: x | D110: x | E110: x | F110: x | G110: x | H110: x | I110: x | J110: x | K110: x | L110: x | M110: x | N110: x | O110: x | P110: x | Q110: x | R110: x | S110: x | T110: x | U110: x | V110: x | W110: x | X110: x | Y110: x | Z110: x | AA110: x | AB110: x
A111: x | D111: x | E111: x | F111: x | G111: x | H111: x | I111: x | J111: x | K111: x | L111: x | M111: x | N111: x | P111: x | Q111: x
A112: x | D112: x | E112: x | F112: x | G112: x | H112: x | I112: x | J112: x | K112: x | L112: x | M112: x | N112: x | P112: x | Q112: x
A113: x | B113: x | C113: x | D113: x | E113: x | F113: x | G113: x | H113: x | I113: x | J113: x | K113: x | L113: x | M113: x | N113: x | O113: x | P113: x | Q113: x | R113: x | S113: x | T113: x | U113: x | V113: x | W113: x | X113: x | Y113: x | Z113: x | AA113: x | AB113: x
A114: x | B114: x | C114: x | D114: x | E114: x | F114: x | G114: x | H114: x | I114: x | J114: x | K114: x | L114: x | M114: x | N114: x
A115: x | B115: x | C115: x | D115: x | E115: x | F115: x | G115: x | H115: x | I115: x | J115: x | K115: x | L115: x | M115: x | N115: x
A116: x | B116: x | C116: x | D116: x | E116: x | F116: x | G116: x | H116: x | I116: x | J116: x | K116: x | L116: x | M116: x | N116: x | O116: x | P116: x | Q116: x | R116: x | S116: x | T116: x | U116: x | V116: x | W116: x | X116: x | Y116: x | Z116: x | AA116: x | AB116: x
A117: x | B117: x | C117: x | D117: x | E117: x | F117: x | G117: x | H117: x | I117: x | J117: x | K117: x | L117: x | M117: x | N117: x | O117: x | P117: x | Q117: x | R117: x | S117: x | T117: x | U117: x | V117: x | W117: x | X117: x | Y117: x | Z117: x | AA117: x | AB117: x
A118: x | C118: x | D118: x | E118: x | F118: x | G118: x | H118: x | I118: x | J118: x | K118: x | L118: x | M118: x | N118: x
A119: x | C119: x | D119: x | E119: x | F119: x | G119: x | H119: x | I119: x | J119: x | K119: x | L119: x | M119: x | N119: x
A120: x | C120: x | D120: x | E120: x | F120: x | G120: x | H120: x | I120: x | J120: x | K120: x | L120: x | M120: x | N120: x
A121: x | C121: x | D121: x | E121: x | F121: x | G121: x | H121: x | I121: x | J121: x | K121: x | L121: x | M121: x | N121: x
A122: x | C122: x | D122: x | E122: x | F122: x | G122: x | H122: x | I122: x | J122: x | K122: x | L122: x | M122: x | N122: x
A123: x | C123: x | D123: x | E123: x | F123: x | G123: x | H123: x | I123: x | J123: x | K123: x | L123: x | M123: x | N123: x
A124: x | C124: x | D124: x | E124: x | F124: x | G124: x | H124: x | I124: x | J124: x | K124: x | L124: x | M124: x | N124: x
A125: x | B125: x | C125: x | D125: x | E125: x | F125: x | G125: x | H125: x | I125: x | J125: x | K125: x | L125: x | M125: x | N125: x | O125: x | P125: x | Q125: x | R125: x | S125: x | T125: x | U125: x | V125: x | W125: x | X125: x | Y125: x | Z125: x | AA125: x | AB125: x
A126: x | B126: x | C126: x | D126: x | E126: x | F126: x | G126: x | H126: x | I126: x | J126: x | K126: x | L126: x | M126: x | N126: x | O126: x | P126: x | Q126: x | R126: x | S126: x | T126: x | U126: x | V126: x | W126: x | X126: x | Y126: x | Z126: x | AA126: x | AB126: x
A127: x | C127: x | D127: x | E127: x | F127: x | G127: x | H127: x | I127: x | J127: x | K127: x | L127: x | M127: x | N127: x
A128: x | C128: x | D128: x | E128: x | F128: x | G128: x | H128: x | I128: x | J128: x | K128: x | L128: x | M128: x | N128: x
A129: x | C129: x | D129: x | E129: x | F129: x | G129: x | H129: x | I129: x | J129: x | K129: x | L129: x | M129: x | N129: x
A130: x | C130: x | D130: x | E130: x | F130: x | G130: x | H130: x | I130: x | J130: x | K130: x | L130: x | M130: x | N130: x
A131: x | C131: x | D131: x | E131: x | F131: x | G131: x | H131: x | I131: x | J131: x | K131: x | L131: x | M131: x | N131: x
A132: x | C132: x | D132: x | E132: x | F132: x | G132: x | H132: x | I132: x | J132: x | K132: x | L132: x | M132: x | N132: x
A133: x | C133: x | D133: x | E133: x | F133: x | G133: x | H133: x | I133: x | J133: x | K133: x | L133: x | M133: x | N133: x
A134: x | C134: x | D134: x | E134: x | F134: x | G134: x | H134: x | I134: x | J134: x | K134: x | L134: x | M134: x | N134: x
A135: x | B135: x | C135: x | D135: x | E135: x | F135: x | G135: x | H135: x | I135: x | J135: x | K135: x | L135: x | M135: x | N135: x | O135: x | P135: x | Q135: x | R135: x | S135: x | T135: x | U135: x | V135: x | W135: x | X135: x | Y135: x | Z135: x | AA135: x | AB135: x
A136: x | B136: x | C136: x | D136: x | E136: x | F136: x | G136: x | H136: x | I136: x | J136: x | K136: x | L136: x | M136: x | N136: x | O136: x | P136: x | Q136: x | R136: x | S136: x | T136: x | U136: x | V136: x | W136: x | X136: x | Y136: x | Z136: x | AA136: x | AB136: x
A137: x | B137: x | C137: x | D137: x | E137: x | F137: x | G137: x | H137: x | I137: x | J137: x | K137: x | L137: x | M137: x | N137: x
A138: x | B138: x | C138: x | D138: x | E138: x | F138: x | G138: x | H138: x | I138: x | J138: x | K138: x | L138: x | M138: x | N138: x
A139: x | B139: x | C139: x | D139: x | E139: x | F139: x | G139: x | H139: x | I139: x | J139: x | K139: x | L139: x | M139: x | N139: x
A140: x | B140: x | C140: x | D140: x | E140: x | F140: x | G140: x | H140: x | I140: x | J140: x | K140: x | L140: x | M140: x | N140: x
A141: x | B141: x | C141: x | D141: x | E141: x | F141: x | G141: x | H141: x | I141: x | J141: x | K141: x | L141: x | M141: x | N141: x
A142: x | B142: x | C142: x | D142: x | E142: x | F142: x | G142: x | H142: x | I142: x | J142: x | K142: x | L142: x | M142: x | N142: x
A143: x | B143: x | C143: x | D143: x | E143: x | F143: x | G143: x | H143: x | I143: x | J143: x | K143: x | L143: x | M143: x | N143: x | O143: x | P143: x | Q143: x | R143: x | S143: x | T143: x | U143: x | V143: x | W143: x | X143: x | Y143: x | Z143: x | AA143: x | AB143: x
A144: x | C144: x | D144: x | E144: x | F144: x | G144: x | H144: x | I144: x | J144: x | K144: x | L144: x | M144: x | N144: x | R144: x
A145: x | C145: x | D145: x | E145: x | F145: x | G145: x | H145: x | I145: x | J145: x | K145: x | L145: x | M145: x | N145: x | R145: x
A146: x | C146: x | D146: x | E146: x | F146: x | G146: x | H146: x | I146: x | J146: x | K146: x | L146: x | M146: x | N146: x | R146: x
A147: x | B147: x | C147: x | D147: x | E147: x | F147: x | G147: x | H147: x | I147: x | J147: x | K147: x | L147: x | M147: x | N147: x | O147: x | P147: x | Q147: x | R147: x | S147: x | T147: x | U147: x | V147: x | W147: x | X147: x | Y147: x | Z147: x | AA147: x | AB147: x
A148: x | C148: x | D148: x | F148: x | G148: x | H148: x | I148: x | J148: x | K148: x | L148: x | M148: x | N148: x | S148: x
A149: x | C149: x | D149: x | F149: x | G149: x | H149: x | I149: x | J149: x | K149: x | L149: x | M149: x | N149: x | S149: x
A150: x | C150: x | D150: x | F150: x | G150: x | H150: x | I150: x | J150: x | K150: x | L150: x | M150: x | N150: x | S150: x
A151: x | C151: x | D151: x | F151: x | G151: x | H151: x | I151: x | J151: x | K151: x | L151: x | M151: x | N151: x | S151: x
A152: x | C152: x | D152: x | F152: x | G152: x | H152: x | I152: x | J152: x | K152: x | L152: x | M152: x | N152: x | S152: x
A153: x | B153: x | C153: x | D153: x | E153: x | F153: x | G153: x | H153: x | I153: x | J153: x | K153: x | L153: x | M153: x | N153: x | O153: x | P153: x | Q153: x | R153: x | S153: x | T153: x | U153: x | V153: x | W153: x | X153: x | Y153: x | Z153: x | AA153: x | AB153: x
A154: x | C154: x | D154: x | E154: x | F154: x | G154: x | H154: x | I154: x | J154: x | K154: x | L154: x | M154: x | N154: x
A155: x | B155: x | C155: x | D155: x | E155: x | F155: x | G155: x | H155: x | I155: x | J155: x | K155: x | L155: x | M155: x | N155: x | U155: x
A156: x | B156: x | C156: x | D156: x | E156: x | F156: x | H156: x | I156: x | J156: x | K156: x | L156: x | M156: x | N156: x | U156: x
A157: x | B157: x | C157: x | D157: x | E157: x | F157: x | G157: x | H157: x | I157: x | J157: x | K157: x | L157: x | M157: x | N157: x | O157: x | P157: x | Q157: x | R157: x | S157: x | T157: x | U157: x | V157: x | W157: x | X157: x | Y157: x | Z157: x | AA157: x | AB157: x
A158: x | C158: x | D158: x | E158: x | F158: x | G158: x | I158: x | J158: x | K158: x | L158: x | M158: x | N158: x | R158: x | V158: x
A159: x | C159: x | D159: x | E159: x | F159: x | G159: x | I159: x | J159: x | K159: x | L159: x | M159: x | N159: x | V159: x
A160: x | C160: x | D160: x | E160: x | F160: x | G160: x | I160: x | J160: x | K160: x | L160: x | M160: x | N160: x | V160: x
A161: x | C161: x | D161: x | E161: x | F161: x | G161: x | I161: x | J161: x | K161: x | L161: x | M161: x | N161: x | V161: x
A162: x | C162: x | D162: x | E162: x | F162: x | G162: x | I162: x | J162: x | K162: x | L162: x | M162: x | N162: x | V162: x
A163: x | C163: x | D163: x | E163: x | F163: x | G163: x | I163: x | J163: x | K163: x | L163: x | M163: x | N163: x | V163: x
A164: x | C164: x | D164: x | E164: x | F164: x | G164: x | I164: x | J164: x | K164: x | L164: x | M164: x | N164: x | V164: x
A165: x | B165: x | C165: x | D165: x | E165: x | F165: x | G165: x | H165: x | I165: x | J165: x | K165: x | L165: x | M165: x | N165: x | O165: x | P165: x | Q165: x | R165: x | S165: x | T165: x | U165: x | V165: x | W165: x | X165: x | Y165: x | Z165: x | AA165: x | AB165: x
A166: x | B166: x | C166: x | D166: x | E166: x | F166: x | G166: x | H166: x | I166: x | J166: x | K166: x | L166: x | M166: x | N166: x | O166: x | P166: x | Q166: x | R166: x | S166: x | T166: x | U166: x | V166: x | W166: x | X166: x | Y166: x | Z166: x | AA166: x | AB166: x
A167: x | C167: x | D167: x | E167: x | G167: x | H167: x | I167: x | J167: x | K167: x | L167: x | M167: x | N167: x | T167: x
A168: x | C168: x | D168: x | E168: x | G168: x | H168: x | I168: x | J168: x | K168: x | L168: x | M168: x | N168: x | T168: x
A169: x | C169: x | D169: x | E169: x | G169: x | H169: x | I169: x | J169: x | K169: x | L169: x | M169: x | N169: x | T169: x
A170: x | C170: x | D170: x | E170: x | G170: x | H170: x | I170: x | J170: x | K170: x | L170: x | M170: x | N170: x | T170: x
A171: x | C171: x | D171: x | E171: x | G171: x | H171: x | I171: x | J171: x | K171: x | L171: x | M171: x | N171: x | T171: x
A172: x | C172: x | D172: x | E172: x | G172: x | H172: x | I172: x | J172: x | K172: x | L172: x | M172: x | N172: x | T172: x
A173: x | C173: x | D173: x | E173: x | G173: x | H173: x | I173: x | J173: x | K173: x | L173: x | M173: x | N173: x | T173: x
A174: x | C174: x | D174: x | E174: x | G174: x | H174: x | I174: x | J174: x | K174: x | L174: x | M174: x | N174: x | T174: x
A175: x | C175: x | D175: x | E175: x | G175: x | H175: x | I175: x | J175: x | K175: x | L175: x | M175: x | N175: x | T175: x
A176: x | C176: x | D176: x | E176: x | G176: x | H176: x | I176: x | J176: x | K176: x | L176: x | M176: x | N176: x | T176: x
A177: x | C177: x | D177: x | E177: x | G177: x | H177: x | I177: x | J177: x | K177: x | L177: x | M177: x | N177: x | T177: x
A178: x | C178: x | D178: x | E178: x | G178: x | H178: x | I178: x | J178: x | K178: x | L178: x | M178: x | N178: x | T178: x
A179: x | C179: x | D179: x | E179: x | G179: x | H179: x | I179: x | J179: x | K179: x | L179: x | M179: x | N179: x | T179: x
A180: x | C180: x | D180: x | E180: x | G180: x | H180: x | I180: x | J180: x | K180: x | L180: x | M180: x | N180: x | T180: x
A181: x | C181: x | D181: x | E181: x | G181: x | H181: x | I181: x | J181: x | K181: x | L181: x | M181: x | N181: x | T181: x
A182: x | C182: x | D182: x | E182: x | G182: x | H182: x | I182: x | J182: x | K182: x | L182: x | M182: x | N182: x | T182: x
A183: x | C183: x | D183: x | E183: x | G183: x | H183: x | I183: x | J183: x | K183: x | L183: x | M183: x | N183: x | T183: x
A184: x | B184: x | C184: x | D184: x | E184: x | F184: x | G184: x | H184: x | I184: x | J184: x | K184: x | L184: x | M184: x | N184: x | O184: x | P184: x | Q184: x | R184: x | S184: x | T184: x | U184: x | V184: x | W184: x | X184: x | Y184: x | Z184: x | AA184: x | AB184: x
A185: x | C185: x | E185: x | F185: x | G185: x | H185: x | I185: x | J185: x | K185: x | L185: x | M185: x | N185: x | R185: x
A186: x | C186: x | E186: x | F186: x | G186: x | H186: x | I186: x | J186: x | K186: x | L186: x | M186: x | N186: x | R186: x
A187: x | C187: x | E187: x | F187: x | G187: x | H187: x | I187: x | J187: x | K187: x | L187: x | M187: x | N187: x | R187: x
A188: x | C188: x | E188: x | F188: x | G188: x | H188: x | I188: x | J188: x | K188: x | L188: x | M188: x | N188: x | R188: x
A189: x | C189: x | E189: x | F189: x | G189: x | H189: x | I189: x | J189: x | K189: x | L189: x | M189: x | N189: x | R189: x
A190: x | C190: x | E190: x | F190: x | G190: x | H190: x | I190: x | J190: x | K190: x | L190: x | M190: x | N190: x | R190: x
A191: x | C191: x | E191: x | F191: x | G191: x | H191: x | I191: x | J191: x | K191: x | L191: x | M191: x | N191: x | R191: x
A192: x | C192: x | E192: x | F192: x | G192: x | H192: x | I192: x | J192: x | K192: x | L192: x | M192: x | N192: x | R192: x
A193: x | C193: x | E193: x | F193: x | G193: x | H193: x | I193: x | J193: x | K193: x | L193: x | M193: x | N193: x | R193: x
A194: x | C194: x | E194: x | F194: x | G194: x | H194: x | I194: x | J194: x | K194: x | L194: x | M194: x | N194: x | R194: x
A195: x | C195: x | E195: x | F195: x | G195: x | H195: x | I195: x | J195: x | K195: x | L195: x | M195: x | N195: x | R195: x
A196: x | C196: x | E196: x | F196: x | G196: x | H196: x | I196: x | J196: x | K196: x | L196: x | M196: x | N196: x | R196: x
A197: x | C197: x | E197: x | F197: x | G197: x | H197: x | I197: x | J197: x | K197: x | L197: x | M197: x | N197: x | R197: x
A198: x | C198: x | E198: x | F198: x | G198: x | H198: x | I198: x | J198: x | K198: x | L198: x | M198: x | N198: x | R198: x
A199: x | C199: x | E199: x | F199: x | G199: x | H199: x | I199: x | J199: x | K199: x | L199: x | M199: x | N199: x | R199: x
A200: x | C200: x | E200: x | F200: x | G200: x | H200: x | I200: x | J200: x | K200: x | L200: x | M200: x | N200: x | R200: x
... 54 more rows

Sheet meta_data (hidden)
A1: Key | B1: Beskrivelse | C1: trigger_code | D1: Indicates wether the algo shall loop through the matrix on releated column
A2: F0 | B2: Full | C2: TRUE | D2: trigger code har jeg ikke kontroll på her, på key får jeg heller ikke til koden, så har bare lagt det inn manuelt
A3: E0 | B3: Endring | C3: FALSE
A4: F1 | B4: Resultatdisponering og utbyttegrunnlag | C4: TRUE
A5: F2 | B5: Rapportering om betalinger til myndigheter m.v. (land-for-land rapportering) | C5: TRUE
A6: F3 | B6: Regnskapspliktige som er utstedere med verdipapirer notert på regulert marked | C6: TRUE
A7: F4 | B7: Redegjørelse for foretaksstyring | C7: TRUE
A8: F5 | B8: Bærekraftsrapportering | C8: TRUE
A9: F6 | B9: Redegjørelse etter åpenhetsloven | C9: TRUE
A10: F7 | B10: Bank, finansieringsforetak med mer | C10: TRUE
A11: F8 | B11: Livsforsikringsforetak eller skadeforsikringsforetak | C11: TRUE
A12: F9 | B12: Verdipapirfond | C12: TRUE
A13: F10 | B13: Verdipapirforetak | C13: TRUE
A14: F11 | B14: Pensjonskasse | C14: TRUE
A15: F12 | B15: Borettslag | C15: TRUE
A16: E1 | B16: Policy | C16: FALSE
A17: E2 | B17: Revisors ansvar | C17: FALSE
A18: E3 | B18: Resultatdisponering og utbyttegrunnlag | C18: FALSE
A19: E4 | B19: Rapportering om betalinger til myndigheter m.v. (land-for-land rapportering) | C19: FALSE
A20: E5 | B20: Regnskapspliktige som er utstedere med verdipapirer notert på regulert marked | C20: FALSE
A21: E6 | B21: Redegjørelse for foretaksstyring | C21: FALSE
A22: E7 | B22: Bærekraftsrapportering | C22: FALSE
A23: E8 | B23: Redegjørelse etter åpenhetsloven | C23: FALSE
A24: E9 | B24: Bank, finansieringsforetak med mer | C24: FALSE
A25: E10 | B25: Livsforsikringsforetak eller skadeforsikringsforetak | C25: FALSE
A26: E11 | B26: Verdipapirfond | C26: FALSE
A27: E12 | B27: Verdipapirforetak | C27: FALSE
A28: E13 | B28: Pensjonskasse | C28: FALSE
A29: E14 | B29: Borettslag | C29: FALSE

Sheet Sjekkliste for utfylling
A1: Kontroll av årsberetningen samt evt redegjørelser for foretaksstyring, åpenhetsloven og rapportering om betalinger til myndigheter - mellomstore og store foretak | D1: Utfylt: | K1: Sum
A2: Klient: | B2: =+Forside!B2 -> 0 | D2: Review: | J2: Ikke besvart: | K2: =Forside!B9 -> 131
A3: År: | B3: =+Forside!B3 -> 2024 | J3: Ja-svar: | K3: =Forside!C9 -> 0
J4: Nei-svar: | K4: =Forside!D9 -> 0
A5: Enkelte selskaper har tilleggskrav ihht regnskapsloven eller forskrifter til regnskapsloven, disse fremgår nederst i denne sjekklisten. | J5: IA-svar: | K5: =Forside!E9 -> 0
J6: Sum: | K6: =SUM(K2:K5) -> 131
B7: Spørsmål | C7: Ref. | E7: Ja | F7: Nei | G7: I/A | H7: Kommentar
A8: Plikt til utarbeidelse
B9: Regnskapspliktige som er mellomstore eller store foretak skal utarbeide årsberetning. Det kan være andre forhold enn de som spesifikt er omtalt i regnskapsloven § 2-2 og NRS 16 Årsberetning, som kan påvirke verdien av foretaket eller på annen måte har betydning for foretakets interessegrupper. Det bør gis informasjon om slike forhold, for eksempel: • Endringer i aksjonærsammensetningen • Endringer i ledelses- og organisasjonsforhold • Aksjonærpolitikk • Endringer i foretakets vedtekter • Erverv av egne aksjer | C9: rskl § 2-1
C10: NRS 16 pkt 2.15
A12: Formkrav
A13: 1 | B13: Er årsberetningen på norsk, eller annet språk som selskapet har fått dispensasjon til å bruke? | C13: rskl § 2-11 | J13: =IF(F13<>"","Du har satt X for at forholdet ikke er avklart. Gi en nærmere foklaring i kommentarfeltet.","") -> 
A14: =+A13+1 -> 2 | B14: Er årsberetningen signert av samtlige styremedlemmer og eventuelt av daglig leder, alternativt av deltakerne eller medlemmene hvis foretaket ikke har styre eller daglig leder? | C14: rskl § 2-12 jf § 3-5 | J14: =IF(F14<>"","Du har satt X for at forholdet ikke er avklart. Gi en nærmere foklaring i kommentarfeltet.","") -> 
A15: =+A14+1 -> 3 | B15: Dersom en som skal signere har innvendinger mot årsregnskapet eller årsberetningen, har vedkommende signert med påtegnet forbehold og gitt nærmere redegjørelse? | C15: rskl § 2-12 jf § 3-5 | J15: =IF(F15<>"","Du har satt X for at forholdet ikke er avklart. Gi en nærmere foklaring i kommentarfeltet.","") -> 
B16: Merk at dersom det i årsberetningen er henvist til redegjørelse om foretakssstyring ihht rskl § 2-9, og/eller rapport om betaling til myndigheter mv ihht § 2-10, så omfatter signering på årsberetningen også slik redegjørelse/rapport. | C16: rskl § 2-12 (2)
C17: NRS 16, pkt 2.3
A18: =+A15+1 -> 4 | B18: Er årsberetningen fastsatt innenfor lovens frist, og samtidig med årsregnskapet? | C18: rskl § 2-1 jf 3-1 | J18: =IF(F18<>"","Du har satt X for at forholdet ikke er avklart. Gi en nærmere foklaring i kommentarfeltet.","") -> 
A19: Generelle krav
B20: Ved rapportering av virksomhetsområder bør informasjonen i årsberetningen søkes organisert på samme måte som virksomhetsområdene er behandlet i årsregnskapet | C20: NRS 16, pkt 2.3
A21: =+A18+1 -> 5 | B21: Gir årsberetningen et dekkende bilde av foretakets historiske og framtidige utvikling, resultat og stilling? | J21: =IF(F21<>"","Du har satt X for at forholdet ikke er avklart. Gi en nærmere foklaring i kommentarfeltet.","") -> 
A22: =+A21+1 -> 6 | B22: Er årsberetningen skrevet så klart og presist som mulig, i et forståelig språk, og med en balansert omtale av positive og negative forhold i den grad det gis slik omtale?
A23: 7 | B23: Er det konsistens i behandlingen av samme forhold i årsberetningen og årsregnskapet?
A24: 8 | B24: Er det redegjort for forholdet dersom utviklingen ikke har vært i overensstemmelse med vesentlige utsagn i tidligere årsberetninger?
A25: 9 | B25: Er det lagt vekt på vurderinger av kvalitativ art som forklarer forholdstall og annen tallbasert informasjon?
A26: 10 | B26: Kan refererte regnskapsmessige tallstørrelser i årsberetningen gjenfinnes i årsregnskapet, eventuelt som avstemming i notene?
A27: 11 | B27: For morselskap som utarbeider konsernregnskap, dekker årsberetningen også virksomheten i konsernet? | C27: rskl § 2-1 (2)
C28: NRS 16, pkt 2.2
A29: =+A27+1 -> 12 | B29: Gir informasjonen om virksomheten i konsernet grunnlag for å vurdere morselskapet og datterselskapene som en enhet?
A30: Virksomhetens art og tilholdssted | C30: rskl § 2-2 (1)
C31: NRS 16, pkt 2.4
A32: =+A29+1 -> 13 | B32: Er det opplyst om arten av virksomheten? | J32: =IF(F32<>"","Du har satt X for at forholdet ikke er avklart. Gi en nærmere foklaring i kommentarfeltet.","") -> 
A33: =+A32+1 -> 14 | B33: Dersom det er flere typer virksomhet, er det gitt opplysninger om hver virksomhet? | J33: =IF(F33<>"","Du har satt X for at forholdet ikke er avklart. Gi en nærmere foklaring i kommentarfeltet.","") -> 
A34: =+A33+1 -> 15 | B34: Er det opplyst hvor virksomheten drives? | J34: =IF(F34<>"","Du har satt X for at forholdet ikke er avklart. Gi en nærmere foklaring i kommentarfeltet.","") -> 
A35: =+A34+1 -> 16 | B35: Ved flere filialer eller avdelinger, er det opplyst om hvor de ulike filialene / avdelingene drives? | J35: =IF(F35<>"","Du har satt X for at forholdet ikke er avklart. Gi en nærmere foklaring i kommentarfeltet.","") -> 
B36: Dersom det kan være viktig for å forstå virksomhetens art og lokalisering oppfordres det i regnskapsstandarden til å gi en redegjørelse for foretakets forretningsidé og strategi. | J36: =IF(F36<>"","Du har satt X for at forholdet ikke er avklart. Gi en nærmere foklaring i kommentarfeltet.","") -> 
A37: Rettvisende oversikt / redegjørelse for årsregnskapet | C37: rskl 2-2 (2) til (4)
C38: NRS 16, pkt 2.5
B39: NRS 16 pkt 2.5 inneholder utdypende kommentarer og anbefalinger til kravene i rskl § 2-2, 2. til 4. ledd vedrørende rettvisende oversikt over utvikling og resultat av foretakets virksomhet og stilling.
A40: =+A35+1 -> 17 | B40: Er det gitt en rettvisende oversikt over utvikling og resultat av foretakets virksomhet og dets stilling? | J40: =IF(F40<>"","Du har satt X for at forholdet ikke er avklart. Gi en nærmere foklaring i kommentarfeltet.","") -> 
A41: =+A40+1 -> 18 | B41: Er sentrale risikoer og usikkerhetsfaktorer beskrevet? | J41: =IF(F41<>"","Du har satt X for at forholdet ikke er avklart. Gi en nærmere foklaring i kommentarfeltet.","") -> 
A42: =+A41+1 -> 19 | B42: Er oversikten en balansert og fyllestgjørende analyse av utvikling, resultat og stilling?
A43: 20 | B43: I den grad det anses nødvendig for å forstå foretakets utvikling, resultat eller stilling, inneholder analysen både finansielle og, der det passer, ikke-finansielle sentrale og aktuelle resultatindikatorer, inkludert opplysninger om miljøforhold og forhold som gjelder arbeidstakere?
A44: 21 | B44: Inneholder årsberetningen, der det passer, henvisninger og tilleggsforklaringer til beløp oppført i årsregnskapet?
A45: 22 | B45: Er hovedfaktorene som påvirker virksomheten identifisert og forklart?
A46: 23 | B46: Er uvanlige eller ekstraordinære forhold belyst?
A47: 24 | B47: Er det opplyst om årsaken til og virkningen av vesentlige endringer i regnskapsprinsipper?
A48: 25 | B48: Er det opplyst om viktige hendelser etter balansedagen, samt redegjort for hendelsenes faktiske eller potensielle virkning på resultat og stilling?
A49: 26 | B49: Er endringer av overordnet og strategisk betydning, som for eksempel endring i satsningsområder og vesentlige strukturelle endringer, omtalt?
A50: 27 | B50: Er forventede virkninger på resultat og stilling av slike endringer kommentert?
A51: =+A50+1 -> 28 | B51: Er det gitt en overordnet vurdering av total usikkerhet vedrørende foretakets regnskapsførte resultat og finansielle stilling?
A52: Resultatregnskapet | C52: NRS 16, pkt 2.5
A53: =+A51+1 -> 29 | B53: Er viktige utviklingstrekk for virksomheten som er av betydning for å bedømme foretakets stilling og resultat drøftet, for eksempel: o Endringer i markedsforhold o Nye produkter og tjenester o Endringer i markedsandeler eller markedsposisjoner o Endringer i salgsmengde eller marginer o Endringer i valutakurser og relevante prisforhold o Andre spesielle forhold som kan ha påvirket resultatet | J53: =IF(F53<>"","Du har satt X for at forholdet ikke er avklart. Gi en nærmere foklaring i kommentarfeltet.","") -> 
A54: =+A53+1 -> 30 | B54: Er det gitt opplysninger om eventuelle forsknings- og utviklingsaktiviteter? | J54: =IF(F54<>"","Du har satt X for at forholdet ikke er avklart. Gi en nærmere foklaring i kommentarfeltet.","") -> 
B55: Opplysningene om eventuelle forsknings- og utviklingsaktiviteter kan normalt begrense seg til en overordnet verbal beskrivelse. Ved kostnadsføring som prinsipp er det særlig aktuelt å gi en vurdering av hvordan årets resultat samsvarer med den underliggende verdiskapning i foretaket. | J55: =IF(F55<>"","Du har satt X for at forholdet ikke er avklart. Gi en nærmere foklaring i kommentarfeltet.","") -> 
A56: =+A54+1 -> 31 | B56: Er spesielle forhold som i betydelig grad kan ha påvirket årsregnskapet kommentert, for eksempel: o Store enkelttransaksjoner o Kjøp eller salg av foretak, ny virksomhet, avviklet virksomhet og andre viktige anskaffelser og avhendelser o Realisering eller oppbygging av merverdier i for eksempel verdipapirer eller eiendom o Særlige poster | J56: =IF(F56<>"","Du har satt X for at forholdet ikke er avklart. Gi en nærmere foklaring i kommentarfeltet.","") -> 
B57: Ved betydelige oppkjøp av virksomhet bør det redegjøres for i hvilken utstrekning forventningene til oppkjøpet er blitt realisert. Dersom resultater som er medregnet ved kjøp av virksomhet med betydelig sesong-variasjoner ikke er indikative for virkningen på helårsbasis, bør dette opplyses. | J57: =IF(F57<>"","Du har satt X for at forholdet ikke er avklart. Gi en nærmere foklaring i kommentarfeltet.","") -> 
A58: Balansen | C58: NRS 16, pkt 2.5 | H58: =IF(F58<>"","Du har satt X for at forholdet ikke er avklart. Gi en nærmere foklaring i kommentarfeltet.","") -> 
B59: Beskrivelsen bør være vurderende med bruk av tallmateriale i den grad det letter forståelsen, for eksempel finansielle forholdstall som egenkapitalandel og rentedekningsgrad. | J59: =IF(F59<>"","Du har satt X for at forholdet ikke er avklart. Gi en nærmere foklaring i kommentarfeltet.","") -> 
A60: =+A56+1 -> 32 | B60: Er likviditetssituasjonen på balansedagen gjennomgått? | J60: =IF(F60<>"","Du har satt X for at forholdet ikke er avklart. Gi en nærmere foklaring i kommentarfeltet.","") -> 
B61: Gjennomgang av likviditetssituasjonen kan omfatte - nivå på kortsiktig gjeld - sesongvariasjoner med angivelse av maksimalt lånebehov - forfallsstruktur på gjeld og kommitterte kredittlinjer
B62: Restriksjoner for overføring av midler fra en del av virksomheten for å møte forpliktelser i andre deler av foretaket bør drøftes dersom dette anses for å være en vesentlig beskrankning for selskapet
A63: Kontantstrømoppstillingen | C63: NRS 16, pkt 2.5
A64: =+A60+1 -> 33 | B64: Dersom ikke tilsvarende informasjon gis gjennom øvrige deler av årsberetningen, er kontantstrømoppstillingen kommentert? | J64: =IF(F64<>"","Du har satt X for at forholdet ikke er avklart. Gi en nærmere foklaring i kommentarfeltet.","") -> 
A65: =+A64+1 -> 34 | B65: Er det redegjort for eventuelle vesentlige avvik mellom driftsresultat og kontantstrøm fra operasjonelle aktiviteter?
A66: =+A65+1 -> 35 | B66: Dersom man anser det for å være sentral informasjon for brukerne, er det informert om skillet mellom investeringer som er gjort for å opprettholde kapasiteten og investeringer som er gjort for å øke kapasiteten / lønnsomheten?
A67: =+A66+1 -> 36 | B67: Er det gitt en vurdering av sammenhengene mellom kontantstrømmene fra operasjonelle aktiviteter og investeringsaktiviteter, herunder evnen til egenfinansiering av investeringer?
A68: =+A67+1 -> 37 | B68: Er det redegjort for formålet med og virkningen av større finansielle transaksjoner som er gjennomført fram til avleggelsen av årsberetningen?
A69: Foretakets utsikter | C69: rskl § 2-2 (5)
C70: NRS 16, pkt 2.6
B71: NRS 16 pkt 2.6 inneholder utdypende kommentarer og anbefalinger til kravene i rskl § 2-2, 5. ledd vedrørende redegjørelse for foretakets framtidige utsikter. | J71: =IF(F71<>"","Du har satt X for at forholdet ikke er avklart. Gi en nærmere foklaring i kommentarfeltet.","") -> 
B72: Redegjørelse for fremtidsutsikter kan blant annet omhandle - rammebetingelser - makroøkonomiske forhold - renter, valutakurser, internasjonale varepriser - priskontrakter - investeringer/investeringsbehov fordelt på vedlikehold og ekspansjonsbehov - kostnadsføringer av utgifter som kan gi økonomiske fordeler på sikt - finansielle ressurser i forhold til framtidig kapitalbehov - miljøforhold
B73: Det må vurderes å gi kvalitative og kvantitative vurderinger av de viktigste faktorene som kan påvirke framtidig resultat.
B74: Det forventes at foretak av allmenn interesse gir en fyldigere fremstilling av foretakets utsikter enn andre foretak.
A75: =+A68+1 -> 38 | B75: Er det gitt er redegjørelse som gir grunnlag for å vurdere foretakets framtidige utvikling?
A76: =+A75+1 -> 39 | B76: Er det gitt en vurdering av foretakets forventede økonomiske utvikling på et overordnet nivå, med angivelse av de viktigste forutsetninger som er lagt til grunn?
A77: =+A76+1 -> 40 | B77: Har styret presisert at det normalt er betydelig usikkerhet knyttet til vurderinger av fremtidige forhold?
A78: =+A77+1 -> 41 | B78: Er faktorer og forhold som vil ha betydning for fremtidige resultater drøftet?
A79: =+A78+1 -> 42 | B79: Omfatter drøftelsen en identifisering av de vesentligste risiki for virksomheten?
B80: Det må vurderes å gi kvalitative og kvantitative vurderinger av de viktigste faktorene som kan påvirke framtidig resultat.
A81: =+A79+1 -> 43 | B81: Dersom det i foregående årsberetninger eller årsregnskap er angitt resultatmål eller andre opplysninger om forventet utvikling, er det opplyst om forventningene er i samsvar med årets resultat, og er eventuelle avvik begrunnet?
A82: Finansiell risiko | C82: rskl § 2-2 (6)
C83: NRS 16, pkt 2.7
A84: =+A81+1 -> 44 | B84: Er det gitt opplysninger om finansiell risiko som er av betydning for å bedømme foretakets eiendeler, gjeld, finansiell stilling og resultat? | J84: =IF(F84<>"","Du har satt X for at forholdet ikke er avklart. Gi en nærmere foklaring i kommentarfeltet.","") -> 
A85: =+A84+1 -> 45 | B85: Omfatter opplysningene mål og strategier som er fastsatt for styring av finansiell risiko, herunder strategien for sikring av hver hovedtype av planlagte transaksjoner der sikringsvurdering er benyttet?
B86: Det bør opplyses på hvilke områder foretaket velger å bruke finansielle instrumenter, for eksempel • renter • valuta • råvarer • egenkapitalbaserte instrumenter Det bør videre opplyses om hvilke typer instrumenter som brukes, for eksempel • terminkontrakter • opsjoner
A87: =+A85+1 -> 46 | B87: Er det redegjort for foretakets eksponering mot markedsrisiko, kredittrisiko og likviditetsrisiko?
A88: =+A87+1 -> 47 | B88: Dersom det foreligger brudd på vilkår og/eller forutsetninger for lån (covenants), eller det forventes at dette vil skje i neste regnskapsperiode, er det opplyst om dette, eventuelt ved en henvisning til informasjonen om dette i årsregnskapet?
A89: Semtrale immaterielle ressurser | C89: rskl § 2-2 (7)
C90: NRS 16, pkt 2.8
B91: Sentrale immaterielle ressurser er ressurser uten fysisk substans som foretakets forretningsmodell grunnleggende er avhengig av, og som er en kilde til verdiskapning for foretaket. Informasjonskrav om sentrale immaterielle ressurser gjelder for følgende foretak: - Store foretak - Små og mellomstore foretak som er notert (mikroforetak er unntatt) For 2024 er det kun følgende foretak som er omfattet - jf overgangsregler til lov om endringer i regnskapsloven: - Foretak av allmenn interesse som er store foretak og som på balansedagen har et gjennomsnittlig antall ansatte på over 500 årsverk i regnskapsåret - Foretak av allmenn interesse som er morforetak i et stort konsern og som på balansedagen har et gjennomsnittlig antall ansatte i konsernet på over 500 årsverk i regnskapsåret | C91: Overgangsregler til lov 21. juni 2024 nr. 42 om endringer i regnskapsloven mv. (bærekraftsrapportering)
A92: =+A88+1 -> 48 | B92: Er det opplyst om sentrale immaterielle ressurser?
A93: =+A92+1 -> 49 | B93: Er det forklart på hvilken måte foretakets forretningsmodell grunnleggende er avhengig av slike ressurser, og på hvilken måte slike ressurser er en kilde til verdiskapning for virksomheten?
B94: Opplysninger om sentrale immaterielle ressurser skal gis i årsberetningen, men det er ikke pliktig at disse inngår i bærekraftsrapporteringen. Opplysninger om sentrale immaterielle ressurser som gjelder bærekraftsforhold, bør derimot inngå i bærekraftsrapporteringen.
A95: Fortsatt drift | C95: rskl § 2-2, (8)
C96: rskl § 4-5
C97: NRS 16, pkt 2.9
B98: Fortsatt drift forutsetningen skal omhandles i årsberetningen, og vil dekke tre prinsipielt forskjellige situasjoner: • Utvilsom fortsatt drift • Usikker fortsatt drift • Avvikling Standarden gir utdypende veiledning til årsberetningens innhold ved både usikkerhet om fortsatt drift og avvikling. Det er også gitt nærmere veiledning om årsberetningens innhold dersom styrets handleplikt ved tap av egenkapital har inntrådt ihht aksjeloven § 3-5. | J98: =IF(F98<>"","Du har satt X for at forholdet ikke er avklart. Gi en nærmere foklaring i kommentarfeltet.","") -> 
A99: =+A93+1 -> 50 | B99: Utvilsom fortsatt drift: Er det bekreftet at forutsetningen for fortsatt drift er til stede? | C99: rskl § 2-2, (8) nr 1 | J99: =IF(F99<>"","Du har satt X for at forholdet ikke er avklart. Gi en nærmere foklaring i kommentarfeltet.","") -> 
C100: NRS 16, pkt 2.9
A101: =+A99+1 -> 51 | B101: Usikker fortsatt drift: er det redegjort for usikkerheten om fortsatt drift? | C101: rskl § 2-2, (8) nr 2 | J101: =IF(F101<>"","Du har satt X for at forholdet ikke er avklart. Gi en nærmere foklaring i kommentarfeltet.","") -> 
C102: NRS 16, pkt 2.9
A103: =+A101+1 -> 52 | B103: Ved stor usikkerhet og tvil om fortsatt drift, er det opplyst om større poster i årsregnskapet som vil påvirkes dersom forutsetningen om fortsatt drift ikke legges til grunn for vurderingene? | C103: NRS 16, pkt 2.9 | J103: =IF(F103<>"","Du har satt X for at forholdet ikke er avklart. Gi en nærmere foklaring i kommentarfeltet.","") -> 
A104: =+A103+1 -> 53 | B104: Er virkningene, dersom det er mulig, kvantifisert? | C104: NRS 16, pkt 2.9 | J104: =IF(F104<>"","Du har satt X for at forholdet ikke er avklart. Gi en nærmere foklaring i kommentarfeltet.","") -> 
A105: =+A104+1 -> 54 | B105: Sannsynlig avvikling: Er det redegjort for hvordan virkelig verdi ved avvikling er beregnet dersom dette ikke fremgår i note til årsregnskapet? | C105: rskl § 2-2, (8) nr 4 | J105: =IF(F105<>"","Du har satt X for at forholdet ikke er avklart. Gi en nærmere foklaring i kommentarfeltet.","") -> 
C106: NRS 16, pkt 2.9
A107: =+A105+1 -> 55 | B107: Dersom styrets handleplikt etter asl/asal § 3-5 er inntrådt, er det opplyst om det er besluttet eller satt i verk tiltak for å sikre selskapets drift, eventuelt å oppløse selskapet? | C107: rskl § 2-2, (8) nr 3 | J107: =IF(F107<>"","Du har satt X for at forholdet ikke er avklart. Gi en nærmere foklaring i kommentarfeltet.","") -> 
C108: NRS 16, pkt 2.9
A109: Resultatdisponering og utbyttegrunnlag | C109: Rskl § 2-2, (9) | J109: =IF(F109<>"","Du har satt X for at forholdet ikke er avklart. Gi en nærmere foklaring i kommentarfeltet.","") -> 
C110: NRS 16, pkt. 2.10
A111: =+A107+1 -> 56 | B111: Dersom resultatregnskapet, noter eller evt. oppstilling av endring i egenkapitalen ikke inneholder forslag til anvendelse av overskudd eller dekning av tap, fremgår forslaget av årsberetningen? | J111: =IF(F111<>"","Du har satt X for at forholdet ikke er avklart. Gi en nærmere foklaring i kommentarfeltet.","") -> 
B112: Forslaget bør begrunnes i forhold til eventuelle inntjeningsmål, utbyttepolitikk og mål for kapitalstruktur | J112: =IF(F112<>"","Du har satt X for at forholdet ikke er avklart. Gi en nærmere foklaring i kommentarfeltet.","") -> 
A113: Opplysninger om miljø og sosiale forhold | C113: NRS 16 pkt 2.11 | J113: =IF(F113<>"","Du har satt X for at forholdet ikke er avklart. Gi en nærmere foklaring i kommentarfeltet.","") -> 
B114: Opplysninger om miljø og sosiale forhold omfatter arbeidsmiljø, likestilling og diskriminering, samt miljøforhold. Med "miljøforhold" menes klima, natur og miljø.
B115: Foretak som omfattes av plikten til å utarbeide bærekraftsraportering, anses for å ha oppfylt opplysningskravene i rskl § 2-2, tredje, tiende og ellevte ledd, herunder arbeidsforhold og miljøforhold. Denne sjekklisten omtaler kun opplysningskravene knyttet til miljø og sosiale forhold etter rskl § 2-2 og NRS 16, ikke kravene til bærekraftsrapportering. | J115: =IF(F115<>"","Du har satt X for at forholdet ikke er avklart. Gi en nærmere foklaring i kommentarfeltet.","") -> 
A116: Arbeidsmiljø | C116: rskl § 2-2, (10) | J116: =IF(F116<>"","Du har satt X for at forholdet ikke er avklart. Gi en nærmere foklaring i kommentarfeltet.","") -> 
C117: NRS 16, pkt 2.11
B118: Standarden gir utdypende veiledning til årsberetningens innhold vedrørende omtale av arbeidsmiljø, spesielt vedrørende sykefravær, skader og ulykker. | J118: =IF(F118<>"","Du har satt X for at forholdet ikke er avklart. Gi en nærmere foklaring i kommentarfeltet.","") -> 
A119: =+A111+1 -> 57 | B119: Er det gitt opplysninger om arbeidsmiljøet?
A120: =+A119+1 -> 58 | B120: Er det gitt en oversikt over eventuelle iverksatte tiltak som har betydning for arbeidsmiljøet?
A121: 59 | B121: Er det opplyst om eventuelle skader, herunder både personskader og materielle skader?
A122: 60 | B122: Er det opplyst om skader som gjelder både ulykker og andre skader, for eksempel slitasje- og belastningsskader?
A123: 61 | B123: Er det opplyst om eventuelle ulykker, herunder både ulykkens art, personskader og materielle skader? Opplysningene skal i utgangspunktet spesifiseres på enkelttilfeller, men det kan være mest oversiktlig å gi opplysninger om flere likeartede skader eller ulykker samlet.
A124: 62 | B124: Dersom foretaket har minst 5 årsverk, er det opplyst om sykefravær? Opplysningene skal omfatte både det totale sykefraværet i regnskapsåret, og hvor stor andel sykefraværet har utgjort av den totale arbeidstiden i regnskapsåret.
A125: Likestilling og diskriminering | C125: Lov om likestilling og forbud mot diskriminering § 26 a)
C126: NRS 16, pkt 2.11
B127: Følgende arbeidsgivere har utvidet aktivitetsplikt etter likestillings- og diskrimineringsloven § 26, 2. ledd: - alle offentlige virksomheter, uavhengig av størrelse, - private virksomheter som jevnlig sysselsetter mer enn 50 ansatte (ikke årsverk), - private virksomheter som jevnlig sysselsetter mellom 20 og 50 ansatte, når en av arbeidslivets parter i virksomheten krever det.
B128: For arbeidsgivere med utvidet aktivitetsplikt etter likestillings- og diskrimineringsloven § 26, 2. ledd (se definisjon ovenfor):
A129: =+A124+1 -> 63 | B129: Er det redegjort for den faktiske tilstanden når det gjelder kjønnslikestilling i virksomheten? | J129: =IF(F129<>"","Du har satt X for at forholdet ikke er avklart. Gi en nærmere foklaring i kommentarfeltet.","") -> 
B130: Det er varslet at redegjørelsesplikten på likestillingsområdet skal standardiseres via forskrift, slik forskrift er foreløpig ikke vedtatt.
A131: =+A129+1 -> 64 | B131: Er det redegjort for hva foretaket gjør for å oppfylle aktivitetsplikten etter likestillings- og diskrimineringsloven § 26? | J131: =IF(F131<>"","Du har satt X for at forholdet ikke er avklart. Gi en nærmere foklaring i kommentarfeltet.","") -> 
A132: =+A131+1 -> 65 | B132: Er redegjørelsen utformet slik at enkeltansattes personlige forhold ikke røpes? | J132: =IF(F132<>"","Du har satt X for at forholdet ikke er avklart. Gi en nærmere foklaring i kommentarfeltet.","") -> 
A133: 66 | B133: Fremgår resultatene av lønnskartleggingen av redegjørelsen i anonymisert form? | J133: =IF(F133<>"","Du har satt X for at forholdet ikke er avklart. Gi en nærmere foklaring i kommentarfeltet.","") -> 
B134: Redegjørelsen om likestilling og oppfyllelse av aktivitetsplikten skal gis i årsberetningen eller i annet offentlig tilgjengelig dokument. Dersom redegjørelsen gis i annet offentlig tilgjengelig dokument, og foretaket har en plikt til å levere årsberetning, skal det i årsberetningen opplyses hvor dokumentet finnes offentlig tilgjengelig. | J134: =IF(F134<>"","Du har satt X for at forholdet ikke er avklart. Gi en nærmere foklaring i kommentarfeltet.","") -> 
A135: Miljøforhold | C135: rskl § 2-2, (11) | J135: =IF(F135<>"","Du har satt X for at forholdet ikke er avklart. Gi en nærmere foklaring i kommentarfeltet.","") -> 
C136: NRS 16, pkt 2.11.3
B137: Det skal gis opplysninger om forhold ved virksomheten, herunder dens innsatsfaktorer og produkter, som kan medføre en ikke ubetydelig påvirkning på miljøforhold. Med begrepet "miljøforhold" menes klima, natur og miljø. Formålet med redegjørelsen er å gi et grunnlag for å vurdere hvordan virksomheten til foretaket påvirker miljøforhold, og å gi et bilde av selskapets miljømessige forpliktelser og utviklingsmuligheter. Regnskapsstandarden gir ytterligere veiledning om årsberetningens innhold vedrørende påvirking på miljøforhold. Det bør redegjøres for hvilke ambisjoner og mål foretaket har på miljøområdet og hvilke miljøkrav som forventes fra myndigheter, kunder og leverandører. Det bør også redegjøres for hvilke miljøforhold som er viktigst for foretaket. NRS 16 pkt 2.11.3 gir veiledning om redegjørelse for miljøforhold, herunder eksempler på forhold som vil kunne være sentrale med hensyn til virksomhetens påvirkning på miljøforhold. | J137: =IF(F137<>"","Du har satt X for at forholdet ikke er avklart. Gi en nærmere foklaring i kommentarfeltet.","") -> 
A138: =+A133+1 -> 67 | B138: Er det opplyst om forhold som kan medføre en ikke ubetydelig påvirkning på miljøforhold? | J138: =IF(F138<>"","Du har satt X for at forholdet ikke er avklart. Gi en nærmere foklaring i kommentarfeltet.","") -> 
A139: =+A138+1 -> 68 | B139: Omfatter opplysningene hvilke negative virkninger virksomheten har eller kan ha på klima, natur og miljø? | J139: =IF(F139<>"","Du har satt X for at forholdet ikke er avklart. Gi en nærmere foklaring i kommentarfeltet.","") -> 
A140: =+A139+1 -> 69 | B140: Er det redegjort for hvilke tiltak, både forebyggende og opprettende, som er eller planlegges iverksatt for å forhindre eller redusere slike negative virkninger? | J140: =IF(F140<>"","Du har satt X for at forholdet ikke er avklart. Gi en nærmere foklaring i kommentarfeltet.","") -> 
B141: Foretakets virksomhet kan bli påvirket av miljøforhold. Dette gjelder blant annet fysisk påvirkning, behov for omstilling, fremtidige reguleringer og miljøkrav.
A142: =+A140+1 -> 70 | B142: Dersom miljøforhold har en betydelig påvirkning på foretakets fremtidsutsikter, er det gitt opplysninger om hvilken påvirkning endringer i miljøforhold har eller vil ha på virksomheten? Se også avsnitt ovenfor om fremtidsutsikter. | J142: =IF(F142<>"","Du har satt X for at forholdet ikke er avklart. Gi en nærmere foklaring i kommentarfeltet.","") -> 
A143: Forsikring for styrets medlemmer og daglig leder
A144: =+A142+1 -> 71 | B144: Er det gitt opplysninger om det er tegnet forsikring for styrets medlemmer og daglig leder for deres mulige ansvar overfor foretaket og tredjepersoner, og i tilfelle om forsikringsdekningen? | C144: rskl § 2-2 (12) | J144: =IF(F144<>"","Du har satt X for at forholdet ikke er avklart. Gi en nærmere foklaring i kommentarfeltet.","") -> 
B145: Styreansvarsforsikringer varierer i innhold og kompleksitet. Å opplyse om forsikringsdekningen betyr ikke at det er krav om å opplyse om alle spesifikke vilkår, men hva som er kjernen i den forsikringsdekningen som er tegnet. | C145: NRS 16 pkt 2.12
A146: =+A144+1 -> 72 | B146: Hvis det ikke er tegnet forsikring for styremedlemmenes og daglig leders mulige ansvar overfor foretaket og tredjepersoner, er det opplyst om dette? | J146: =IF(F146<>"","Du har satt X for at forholdet ikke er avklart. Gi en nærmere foklaring i kommentarfeltet.","") -> 
A147: Tilleggskrav for noterte foretak | J147: =IF(F147<>"","Du har satt X for at forholdet ikke er avklart. Gi en nærmere foklaring i kommentarfeltet.","") -> 
B148: For regnskapspliktige som er noterte foretak , er det gitt følgende opplysninger om aksjeeierforhold i selskapet: | C148: rskl § 2-2 (13)
A149: =+A146+1 -> 73 | B149: • en beskrivelse av vedtektsbestemmelser som begrenser rettet til å omsette selskapets aksjer, | J149: =IF(F149<>"","Du har satt X for at forholdet ikke er avklart. Gi en nærmere foklaring i kommentarfeltet.","") -> 
A150: =+A149+1 -> 74 | B150: • en beskrivelse av hvem som utøver rettighetene til aksjer i eventuelle ansatteaksjeordninger når myndigheten ikke utøves direkte av de ansatte som er omfattet av ordningen,
A151: =+A150+1 -> 75 | B151: • avtaler mellom aksjeeiere selskapet er kjent med som begrenser mulighetene til å omsette eller utøve stemmerett for aksjer,
A152: =+A151+1 -> 76 | B152: • vesentlige avtaler selskapet er part i hvis vilkår trer i kraft, endres eller opphører som følge av et overtakelsestilbud, samt en redegjørelse for vilkårene. I den grad det vil medføre urimelig forretningsmessig ulempe at en avtale blir kjent kan foretaket la være å opplyse om avtalen. Unntaket kommer ikke til anvendelse dersom selskapet er forpliktet til å offentliggjøre opplysninger om avtalen i henhold til annen lovgivning.
A153: Ytelser, lån og sikkerhetsstillelse til ledende personer i foretak av allmenn interesse
A154: =+A152+1 -> 77 | B154: Ytelser, lån og sikkerhetsstillelse til ledende personer i foretak av allmenn interesse: Regnskapsloven § 7-31b stiller krav om at ytelser til ledende personer i store foretak skal opplyses i note til regnskapet. Disse opplysningene, samt opplysningene som kreves etter § 7-32 første ledd kan i stedet for i note gis i en rapport om godtgjørelse til ledende personer. Rapporten skal da inngå i årsberetningen. | C154: rskl § 7-31b
A155: Bærekraftsrapportering
B156: Plikten til å utarbeide bærekraftsrapportering reguleres av rskl § 2-3. Bærekraftsrapporteringen skal også inneholde informasjon som beskrevet i artikkel 8 i taksonomiforordningen. Kravene til utarbeidelsen av, og innholdet i, bærekraftsrapporteringen dekkes ikke i denne sjekklisten. Revisor som reviderer årsregnskapet skal likevel vurdere om årsberetningen, inklusive bærekraftrapporten, er konsistent med årsregnskapet, og om revisor, basert på kunnskapen opparbeidet gjennom revisjonen av årsregnskapet, har avdekket vesentlig feilinformasjon i årsberetningen, jf. revisorloven § 9-4. | C156: rskl § 2-4 (11)
A157: Redegjørelse etter åpenhetsloven
A158: =+A154+1 -> 78 | B158: Dersom selskapet er pliktig til å avgi redegjørelse etter åpenhetsloven, er det opplyst i årsberetningen om hvor redegjørelsen er tilgjengelig? | C158: åpenhetsloven § 5 | J158: =IF(F158<>"","Du har satt X for at forholdet ikke er avklart. Gi en nærmere foklaring i kommentarfeltet.","") -> 
B159: Etter åpenhetsloven § 5, 3. ledd kan redegjørelsen etter åpenhetsloven inngå i årsberetningen. Kravene til redegjørelse etter åpenhetsloven følger derfor nedenfor. Inneholder redegjørelsen minst: | C159: Åpenhetsloven § 5
A160: =+A158+1 -> 79 | B160: • en generell beskrivelse av virksomhetens organisering, driftsområde, retningslinjer og rutiner for å håndtere faktiske og potensielle negative konsekvenser for grunnleggende menneskerettigheter og anstendige arbeidsforhold
A161: =+A160+1 -> 80 | B161: • opplysninger om faktiske negative konsekvenser og vesentlig risiko for negative konsekvenser som virksomheten har avdekket gjennom sine aktsomhetsvurderinger
A162: =+A161+1 -> 81 | B162: • opplysninger om tiltak som virksomheten har iverksatt eller planlegger å iverksette for å stanse faktiske negative konsekvenser eller begrense vesentlig risiko for negative konsekvenser, og resultatet eller forventede resultater av disse tiltakene.
B163: Informasjonen kan utelates dersom den gjelder opplysninger om noens personlige forhold, eller opplysninger om tekniske innretninger og fremgangsmåter eller andre drifts- eller forretningsforhold som det vil være av konkurransemessig betydning å hemmeligholde av hensyn til den opplysningene angår. Dette unntaket gjelder imidlertid ikke konsekvenser for grunnleggende menneskerettigheter som virksomheten er kjent med.
B164: Opplysningskravene til redegjørelsen omfatter ikke informasjon som er gradert etter sikkerhetsloven eller beskyttet etter åndsverkloven.
A165: Redegjørelse om foretaksstyring | C165: rskl § 2-9
C166: NUES (Norsk Anbefaling Eierstyring og Selskapsledelse)
B167: Noterte foretak skal i årsberetningen eller i dokument som det er henvist til i årsberetningen, redegjøre for sine prinsipper og praksis vedrørende foretaksstyring. | C167: NUES kap 1 Redegjørelse for eierstyring og selskapsledelse
B168: Inneholder redegjørelsen for prinsipper og praksis vedrørende foretaksstyring minst følgende opplysninger:
A169: =+A162+1 -> 82 | B169: • en beskrivelse av hovedelementene i foretakets, og for regnskapspliktige som utarbeider konsernregnskap eventuelt også konsernets, systemer for internkontroll og risikostyring knyttet til regnskapsrapporteringsprosessen | C169: NUES kap 10 Risikostyring og intern kontroll | J169: =IF(F169<>"","Du har satt X for at forholdet ikke er avklart. Gi en nærmere foklaring i kommentarfeltet.","") -> 
A170: =+A169+1 -> 83 | B170: • vedtektsbestemmelser som regulerer oppnevning og utskifting av styremedlemmer | C170: NUES kap 7 Valgkomité
A171: =+A170+1 -> 84 | B171: • vedtektsbestemmelser og fullmakter som gir styret adgang til å beslutte at foretaket skal kjøpe tilbake eller utstede egne aksjer eller egenkapitalbevis | C171: NUES kap 4 Likebehandling av aksjeeiere og transaksjoner med nærstående
B172: Følgende tre punkter om retningslinjer for likestilling og mangfold er ikke pliktige for regnskapspliktig som utarbeider bærekraftsrapportering etter rskl §§ 2-3 til 2-7, hvis informasjonen er gitt i bærekraftsrapporteringen og det er tatt inn en henvisning til informasjonen i redegjørelsen om foretaksstyring:
A173: =+A171+1 -> 85 | B173: • en beskrivelse av foretakets retningslinjer for likestilling og mangfold med hensyn til kjønn og andre forhold slik som alder, funksjonsnedsettelse og utdannings- og yrkesbakgrunn for sammensetning av styre, ledelses- og kontrollorganer og deres eventuelle underutvalg.
A174: =+A173+1 -> 86 | B174: • mål for retningslinjene for likestilling og mangfold, hvordan de har blitt gjennomført og virkningen av dem i rapporteringsperioden
A175: =+A174+1 -> 87 | B175: • hvis foretaket ikke har retningslinjer for likestilling og mangfold; en begrunnelse for dette.
B176: Følgende krav gjelder ikke for regnskapspliktige som ikke har utstedt aksjer eller egenkapitalbevis som er notert på et regulert marked eller på en multilateral handelsfasilitet, jf vphl § 2-7 femte ledd:
A177: =+A175+1 -> 88 | B177: • en angivelse av anbefalinger og regelverk om foretaksstyring som foretaket er omfattet av eller for øvrig velger å følge
A178: =+A177+1 -> 89 | B178: • opplysninger om hvor anbefalinger og regelverk som nevnt i spørsmålet over er offentlig tilgjengelige
A179: =+A178+1 -> 90 | B179: • en begrunnelse for eventuelle avvik fra anbefalinger og regelverk som nevnt i spørsmålet over | C179: NUES kap 1 Redegjørelse for eierstyring og selskapsledelse
A180: =+A179+1 -> 91 | B180: • vedtektsbestemmelser som helt eller delvis utvider eller fraviker bestemmelser i allmennaksjeloven kapittel 5 | C180: NUES kap 6 Generalforsamling
A181: =+A180+1 -> 92 | B181: • sammensetningen til styre, bedriftsforsamling, representantskap og kontrollkomite; eventuelle arbeidsutvalg for disse organene, samt en beskrivelse av hovedelementene i gjeldende instrukser og retningslinjer for organenes og eventuelle utvalgs arbeid | C181: NUES kap 8 Styret, sammensetning og uavhengighet
C182: NUES kap 9 Styrets arbeid
C183: NUES kap 13 Informasjon og kommunikasjon
A184: Rapportering om betalinger til myndigheter m.v. (land-for-land rapportering) | C184: rskl § 2-10
B185: Regnskapspliktige som driver virksomhet innen utvinningsindustrien skal utarbeide og offentliggjøre en årlig rapport med opplysninger om sine betalinger til myndigheter på land- og prosjektnivå. Det samme gjelder skogdrift innen ikke-beplantet skog.
B186: Rapporteringsplikten gjelder foretak som som har regnskapsplikt etter rskl § 1-2 nr 1, 3, 4, 5, 6 eller nr 13 og som på balansedagen tilfredsstiller minst to av de tre følgende vilkår: | C186: Forskrift om land-for-land-rapportering F20.12.2013 nr 1682
B187: • årlig salgsinntekt mer enn 320 millioner kroner,
B188: • balansesum mer enn 160 millioner kroner,
B189: • gjennomsnittlig antall ansatte gjennom regnskapsåret mer enn 250.
B190: Reglene gjelder også for foretak som er regnskapspliktige etter rskl § 1-2 nr. 2, eller er utsteder med Norge som hjemstat etter vphl § 5-4 annet til fjerde ledd.
B191: Rapporteringsplikten gjelder også foretak som er utsteder eller er regnskapspliktig og enten alene eller sammen med datterselskapene tilfredsstiller størrelseskriteriene nevnt ovenfor, som har ett eller flere datterselskaper som driver virksomhet innen utvinningsindustrien eller skogsdrift innen ikke-beplantet skog.
B192: Rapporteringsplikten gjelder ikke for regnskapspliktige som utarbeider en årlig rapport etter tilsvarende utenlandsk regelverk. Plikten gjelder heller ikke dersom tilstrekkelige opplysninger er tatt inn i morselskapets årlige rapport om konsernets betalinger til myndigheter, utarbeidet som konsernrapportering.
A193: =+A181+1 -> 93 | B193: For foretak som kommer inn under rapporteringskravene om betalinger til myndigheter mv., er det i årsberetningen opplyst om hvor rapporten er offentliggjort? | C193: rskl § 2-10 | J193: =IF(F193<>"","Du har satt X for at forholdet ikke er avklart. Gi en nærmere foklaring i kommentarfeltet.","") -> 
B194: Inneholder rapporten minst følgende opplysninger om betalinger til myndigheter: (kravene gjelder ikke for betalinger som tilsvarer mindre enn kr 800.000, som gjøres enkeltvis eller som flere sammenhørende betalinger innenfor samme regnskapsår) | C194: Forskrift om land-for-land-rapportering F20.12.2013 nr 1682
A195: =+A193+1 -> 94 | B195: Den samlede betaling til hver myndighet i løpet av regnskapsåret, fordelt per land og fordelt per type betaling (typer betaling er definert i forskriften § 3 nr. 5 bokstav a-h)? | C195: Forskriften § 4 | J195: =IF(F195<>"","Du har satt X for at forholdet ikke er avklart. Gi en nærmere foklaring i kommentarfeltet.","") -> 
A196: =+A195+1 -> 95 | B196: Betalinger knyttet til et prosjekt, rapportert per prosjekt og per type betaling som nevnt i § 3 nr. 5 bokstav a-h?
A197: =+A196+1 -> 96 | B197: Når det er plikt til å gi opplysninger om betalinger til myndigheter, inneholder rapporten også opplysninger om foretakets investeringer, salgsinntekt, produksjonsvolum og kostnader, fordelt på de enkelte land hvor foretaket driver virksomhet?
A198: 97 | B198: Er det i rapporten også opplyst om foretakets rentekostnad til andre foretak i samme konsern som er hjemmehørende i andre jurisdiksjoner enn foretaket?
A199: 98 | B199: Er opplysningene i de to foregående spørsmålene så vidt mulig hentet fra årsregnskapet, og er eventuelle forskjeller forklart?
B200: Beløp som er utbetalt av foretaket for forpliktelser som pålegges på enhetsnivå, kan rapporteres på enhetsnivå i stedet for på prosjektnivå.
A201: =+A199+1 -> 99 | B201: For betalinger in natura til en myndighet, er både verdi og, når relevant, mengde, oppgitt? | J201: =IF(F201<>"","Du har satt X for at forholdet ikke er avklart. Gi en nærmere foklaring i kommentarfeltet.","") -> 
... 53 more rows

Sheet Sheet1 (hidden)

Sheet Ikke besvart (hidden)
A1: Ikke besvart | B1: ='Sjekkliste for utfylling'!B2 -> 0 | C1: ='Sjekkliste for utfylling'!B3 -> 2024 | D1: Kommentarer
A2: 1 | B2: Er årsberetningen på norsk, eller annet språk som selskapet har fått dispensasjon til å bruke?
A3: 2 | B3: Er årsberetningen signert av samtlige styremedlemmer og eventuelt av daglig leder, alternativt av deltakerne eller medlemmene hvis foretaket ikke har styre eller daglig leder?
A4: 3 | B4: Dersom en som skal signere har innvendinger mot årsregnskapet eller årsberetningen, har vedkommende signert med påtegnet forbehold og gitt nærmere redegjørelse?
A5: 4 | B5: Er årsberetningen fastsatt innenfor lovens frist?
A6: 5 | B6: Gir årsberetningen et dekkende bilde av foretakets historiske og framtidige utvikling, resultat og stilling?
A7: 6 | B7: Er årsberetningen skrevet så klart og presist som mulig, i et forståelig språk, og med en balansert omtale av positive og negative forhold i den grad det gis slik omtale?
A8: 7 | B8: Er det konsistens i behandlingen av samme forhold i årsberetningen og årsregnskapet?
A9: 8 | B9: Er det redegjort for forholdet dersom utviklingen ikke har vært i overensstemmelse med vesentlige utsagn i tidligere årsberetninger?
A10: 9 | B10: Er det lagt vekt på vurderinger av kvalitativ art som forklarer forholdstall og annen tallbasert informasjon?
A11: 10 | B11: Kan refererte regnskapsmessige tallstørrelser i årsberetningen gjenfinnes i årsregnskapet, eventuelt som avstemming i notene?
A12: 11 | B12: For morselskap som utarbeider konsernregnskap, dekker årsberetningen også virksomheten i konsernet?
A13: 12 | B13: Gir informasjonen om virksomheten i konsernet grunnlag for å vurdere morselskapet og datterselskapene som en enhet?
A14: 13 | B14: Er det opplyst om arten av virksomheten?
A15: 14 | B15: Dersom det er flere typer virksomhet, er det gitt opplysninger om hver virksomhet?
A16: 15 | B16: Er det opplyst hvor virksomheten drives?
A17: 16 | B17: Ved flere filialer eller avdelinger, er det opplyst om hvor de ulike filialene / avdelingene drives?
A18: 17 | B18: Er det gitt en rettvisende oversikt over utvikling og resultat av foretakets virksomhet og dets stilling?
A19: 18 | B19: Er sentrale risikoer og usikkerhetsfaktorer beskrevet?
A20: 19 | B20: Er oversikten en balansert og fyllestgjørende analyse av utvikling, resultat og stilling?
A21: 20 | B21: I den grad det anses nødvendig for å forstå foretakets utvikling, resultat eller stilling, inneholder analysen både finansielle og, der det passer, ikke-finansielle sentrale og aktuelle resultatindikatorer, inkludert opplysninger om miljøforhold og forhold som gjelder arbeidstakere?
A22: 21 | B22: Inneholder årsberetningen, der det passer, henvisninger og tilleggsforklaringer til beløp oppført i årsregnskapet?
A23: 22 | B23: Er hovedfaktorene som påvirker virksomheten identifisert og forklart?
A24: 23 | B24: Er uvanlige eller ekstraordinære forhold belyst?
A25: 24 | B25: Er det opplyst om årsaken til og virkningen av vesentlige endringer i regnskapsprinsipper?
A26: 25 | B26: Er det opplyst om viktige hendelser etter balansedagen, samt redegjort for hendelsenes faktiske eller potensielle virkning på resultat og stilling?
A27: 26 | B27: Er endringer av overordnet og strategisk betydning, som for eksempel endring i satsningsområder og vesentlige strukturelle endringer, omtalt?
A28: 27 | B28: Er forventede virkninger på resultat og stilling av slike endringer kommentert?
A29: 28 | B29: Er det gitt en overordnet vurdering av total usikkerhet vedrørende foretakets regnskapsførte resultat og finansielle stilling?
A30: 29 | B30: Er viktige utviklingstrekk for virksomheten som er av betydning for å bedømme foretakets stilling og resultat drøftet, for eksempel: o Endringer i markedsforhold o Nye produkter og tjenester o Endringer i markedsandeler eller markedsposisjoner o Endringer i salgsmengde eller marginer o Endringer i valutakurser og relevante prisforhold o Andre spesielle forhold som kan ha påvirket resultatet
A31: 30 | B31: Er det gitt opplysninger om eventuelle forsknings- og utviklingsaktiviteter?
A32: 31 | B32: Er spesielle forhold som i betydelig grad kan ha påvirket årsregnskapet kommentert, for eksempel: o Store enkelttransaksjoner o Kjøp eller salg av foretak, ny virksomhet, avviklet virksomhet og andre viktige anskaffelser og avhendelser o Realisering eller oppbygging av merverdier i for eksempel verdipapirer eller eiendom o Særlige poster
A33: 32 | B33: Er likviditetssituasjonen på balansedagen gjennomgått?
A34: 33 | B34: Dersom ikke tilsvarende informasjon gis gjennom øvrige deler av årsberetningen, er kontantstrømoppstillingen kommentert?
A35: 34 | B35: Er det redegjort for eventuelle vesentlige avvik mellom driftsresultat og kontantstrøm fra operasjonelle aktiviteter?
A36: 35 | B36: Dersom man anser det for å være sentral informasjon for brukerne, er det informert om skillet mellom investeringer som er gjort for å opprettholde kapasiteten og investeringer som er gjort for å øke kapasiteten / lønnsomheten?
A37: 36 | B37: Er det gitt en vurdering av sammenhengene mellom kontantstrømmene fra operasjonelle aktiviteter og investeringsaktiviteter, herunder evnen til egenfinansiering av investeringer?
A38: 37 | B38: Er det redegjort for formålet med og virkningen av større finansielle transaksjoner som er gjennomført fram til avleggelsen av årsberetningen?
A39: 38 | B39: Er det gitt er redegjørelse som gir grunnlag for å vurdere foretakets framtidige utvikling?
A40: 39 | B40: Er det gitt en vurdering av foretakets forventede økonomiske utvikling på et overordnet nivå, med angivelse av de viktigste forutsetninger som er lagt til grunn?
A41: 40 | B41: Har styret presisert at det normalt er betydelig usikkerhet knyttet til vurderinger av fremtidige forhold?
A42: 41 | B42: Er faktorer og forhold som vil ha betydning for fremtidige resultater drøftet?
A43: 42 | B43: Omfatter drøftelsen en identifisering av de vesentligste risiki for virksomheten?
A44: 43 | B44: Dersom det i foregående årsberetninger eller årsregnskap er angitt resultatmål eller andre opplysninger om forventet utvikling, er det opplyst om forventningene er i samsvar med årets resultat, og er eventuelle avvik begrunnet?
A45: 44 | B45: Er det gitt opplysninger om finansiell risiko som er av betydning for å bedømme foretakets eiendeler, gjeld, finansiell stilling og resultat?
A46: 45 | B46: Omfatter opplysningene mål og strategier som er fastsatt for styring av finansiell risiko, herunder strategien for sikring av hver hovedtype av planlagte transaksjoner der sikringsvurdering er benyttet?
A47: 46 | B47: Er det redegjort for foretakets eksponering mot markedsrisiko, kredittrisiko og likviditetsrisiko?
A48: 47 | B48: Dersom det foreligger brudd på vilkår og/eller forutsetninger for lån (covenants), eller det forventes at dette vil skje i neste regnskapsperiode, er det opplyst om dette, eventuelt ved en henvisning til informasjonen om dette i årsregnskapet?
A49: 48 | B49: Er det opplyst om sentrale immaterielle ressurser?
A50: 49 | B50: Er det forklart på hvilken måte foretakets forretningsmodell grunnleggende er avhengig av slike ressurser, og på hvilken måte slike ressurser er en kilde til verdiskapning for virksomheten?
A51: 50 | B51: Utvilsom fortsatt drift: Er det bekreftet at forutsetningen for fortsatt drift er til stede?
A52: 51 | B52: Usikker fortsatt drift: er det redegjort for usikkerheten om fortsatt drift?
A53: 52 | B53: Ved stor usikkerhet og tvil om fortsatt drift, er det opplyst om større poster i årsregnskapet som vil påvirkes dersom forutsetningen om fortsatt drift ikke legges til grunn for vurderingene?
A54: 53 | B54: Er virkningene, dersom det er mulig, kvantifisert?
A55: 54 | B55: Sannsynlig avvikling: Er det redegjort for hvordan virkelig verdi ved avvikling er beregnet dersom dette ikke fremgår i note til årsregnskapet?
A56: 55 | B56: Dersom styrets handleplikt etter asl/asal § 3-5 er inntrådt, er det opplyst om det er besluttet eller satt i verk tiltak for å sikre selskapets drift, eventuelt å oppløse selskapet?
A57: 56 | B57: Dersom resultatregnskapet, noter eller evt. oppstilling av endring i egenkapitalen ikke inneholder forslag til anvendelse av overskudd eller dekning av tap, fremgår forslaget av årsberetningen?
A58: 57 | B58: Er det gitt opplysninger om arbeidsmiljøet?
A59: 58 | B59: Er det gitt en oversikt over eventuelle iverksatte tiltak som har betydning for arbeidsmiljøet?
A60: 59 | B60: Er det opplyst om eventuelle skader, herunder både personskader og materielle skader?
A61: 60 | B61: Er det opplyst om skader som gjelder både ulykker og andre skader, for eksempel slitasje- og belastningsskader?
A62: 61 | B62: Er det opplyst om eventuelle ulykker, herunder både ulykkens art, personskader og materielle skader? Opplysningene skal i utgangspunktet spesifiseres på enkelttilfeller, men det kan være mest oversiktlig å gi opplysninger om felere likeartede skader eller ulykker samlet.
A63: 62 | B63: Dersom foretaket har minst 5 årsverk, er det opplyst om sykefravær? Opplysningene skal omfatte både det totale sykefraværet i regnskapsåret, og hvor stor andel sykefraværet har utgjort av den totale arbeidstiden i regnskapsåret.
A64: 63 | B64: Er det redegjort for den faktiske tilstanden når det gjelder kjønnslikestilling i virksomheten?
A65: 64 | B65: Er det redegjort for hva foretaket gjør for å oppfylle aktivitetsplikten etter likestillings- og diskrimineringsloven § 26?
A66: 65 | B66: Er redegjørelsen utformet slik at enkeltansattes personlige forhold ikke røpes?
A67: 66 | B67: Fremgår resultatene av lønnskartleggingen av redegjørelsen i anonymisert form?
A68: 67 | B68: Er det opplyst om forhold som kan medføre en ikke ubetydelig påvirkning på miljøforhold?
A69: 68 | B69: Omfatter opplysningene hvilke negative virkninger virksomheten har eller kan ha på klima, natur og miljø?
A70: 69 | B70: Er det redegjort for hvilke tiltak, både forebyggende og opprettende, som er eller planleggs iverksatt for å forhindre eller redusere slike negative virkninger?
A71: 70 | B71: Dersom miljøforhold har en betydelig påvirkning på foretakets fremtidsutsikter, er det gitt opplysninger om hvilken påvirkning endringer i miljøforhold har eller vil ha på virksomheten? Se også avsnitt ovenfor om fremtidsutsikter.
A72: 71 | B72: Er det gitt opplysninger om det er tegnet forsikring for styrets medlemmer og daglig leder for deres mulige ansvar overfor foretaket og tredjepersoner, og i tilfelle om forsikringsdekningen?
A73: 72 | B73: Hvis det ikke er tegnet forsikring for styremedlemmenes og daglig leders mulige ansvar overfor foretaket og tredjepersoner, er det opplyst om dette?
A74: 73 | B74: • en beskrivelse av vedtektsbestemmelser som begrenser rettet til å omsette selskapets aksjer,
A75: 74 | B75: • en beskrivelse av hvem som utøver rettighetene til aksjer i eventuelle ansatteaksjeordninger når myndigheten ikke utøves direkte av de ansatte som er omfattet av ordningen,
A76: 75 | B76: • avtaler mellom aksjeeiere selskapet er kjent med som begrenser mulighetene til å omsette eller utøve stemmerett for aksjer,
A77: 76 | B77: • vesentlige avtaler selskapet er part i hvis vilkår trer i kraft, endres eller opphører som følge av et overtakelsestilbud, samt en redegjørelse for vilkårene. I den grad det vil medføre urimelig forretningsmessig ulempe at en avtale blir kjent kan foretaket la være å opplyse om avtalen. Unntaket kommer ikke til anvendelse dersom selskapet er forpliktet til å offentliggjøre opplysninger om avtalen i henhold til annen lovgivning.
A78: 77 | B78: Ytelser, lån og sikkerhetsstillelse til ledende personer i foretak av allmenn interesse: Regnskapsloven § 7-31b stiller krav om at ytelser til ledende personer i store foretak skal opplyses i note til regnskapet. Disse opplysningene, samt opplysningene som kreves etter § 7-32 første ledd kan i stedet for i note gis i en rapport om godtgjørelse til ledende personer. Rapporten skal da inngå i årsberetningen.
A79: 78 | B79: Dersom selskapet er underlagt kravene om taksonomirapportering, har selskapet gitt tilstrekkelig informasjon i forhold til kravene i artikkel 8 i taksonomiforordningen?
A80: 79 | B80: Dersom selskapet er pliktig til å avgi redegjørelse etter åpenhetsloven, er det opplyst i årsberetningen om hvor redegjørelsen er tilgjengelig?
A81: 80 | B81: • en generell beskrivelse av virksomhetens organisering, driftsområde, retningslinjer og rutiner for å håndtere faktiske og potensielle negative konsekvenser for grunnleggende menneskerettigheter og anstendige arbeidsforhold
A82: 81 | B82: • opplysninger om faktiske negative konsekvenser og vesentlig risiko for negative konsekvenser som virksomheten har avdekket gjennom sine aktsomhetsvurderinger
A83: 82 | B83: • opplysninger om tiltak som virksomheten har iverksatt eller planlegger å iverksette for å stanse faktiske negative konsekvenser eller begrense vesentlig risiko for negative konsekvenser, og resultatet eller forventede resultater av disse tiltakene.
A84: 83 | B84: • en beskrivelse av hovedelementene i foretakets, og for regnskapspliktige som utarbeider konsernregnskap eventuelt også konsernets, systemer for internkontroll og risikostyring knyttet til regnskapsrapporteringsprosessen
A85: 84 | B85: • vedtektsbestemmelser som regulerer oppnevning og utskifting av styremedlemmer
A86: 85 | B86: • vedtektsbestemmelser og fullmakter som gir styret adgang til å beslutte at foretaket skal kjøpe tilbake eller utstede egne aksjer eller egenkapitalbevis
A87: 86 | B87: • en beskrivelse av foretakets retningslinjer for likestilling og mangfold med hensyn til kjønn og andre forhold slik som alder, funksjonsnedsettelse og utdannings- og yrkesbakgrunn for sammensetning av styre, ledelses- og kontrollorganer og deres eventuelle underutvalg.
A88: 87 | B88: • mål for retningslinjene for likestilling og mangfold, hvordan de har blitt gjennomført og virkningen av dem i rapporteringsperioden
A89: 88 | B89: • hvis foretaket ikke har retningslinjer for likestilling og mangfold; en begrunnelse for dette.
A90: 89 | B90: • en angivelse av anbefalinger og regelverk om foretaksstyring som foretaket er omfattet av eller for øvrig velger å følge
A91: 90 | B91: • opplysninger om hvor anbefalinger og regelverk som nevnt i spørsmålet over er offentlig tilgjengelige
A92: 91 | B92: • en begrunnelse for eventuelle avvik fra anbefalinger og regelverk som nevnt i spørsmålet over
A93: 92 | B93: • vedtektsbestemmelser som helt eller delvis utvider eller fraviker bestemmelser i allmennaksjeloven kapittel 5
A94: 93 | B94: • sammensetningen til styre, bedriftsforsamling, representantskap og kontrollkomite; eventuelle arbeidsutvalg for disse organene, samt en beskrivelse av hovedelementene i gjeldende instrukser og retningslinjer for organenes og eventuelle utvalgs arbeid
A95: 94 | B95: For foretak som kommer inn under rapporteringskravene om betalinger til myndigheter mv., er det i årsberetningen opplyst om hvor rapporten er offentliggjort?
A96: 95 | B96: Den samlede betaling til hver myndighet i løpet av regnskapsåret, fordelt per land og fordelt per type betaling (typer betaling er definert i forskriften § 3 nr. 5 bokstav a-h)?
A97: 96 | B97: Betalinger knyttet til et prosjekt, rapportert per prosjekt og per type betaling som nevnt i § 3 nr. 5 bokstav a-h?
A98: 97 | B98: Når det er plikt til å gi opplysninger om betalinger til myndigheter, inneholder rapporten også opplysninger om foretakets investeringer, salgsinntekt, produksjonsvolum og kostnader, fordelt på de enkelte land hvor foretaket driver virksomhet?
A99: 98 | B99: Er det i rapporten også opplyst om foretakets rentekostnad til andre foretak i samme konsern som er hjemmehørende i andre jurisdiksjoner enn foretaket?
A100: 99 | B100: Er opplysningene i de to foregående spørsmålene så vidt mulig hentet fra årsregnskapet, og er eventuelle forskjeller forklart?
A101: 100 | B101: For betalinger in natura til en myndighet, er både verdi og, når relevant, mengde, oppgitt?
A102: 101 | B102: Er det gitt en forklaring om hvordan verdien er fastsatt?
A103: 102 | B103: Den samlede betaling til hver myndighet i løpet av regnskapsåret, fordelt per land og fordelt per type betaling (typer betaling er definert i forskriften § 3 nr. 5 bokstav a-h)?
A104: 103 | B104: Betalinger knyttet til et prosjekt, rapportert per prosjekt og per type betaling som nevnt i § 3 nr. 5 bokstav a-h?
A105: 104 | B105: Når det er plikt til å gi opplysninger om betalinger til myndigheter, inneholder rapporten også opplysninger om foretakets investeringer, salgsinntekt, produksjonsvolum og kostnader, fordelt på de enkelte land hvor foretaket driver virksomhet?
A106: 105 | B106: Dersom unntak beskrevet ovenfor er benyttet, er det gitt en nærmere forklaring på hvorfor unntaket er benyttet, hvilket datterselskap det gjelder, samt hvilke tiltak som er iverksatt for å forhindre at tilsvarende unntak benyttes for senere rapportering?
A107: 106 | B107: a. hvor datterselskapet er hjemmehørende,
A108: 107 | B108: b. antall ansatte,
A109: 108 | B109: c. rentekostnad til andre foretak i samme konsern som er hjemmehørende i andre jurisdiksjoner enn datterselskapet,
A110: 109 | B110: d. en kortfattet beskrivelse av datterselskapets aktiviteter,
A111: 110 | B111: e. netto omsetning, inkludert omsetning med foretak i samme konsern,
A112: 111 | B112: f. resultat før skatt,
A113: 112 | B113: g. inntektsskatt i regnskapsåret som beregnet av den skattepliktiges overskudd eller underskudd i regnskapsåret,
A114: 113 | B114: h. inntektsskatt som er betalt i løpet av det aktuelle regnskapsåret av datterselskapet,
A115: 114 | B115: i. akkumulert fortjeneste
A116: 115 | B116: Er opplysningene så vidt mulig hentet fra årsregnskapet, og er eventuelle forskjeller forklart?
A117: 116 | B117: Dersom institusjonens kapitaldekning er under gjeldende minimumskrav, er det gjort oppmerksom på dette og redegjort for tiltak som er truffet for å sikre institusjonens drift?
A118: 117 | B118: Dersom foretaket ikke oppfyller gjeldende krav til ansvarlig kapital eller kapitalen for øvrig ikke er forsvarlig sett i forhold til virksomheten, har styret redegjort for dette og uttalt seg om tiltak som er truffet eller som skal treffes for å sikre selskapets drift?
A119: 118 | B119: Er det gitt en beskrivelse av de finansielle risikoer som selskapet er, og gjennom regnskapsåret har vært, eksponert for? Styret skal redegjøre for de mål og strategier som er fastsatt for risikostyring, og sammenhengen mellom disse og selskapets overordnede mål og strategier. Det skal gis en overordnet beskrivelse av selskapets risikostyring og organiseringen av denne.
A120: 119 | B120: Dersom livsforsikringsselskapet benytter bufferfond til å dekke renteforpliktelser på forsikringskontrakter, har styret redegjort for dette?
A121: 120 | B121: Er det opplyst om hvilket forvaltningsselskap som er forretningsfører og hvem som er depotmottaker for verdipapirfondet?
A122: 121 | B122: Er det redegjort for den finansielle risikoen som har vært knyttet til virksomheten i regnskapsåret. Det skal redegjøres for verdipapirfondets risikostyring og organisering av denne?
A123: 122 | B123: Er det gitt informasjon om verdiutviklingen for en andel i perioden? Verdiutviklingen skal kommenteres særskilt i forhold til verdipapirfondets risikoprofil.
A124: 123 | B124: Er det redegjort for om det har vært ekstraordinært store innløsninger i perioden og håndteringen av disse? Dersom ekstraordinært store innløsninger har hatt innvirkning på andelenes verdiutvikling skal dette kommenteres.
A125: 124 | B125: Er opplysninger om forutsetningen om fortsatt drift etter regnskapsloven § 2-2 (8) nr. 2-4, også gitt om forvaltningsselskapet for verdipapirfondet?
A126: 125 | B126: Dersom foretakets kapitaldekning er under gjeldende minimumskrav, er det gjort oppmerksom på dette og redegjort for tiltak som er truffet for å sikre foretakets drift?
A127: 126 | B127: Dersom pensjonsforetakets solvensmarginkapital ikke oppfyller gjeldende minimumskrav eller for øvrig ikke er forsvarlig sett i forhold til virksomheten, har styret redegjort for dette og uttalt seg om tiltak som er truffet eller som skal treffes for å sikre pensjonsforetakets drift?
A128: 127 | B128: Er det gitt en beskrivelse av de finansielle risikoer som pensjonsforetaket er, og gjennom regnskapsåret har vært, eksponert for?
A129: 128 | B129: Har styret redegjort for de mål og strategier som er fastsatt for risikostyring, og sammenhengen mellom disse og pensjonsforetakets overordnede mål og strategier?
A130: 129 | B130: Er det gitt en overordnet beskrivelse av pensjonsforetakets risikostyring og organiseringen av denne?
A131: 130 | B131: Dersom pensjonsforetaket benytter bufferfondet til å dekke renteforpliktelser på forsikringskontrakter, har styret redegjort for dette?
A132: 131 | B132: Dersom pensjonsforetaket benytter risikoutjevningsfondet til å styrke avsetningen til premiereserve, har styret redegjort for dette?
A133: 132 | B133: I tilknytning til opplysninger om forutsetningen om fortsatt drift er det opplyst særskilt dersom disponible midler er negative og om tiltak som er iverksatt og vurdert i denne forbindelse?

Sheet JA-svar (hidden)
C1: =COUNTIF(C2:C3,"=1")-D1 -> 0 | D1: =SUM(D2:D328) -> 0 | E1: JA-svar | F1: ='Sjekkliste for utfylling'!B2 -> 0 | G1: ='Sjekkliste for utfylling'!B3 -> 2024 | H1: ='Sjekkliste for utfylling'!C3 -> 0
A2: ='Sjekkliste for utfylling'!A13 -> 1 | B2: =IF('Sjekkliste for utfylling'!E13<>"",1,0) -> 0 | C2: =SUM(B2:B2) -> 0 | E2: =IF($C2=1,'Sjekkliste for utfylling'!A13,"") ->  | F2: =IF($C2=1,'Sjekkliste for utfylling'!B13,"") ->  | H2: =IF(C2=1,'Sjekkliste for utfylling'!H13," ") -> 
A3: ='Sjekkliste for utfylling'!A14 -> 2 | B3: =IF('Sjekkliste for utfylling'!E14<>"",1,0) -> 0 | C3: 0 | E3: =IF($C3=1,'Sjekkliste for utfylling'!A14,"") ->  | F3: =IF($C3=1,'Sjekkliste for utfylling'!B14,"") ->  | H3: =IF(C3=1,'Sjekkliste for utfylling'!H14," ") -> 
A4: ='Sjekkliste for utfylling'!A15 -> 3 | B4: =IF('Sjekkliste for utfylling'!E15<>"",1,0) -> 0 | C4: 0 | E4: =IF($C4=1,'Sjekkliste for utfylling'!A15,"") ->  | F4: =IF($C4=1,'Sjekkliste for utfylling'!B15,"") ->  | H4: =IF(C4=1,'Sjekkliste for utfylling'!H15," ") -> 
A5: ='Sjekkliste for utfylling'!A18 -> 4 | B5: =IF('Sjekkliste for utfylling'!E18<>"",1,0) -> 0 | C5: 0 | E5: =IF($C5=1,'Sjekkliste for utfylling'!A18,"") ->  | F5: =IF($C5=1,'Sjekkliste for utfylling'!B18,"") ->  | H5: =IF(C5=1,'Sjekkliste for utfylling'!H18," ") -> 
A6: ='Sjekkliste for utfylling'!A21 -> 5 | B6: =IF('Sjekkliste for utfylling'!E21<>"",1,0) -> 0 | C6: 0 | E6: =IF($C6=1,'Sjekkliste for utfylling'!A21,"") ->  | F6: =IF($C6=1,'Sjekkliste for utfylling'!B21,"") ->  | H6: =IF(C6=1,'Sjekkliste for utfylling'!H21," ") -> 
A7: ='Sjekkliste for utfylling'!A22 -> 6 | B7: =IF('Sjekkliste for utfylling'!E22<>"",1,0) -> 0 | C7: 0 | E7: =IF($C7=1,'Sjekkliste for utfylling'!A22,"") ->  | F7: =IF($C7=1,'Sjekkliste for utfylling'!B22,"") ->  | H7: =IF(C7=1,'Sjekkliste for utfylling'!H22," ") -> 
A8: ='Sjekkliste for utfylling'!A23 -> 7 | B8: =IF('Sjekkliste for utfylling'!E23<>"",1,0) -> 0 | C8: 0 | E8: =IF($C8=1,'Sjekkliste for utfylling'!A23,"") ->  | F8: =IF($C8=1,'Sjekkliste for utfylling'!B23,"") ->  | H8: =IF(C8=1,'Sjekkliste for utfylling'!H23," ") -> 
A9: ='Sjekkliste for utfylling'!A24 -> 8 | B9: =IF('Sjekkliste for utfylling'!E24<>"",1,0) -> 0 | C9: 0 | E9: =IF($C9=1,'Sjekkliste for utfylling'!A24,"") ->  | F9: =IF($C9=1,'Sjekkliste for utfylling'!B24,"") ->  | H9: =IF(C9=1,'Sjekkliste for utfylling'!H24," ") -> 
A10: ='Sjekkliste for utfylling'!A25 -> 9 | B10: =IF('Sjekkliste for utfylling'!E25<>"",1,0) -> 0 | C10: 0 | E10: =IF($C10=1,'Sjekkliste for utfylling'!A25,"") ->  | F10: =IF($C10=1,'Sjekkliste for utfylling'!B25,"") ->  | H10: =IF(C10=1,'Sjekkliste for utfylling'!H25," ") -> 
A11: ='Sjekkliste for utfylling'!A26 -> 10 | B11: =IF('Sjekkliste for utfylling'!E26<>"",1,0) -> 0 | C11: 0 | E11: =IF($C11=1,'Sjekkliste for utfylling'!A26,"") ->  | F11: =IF($C11=1,'Sjekkliste for utfylling'!B26,"") ->  | H11: =IF(C11=1,'Sjekkliste for utfylling'!H26," ") -> 
A12: ='Sjekkliste for utfylling'!A27 -> 11 | B12: =IF('Sjekkliste for utfylling'!E27<>"",1,0) -> 0 | C12: 0 | E12: =IF($C12=1,'Sjekkliste for utfylling'!A27,"") ->  | F12: =IF($C12=1,'Sjekkliste for utfylling'!B27,"") ->  | H12: =IF(C12=1,'Sjekkliste for utfylling'!H27," ") -> 
A13: ='Sjekkliste for utfylling'!A29 -> 12 | B13: =IF('Sjekkliste for utfylling'!E29<>"",1,0) -> 0 | C13: 0 | E13: =IF($C13=1,'Sjekkliste for utfylling'!A29,"") ->  | F13: =IF($C13=1,'Sjekkliste for utfylling'!B29,"") ->  | H13: =IF(C13=1,'Sjekkliste for utfylling'!H29," ") -> 
A14: ='Sjekkliste for utfylling'!A32 -> 13 | B14: =IF('Sjekkliste for utfylling'!E32<>"",1,0) -> 0 | C14: 0 | E14: =IF($C14=1,'Sjekkliste for utfylling'!A32,"") ->  | F14: =IF($C14=1,'Sjekkliste for utfylling'!B32,"") ->  | H14: =IF(C14=1,'Sjekkliste for utfylling'!H32," ") -> 
A15: ='Sjekkliste for utfylling'!A33 -> 14 | B15: =IF('Sjekkliste for utfylling'!E33<>"",1,0) -> 0 | C15: 0 | E15: =IF($C15=1,'Sjekkliste for utfylling'!A33,"") ->  | F15: =IF($C15=1,'Sjekkliste for utfylling'!B33,"") ->  | H15: =IF(C15=1,'Sjekkliste for utfylling'!H33," ") -> 
A16: ='Sjekkliste for utfylling'!A34 -> 15 | B16: =IF('Sjekkliste for utfylling'!E34<>"",1,0) -> 0 | C16: 0 | E16: =IF($C16=1,'Sjekkliste for utfylling'!A34,"") ->  | F16: =IF($C16=1,'Sjekkliste for utfylling'!B34,"") ->  | H16: =IF(C16=1,'Sjekkliste for utfylling'!H34," ") -> 
A17: ='Sjekkliste for utfylling'!A35 -> 16 | B17: =IF('Sjekkliste for utfylling'!E35<>"",1,0) -> 0 | C17: 0 | E17: =IF($C17=1,'Sjekkliste for utfylling'!A35,"") ->  | F17: =IF($C17=1,'Sjekkliste for utfylling'!B35,"") ->  | H17: =IF(C17=1,'Sjekkliste for utfylling'!H35," ") -> 
A18: ='Sjekkliste for utfylling'!A40 -> 17 | B18: =IF('Sjekkliste for utfylling'!E40<>"",1,0) -> 0 | C18: 0 | E18: =IF($C18=1,'Sjekkliste for utfylling'!A40,"") ->  | F18: =IF($C18=1,'Sjekkliste for utfylling'!B40,"") ->  | H18: =IF(C18=1,'Sjekkliste for utfylling'!H40," ") -> 
A19: ='Sjekkliste for utfylling'!A41 -> 18 | B19: =IF('Sjekkliste for utfylling'!E41<>"",1,0) -> 0 | C19: 0 | E19: =IF($C19=1,'Sjekkliste for utfylling'!A41,"") ->  | F19: =IF($C19=1,'Sjekkliste for utfylling'!B41,"") ->  | H19: =IF(C19=1,'Sjekkliste for utfylling'!H41," ") -> 
A20: ='Sjekkliste for utfylling'!A42 -> 19 | B20: =IF('Sjekkliste for utfylling'!E42<>"",1,0) -> 0 | C20: 0 | E20: =IF($C20=1,'Sjekkliste for utfylling'!A42,"") ->  | F20: =IF($C20=1,'Sjekkliste for utfylling'!B42,"") ->  | H20: =IF(C20=1,'Sjekkliste for utfylling'!H42," ") -> 
A21: ='Sjekkliste for utfylling'!A43 -> 20 | B21: =IF('Sjekkliste for utfylling'!E43<>"",1,0) -> 0 | C21: 0 | E21: =IF($C21=1,'Sjekkliste for utfylling'!A43,"") ->  | F21: =IF($C21=1,'Sjekkliste for utfylling'!B43,"") ->  | H21: =IF(C21=1,'Sjekkliste for utfylling'!H43," ") -> 
A22: ='Sjekkliste for utfylling'!A44 -> 21 | B22: =IF('Sjekkliste for utfylling'!E44<>"",1,0) -> 0 | C22: 0 | E22: =IF($C22=1,'Sjekkliste for utfylling'!A44,"") ->  | F22: =IF($C22=1,'Sjekkliste for utfylling'!B44,"") ->  | H22: =IF(C22=1,'Sjekkliste for utfylling'!H44," ") -> 
A23: ='Sjekkliste for utfylling'!A45 -> 22 | B23: =IF('Sjekkliste for utfylling'!E45<>"",1,0) -> 0 | C23: 0 | E23: =IF($C23=1,'Sjekkliste for utfylling'!A45,"") ->  | F23: =IF($C23=1,'Sjekkliste for utfylling'!B45,"") ->  | H23: =IF(C23=1,'Sjekkliste for utfylling'!H45," ") -> 
A24: ='Sjekkliste for utfylling'!A46 -> 23 | B24: =IF('Sjekkliste for utfylling'!E46<>"",1,0) -> 0 | C24: 0 | E24: =IF($C24=1,'Sjekkliste for utfylling'!A46,"") ->  | F24: =IF($C24=1,'Sjekkliste for utfylling'!B46,"") ->  | H24: =IF(C24=1,'Sjekkliste for utfylling'!H46," ") -> 
A25: ='Sjekkliste for utfylling'!A47 -> 24 | B25: =IF('Sjekkliste for utfylling'!E47<>"",1,0) -> 0 | C25: 0 | E25: =IF($C25=1,'Sjekkliste for utfylling'!A47,"") ->  | F25: =IF($C25=1,'Sjekkliste for utfylling'!B47,"") ->  | H25: =IF(C25=1,'Sjekkliste for utfylling'!H47," ") -> 
A26: ='Sjekkliste for utfylling'!A48 -> 25 | B26: =IF('Sjekkliste for utfylling'!E48<>"",1,0) -> 0 | C26: 0 | E26: =IF($C26=1,'Sjekkliste for utfylling'!A48,"") ->  | F26: =IF($C26=1,'Sjekkliste for utfylling'!B48,"") ->  | H26: =IF(C26=1,'Sjekkliste for utfylling'!H48," ") -> 
A27: ='Sjekkliste for utfylling'!A49 -> 26 | B27: =IF('Sjekkliste for utfylling'!E49<>"",1,0) -> 0 | C27: 0 | E27: =IF($C27=1,'Sjekkliste for utfylling'!A49,"") ->  | F27: =IF($C27=1,'Sjekkliste for utfylling'!B49,"") ->  | H27: =IF(C27=1,'Sjekkliste for utfylling'!H49," ") -> 
A28: ='Sjekkliste for utfylling'!A50 -> 27 | B28: =IF('Sjekkliste for utfylling'!E50<>"",1,0) -> 0 | C28: 0 | E28: =IF($C28=1,'Sjekkliste for utfylling'!A50,"") ->  | F28: =IF($C28=1,'Sjekkliste for utfylling'!B50,"") ->  | H28: =IF(C28=1,'Sjekkliste for utfylling'!H50," ") -> 
A29: ='Sjekkliste for utfylling'!A51 -> 28 | B29: =IF('Sjekkliste for utfylling'!E51<>"",1,0) -> 0 | C29: 0 | E29: =IF($C29=1,'Sjekkliste for utfylling'!A51,"") ->  | F29: =IF($C29=1,'Sjekkliste for utfylling'!B51,"") ->  | H29: =IF(C29=1,'Sjekkliste for utfylling'!H51," ") -> 
A30: ='Sjekkliste for utfylling'!A53 -> 29 | B30: =IF('Sjekkliste for utfylling'!E53<>"",1,0) -> 0 | C30: 0 | E30: =IF($C30=1,'Sjekkliste for utfylling'!A53,"") ->  | F30: =IF($C30=1,'Sjekkliste for utfylling'!B53,"") ->  | H30: =IF(C30=1,'Sjekkliste for utfylling'!H53," ") -> 
A31: ='Sjekkliste for utfylling'!A54 -> 30 | B31: =IF('Sjekkliste for utfylling'!E54<>"",1,0) -> 0 | C31: 0 | E31: =IF($C31=1,'Sjekkliste for utfylling'!A54,"") ->  | F31: =IF($C31=1,'Sjekkliste for utfylling'!B54,"") ->  | H31: =IF(C31=1,'Sjekkliste for utfylling'!H54," ") -> 
A32: ='Sjekkliste for utfylling'!A56 -> 31 | B32: =IF('Sjekkliste for utfylling'!E56<>"",1,0) -> 0 | C32: 0 | E32: =IF($C32=1,'Sjekkliste for utfylling'!A56,"") ->  | F32: =IF($C32=1,'Sjekkliste for utfylling'!B56,"") ->  | H32: =IF(C32=1,'Sjekkliste for utfylling'!H56," ") -> 
A33: ='Sjekkliste for utfylling'!A60 -> 32 | B33: =IF('Sjekkliste for utfylling'!E60<>"",1,0) -> 0 | C33: 0 | E33: =IF($C33=1,'Sjekkliste for utfylling'!A60,"") ->  | F33: =IF($C33=1,'Sjekkliste for utfylling'!B60,"") ->  | H33: =IF(C33=1,'Sjekkliste for utfylling'!H60," ") -> 
A34: ='Sjekkliste for utfylling'!A64 -> 33 | B34: =IF('Sjekkliste for utfylling'!E64<>"",1,0) -> 0 | C34: 0 | E34: =IF($C34=1,'Sjekkliste for utfylling'!A64,"") ->  | F34: =IF($C34=1,'Sjekkliste for utfylling'!B64,"") ->  | H34: =IF(C34=1,'Sjekkliste for utfylling'!H64," ") -> 
A35: ='Sjekkliste for utfylling'!A65 -> 34 | B35: =IF('Sjekkliste for utfylling'!E65<>"",1,0) -> 0 | C35: 0 | E35: =IF($C35=1,'Sjekkliste for utfylling'!A65,"") ->  | F35: =IF($C35=1,'Sjekkliste for utfylling'!B65,"") ->  | H35: =IF(C35=1,'Sjekkliste for utfylling'!H65," ") -> 
A36: ='Sjekkliste for utfylling'!A66 -> 35 | B36: =IF('Sjekkliste for utfylling'!E66<>"",1,0) -> 0 | C36: 0 | E36: =IF($C36=1,'Sjekkliste for utfylling'!A66,"") ->  | F36: =IF($C36=1,'Sjekkliste for utfylling'!B66,"") ->  | H36: =IF(C36=1,'Sjekkliste for utfylling'!H66," ") -> 
A37: ='Sjekkliste for utfylling'!A67 -> 36 | B37: =IF('Sjekkliste for utfylling'!E67<>"",1,0) -> 0 | C37: 0 | E37: =IF($C37=1,'Sjekkliste for utfylling'!A67,"") ->  | F37: =IF($C37=1,'Sjekkliste for utfylling'!B67,"") ->  | H37: =IF(C37=1,'Sjekkliste for utfylling'!H67," ") -> 
A38: ='Sjekkliste for utfylling'!A68 -> 37 | B38: =IF('Sjekkliste for utfylling'!E68<>"",1,0) -> 0 | C38: 0 | E38: =IF($C38=1,'Sjekkliste for utfylling'!A68,"") ->  | F38: =IF($C38=1,'Sjekkliste for utfylling'!B68,"") ->  | H38: =IF(C38=1,'Sjekkliste for utfylling'!H68," ") -> 
A39: ='Sjekkliste for utfylling'!A75 -> 38 | B39: =IF('Sjekkliste for utfylling'!E75<>"",1,0) -> 0 | C39: 0 | E39: =IF($C39=1,'Sjekkliste for utfylling'!A75,"") ->  | F39: =IF($C39=1,'Sjekkliste for utfylling'!B75,"") ->  | H39: =IF(C39=1,'Sjekkliste for utfylling'!H75," ") -> 
A40: ='Sjekkliste for utfylling'!A76 -> 39 | B40: =IF('Sjekkliste for utfylling'!E76<>"",1,0) -> 0 | C40: 0 | E40: =IF($C40=1,'Sjekkliste for utfylling'!A76,"") ->  | F40: =IF($C40=1,'Sjekkliste for utfylling'!B76,"") ->  | H40: =IF(C40=1,'Sjekkliste for utfylling'!H76," ") -> 
A41: ='Sjekkliste for utfylling'!A77 -> 40 | B41: =IF('Sjekkliste for utfylling'!E77<>"",1,0) -> 0 | C41: 0 | E41: =IF($C41=1,'Sjekkliste for utfylling'!A77,"") ->  | F41: =IF($C41=1,'Sjekkliste for utfylling'!B77,"") ->  | H41: =IF(C41=1,'Sjekkliste for utfylling'!H77," ") -> 
A42: ='Sjekkliste for utfylling'!A78 -> 41 | B42: =IF('Sjekkliste for utfylling'!E78<>"",1,0) -> 0 | C42: 0 | E42: =IF($C42=1,'Sjekkliste for utfylling'!A78,"") ->  | F42: =IF($C42=1,'Sjekkliste for utfylling'!B78,"") ->  | H42: =IF(C42=1,'Sjekkliste for utfylling'!H78," ") -> 
A43: ='Sjekkliste for utfylling'!A79 -> 42 | B43: =IF('Sjekkliste for utfylling'!E79<>"",1,0) -> 0 | C43: 0 | E43: =IF($C43=1,'Sjekkliste for utfylling'!A79,"") ->  | F43: =IF($C43=1,'Sjekkliste for utfylling'!B79,"") ->  | H43: =IF(C43=1,'Sjekkliste for utfylling'!H79," ") -> 
A44: ='Sjekkliste for utfylling'!A81 -> 43 | B44: =IF('Sjekkliste for utfylling'!E81<>"",1,0) -> 0 | C44: 0 | E44: =IF($C44=1,'Sjekkliste for utfylling'!A81,"") ->  | F44: =IF($C44=1,'Sjekkliste for utfylling'!B81,"") ->  | H44: =IF(C44=1,'Sjekkliste for utfylling'!H81," ") -> 
A45: ='Sjekkliste for utfylling'!A84 -> 44 | B45: =IF('Sjekkliste for utfylling'!E84<>"",1,0) -> 0 | C45: 0 | E45: =IF($C45=1,'Sjekkliste for utfylling'!A84,"") ->  | F45: =IF($C45=1,'Sjekkliste for utfylling'!B84,"") ->  | H45: =IF(C45=1,'Sjekkliste for utfylling'!H84," ") -> 
A46: ='Sjekkliste for utfylling'!A85 -> 45 | B46: =IF('Sjekkliste for utfylling'!E85<>"",1,0) -> 0 | C46: 0 | E46: =IF($C46=1,'Sjekkliste for utfylling'!A85,"") ->  | F46: =IF($C46=1,'Sjekkliste for utfylling'!B85,"") ->  | H46: =IF(C46=1,'Sjekkliste for utfylling'!H85," ") -> 
A47: ='Sjekkliste for utfylling'!A87 -> 46 | B47: =IF('Sjekkliste for utfylling'!E87<>"",1,0) -> 0 | C47: 0 | E47: =IF($C47=1,'Sjekkliste for utfylling'!A87,"") ->  | F47: =IF($C47=1,'Sjekkliste for utfylling'!B87,"") ->  | H47: =IF(C47=1,'Sjekkliste for utfylling'!H87," ") -> 
A48: ='Sjekkliste for utfylling'!A88 -> 47 | B48: =IF('Sjekkliste for utfylling'!E88<>"",1,0) -> 0 | C48: 0 | E48: =IF($C48=1,'Sjekkliste for utfylling'!A88,"") ->  | F48: =IF($C48=1,'Sjekkliste for utfylling'!B88,"") ->  | H48: =IF(C48=1,'Sjekkliste for utfylling'!H88," ") -> 
A49: ='Sjekkliste for utfylling'!A92 -> 48 | B49: =IF('Sjekkliste for utfylling'!E92<>"",1,0) -> 0 | C49: =SUM(B49:B49) -> 0 | E49: =IF($C49=1,'Sjekkliste for utfylling'!A92,"") ->  | F49: =IF($C49=1,'Sjekkliste for utfylling'!B92,"") ->  | H49: =IF(C49=1,'Sjekkliste for utfylling'!H92," ") -> 
A50: ='Sjekkliste for utfylling'!A93 -> 49 | B50: =IF('Sjekkliste for utfylling'!E93<>"",1,0) -> 0 | C50: 0 | E50: =IF($C50=1,'Sjekkliste for utfylling'!A93,"") ->  | F50: =IF($C50=1,'Sjekkliste for utfylling'!B93,"") ->  | H50: =IF(C50=1,'Sjekkliste for utfylling'!H93," ") -> 
A51: ='Sjekkliste for utfylling'!A99 -> 50 | B51: =IF('Sjekkliste for utfylling'!E99<>"",1,0) -> 0 | C51: =SUM(B51:B51) -> 0 | E51: =IF($C51=1,'Sjekkliste for utfylling'!A99,"") ->  | F51: =IF($C51=1,'Sjekkliste for utfylling'!B99,"") ->  | H51: =IF(C51=1,'Sjekkliste for utfylling'!H99," ") -> 
A52: ='Sjekkliste for utfylling'!A101 -> 51 | B52: =IF('Sjekkliste for utfylling'!E101<>"",1,0) -> 0 | C52: 0 | E52: =IF($C52=1,'Sjekkliste for utfylling'!A101,"") ->  | F52: =IF($C52=1,'Sjekkliste for utfylling'!B101,"") ->  | H52: =IF(C52=1,'Sjekkliste for utfylling'!H101," ") -> 
A53: ='Sjekkliste for utfylling'!A103 -> 52 | B53: =IF('Sjekkliste for utfylling'!E103<>"",1,0) -> 0 | C53: 0 | E53: =IF($C53=1,'Sjekkliste for utfylling'!A103,"") ->  | F53: =IF($C53=1,'Sjekkliste for utfylling'!B103,"") ->  | H53: =IF(C53=1,'Sjekkliste for utfylling'!H103," ") -> 
A54: ='Sjekkliste for utfylling'!A104 -> 53 | B54: =IF('Sjekkliste for utfylling'!E104<>"",1,0) -> 0 | C54: 0 | E54: =IF($C54=1,'Sjekkliste for utfylling'!A104,"") ->  | F54: =IF($C54=1,'Sjekkliste for utfylling'!B104,"") ->  | H54: =IF(C54=1,'Sjekkliste for utfylling'!H104," ") -> 
A55: ='Sjekkliste for utfylling'!A105 -> 54 | B55: =IF('Sjekkliste for utfylling'!E105<>"",1,0) -> 0 | C55: 0 | E55: =IF($C55=1,'Sjekkliste for utfylling'!A105,"") ->  | F55: =IF($C55=1,'Sjekkliste for utfylling'!B105,"") ->  | H55: =IF(C55=1,'Sjekkliste for utfylling'!H105," ") -> 
A56: ='Sjekkliste for utfylling'!A107 -> 55 | B56: =IF('Sjekkliste for utfylling'!E107<>"",1,0) -> 0 | C56: 0 | E56: =IF($C56=1,'Sjekkliste for utfylling'!A107,"") ->  | F56: =IF($C56=1,'Sjekkliste for utfylling'!B107,"") ->  | H56: =IF(C56=1,'Sjekkliste for utfylling'!H107," ") -> 
A57: ='Sjekkliste for utfylling'!A111 -> 56 | B57: =IF('Sjekkliste for utfylling'!E111<>"",1,0) -> 0 | C57: 0 | E57: =IF($C57=1,'Sjekkliste for utfylling'!A111,"") ->  | F57: =IF($C57=1,'Sjekkliste for utfylling'!B111,"") ->  | H57: =IF(C57=1,'Sjekkliste for utfylling'!H111," ") -> 
A58: ='Sjekkliste for utfylling'!A119 -> 57 | B58: =IF('Sjekkliste for utfylling'!E119<>"",1,0) -> 0 | C58: 0 | E58: =IF($C58=1,'Sjekkliste for utfylling'!A119,"") ->  | F58: =IF($C58=1,'Sjekkliste for utfylling'!B119,"") ->  | H58: =IF(C58=1,'Sjekkliste for utfylling'!H119," ") -> 
A59: ='Sjekkliste for utfylling'!A120 -> 58 | B59: =IF('Sjekkliste for utfylling'!E120<>"",1,0) -> 0 | C59: 0 | E59: =IF($C59=1,'Sjekkliste for utfylling'!A120,"") ->  | F59: =IF($C59=1,'Sjekkliste for utfylling'!B120,"") ->  | H59: =IF(C59=1,'Sjekkliste for utfylling'!H120," ") -> 
A60: ='Sjekkliste for utfylling'!A121 -> 59 | B60: =IF('Sjekkliste for utfylling'!E121<>"",1,0) -> 0 | C60: 0 | E60: =IF($C60=1,'Sjekkliste for utfylling'!A121,"") ->  | F60: =IF($C60=1,'Sjekkliste for utfylling'!B121,"") ->  | H60: =IF(C60=1,'Sjekkliste for utfylling'!H121," ") -> 
A61: ='Sjekkliste for utfylling'!A122 -> 60 | B61: =IF('Sjekkliste for utfylling'!E122<>"",1,0) -> 0 | C61: 0 | E61: =IF($C61=1,'Sjekkliste for utfylling'!A122,"") ->  | F61: =IF($C61=1,'Sjekkliste for utfylling'!B122,"") ->  | H61: =IF(C61=1,'Sjekkliste for utfylling'!H122," ") -> 
A62: ='Sjekkliste for utfylling'!A123 -> 61 | B62: =IF('Sjekkliste for utfylling'!E123<>"",1,0) -> 0 | C62: 0 | E62: =IF($C62=1,'Sjekkliste for utfylling'!A123,"") ->  | F62: =IF($C62=1,'Sjekkliste for utfylling'!B123,"") ->  | H62: =IF(C62=1,'Sjekkliste for utfylling'!H123," ") -> 
A63: ='Sjekkliste for utfylling'!A124 -> 62 | B63: =IF('Sjekkliste for utfylling'!E124<>"",1,0) -> 0 | C63: 0 | E63: =IF($C63=1,'Sjekkliste for utfylling'!A124,"") ->  | F63: =IF($C63=1,'Sjekkliste for utfylling'!B124,"") ->  | H63: =IF(C63=1,'Sjekkliste for utfylling'!H124," ") -> 
A64: ='Sjekkliste for utfylling'!A129 -> 63 | B64: =IF('Sjekkliste for utfylling'!E129<>"",1,0) -> 0 | C64: 0 | E64: =IF($C64=1,'Sjekkliste for utfylling'!A129,"") ->  | F64: =IF($C64=1,'Sjekkliste for utfylling'!B129,"") ->  | H64: =IF(C64=1,'Sjekkliste for utfylling'!H129," ") -> 
A65: ='Sjekkliste for utfylling'!A131 -> 64 | B65: =IF('Sjekkliste for utfylling'!E131<>"",1,0) -> 0 | C65: 0 | E65: =IF($C65=1,'Sjekkliste for utfylling'!A131,"") ->  | F65: =IF($C65=1,'Sjekkliste for utfylling'!B131,"") ->  | H65: =IF(C65=1,'Sjekkliste for utfylling'!H131," ") -> 
A66: ='Sjekkliste for utfylling'!A132 -> 65 | B66: =IF('Sjekkliste for utfylling'!E132<>"",1,0) -> 0 | C66: 0 | E66: =IF($C66=1,'Sjekkliste for utfylling'!A132,"") ->  | F66: =IF($C66=1,'Sjekkliste for utfylling'!B132,"") ->  | H66: =IF(C66=1,'Sjekkliste for utfylling'!H132," ") -> 
A67: ='Sjekkliste for utfylling'!A133 -> 66 | B67: =IF('Sjekkliste for utfylling'!E133<>"",1,0) -> 0 | C67: 0 | E67: =IF($C67=1,'Sjekkliste for utfylling'!A133,"") ->  | F67: =IF($C67=1,'Sjekkliste for utfylling'!B133,"") ->  | H67: =IF(C67=1,'Sjekkliste for utfylling'!H133," ") -> 
A68: ='Sjekkliste for utfylling'!A138 -> 67 | B68: =IF('Sjekkliste for utfylling'!E138<>"",1,0) -> 0 | C68: 0 | E68: =IF($C68=1,'Sjekkliste for utfylling'!A138,"") ->  | F68: =IF($C68=1,'Sjekkliste for utfylling'!B138,"") ->  | H68: =IF(C68=1,'Sjekkliste for utfylling'!H138," ") -> 
A69: ='Sjekkliste for utfylling'!A139 -> 68 | B69: =IF('Sjekkliste for utfylling'!E139<>"",1,0) -> 0 | C69: 0 | E69: =IF($C69=1,'Sjekkliste for utfylling'!A139,"") ->  | F69: =IF($C69=1,'Sjekkliste for utfylling'!B139,"") ->  | H69: =IF(C69=1,'Sjekkliste for utfylling'!H139," ") -> 
A70: ='Sjekkliste for utfylling'!A140 -> 69 | B70: =IF('Sjekkliste for utfylling'!E140<>"",1,0) -> 0 | C70: 0 | E70: =IF($C70=1,'Sjekkliste for utfylling'!A140,"") ->  | F70: =IF($C70=1,'Sjekkliste for utfylling'!B140,"") ->  | H70: =IF(C70=1,'Sjekkliste for utfylling'!H140," ") -> 
A71: ='Sjekkliste for utfylling'!A142 -> 70 | B71: =IF('Sjekkliste for utfylling'!E142<>"",1,0) -> 0 | C71: =SUM(B71:B71) -> 0 | E71: =IF($C71=1,'Sjekkliste for utfylling'!A142,"") ->  | F71: =IF($C71=1,'Sjekkliste for utfylling'!B142,"") ->  | H71: =IF(C71=1,'Sjekkliste for utfylling'!H142," ") -> 
A72: ='Sjekkliste for utfylling'!A144 -> 71 | B72: =IF('Sjekkliste for utfylling'!E144<>"",1,0) -> 0 | C72: =SUM(B72:B72) -> 0 | E72: =IF($C72=1,'Sjekkliste for utfylling'!A144,"") ->  | F72: =IF($C72=1,'Sjekkliste for utfylling'!B144,"") ->  | H72: =IF(C72=1,'Sjekkliste for utfylling'!H144," ") -> 
A73: ='Sjekkliste for utfylling'!A146 -> 72 | B73: =IF('Sjekkliste for utfylling'!E146<>"",1,0) -> 0 | C73: =SUM(B73:B73) -> 0 | E73: =IF($C73=1,'Sjekkliste for utfylling'!A146,"") ->  | F73: =IF($C73=1,'Sjekkliste for utfylling'!B146,"") ->  | H73: =IF(C73=1,'Sjekkliste for utfylling'!H146," ") -> 
A74: ='Sjekkliste for utfylling'!A149 -> 73 | B74: =IF('Sjekkliste for utfylling'!E149<>"",1,0) -> 0 | C74: =SUM(B74:B74) -> 0 | E74: =IF($C74=1,'Sjekkliste for utfylling'!A149,"") ->  | F74: =IF($C74=1,'Sjekkliste for utfylling'!B149,"") ->  | H74: =IF(C74=1,'Sjekkliste for utfylling'!H149," ") -> 
A75: ='Sjekkliste for utfylling'!A150 -> 74 | B75: =IF('Sjekkliste for utfylling'!E150<>"",1,0) -> 0 | C75: 0 | E75: =IF($C75=1,'Sjekkliste for utfylling'!A150,"") ->  | F75: =IF($C75=1,'Sjekkliste for utfylling'!B150,"") ->  | H75: =IF(C75=1,'Sjekkliste for utfylling'!H150," ") -> 
A76: ='Sjekkliste for utfylling'!A151 -> 75 | B76: =IF('Sjekkliste for utfylling'!E151<>"",1,0) -> 0 | C76: 0 | E76: =IF($C76=1,'Sjekkliste for utfylling'!A151,"") ->  | F76: =IF($C76=1,'Sjekkliste for utfylling'!B151,"") ->  | H76: =IF(C76=1,'Sjekkliste for utfylling'!H151," ") -> 
A77: ='Sjekkliste for utfylling'!A152 -> 76 | B77: =IF('Sjekkliste for utfylling'!E152<>"",1,0) -> 0 | C77: 0 | E77: =IF($C77=1,'Sjekkliste for utfylling'!A152,"") ->  | F77: =IF($C77=1,'Sjekkliste for utfylling'!B152,"") ->  | H77: =IF(C77=1,'Sjekkliste for utfylling'!H152," ") -> 
A78: ='Sjekkliste for utfylling'!A154 -> 77 | B78: =IF('Sjekkliste for utfylling'!E154<>"",1,0) -> 0 | C78: 0 | E78: =IF($C78=1,'Sjekkliste for utfylling'!A154,"") ->  | F78: =IF($C78=1,'Sjekkliste for utfylling'!B154,"") ->  | H78: =IF(C78=1,'Sjekkliste for utfylling'!H154," ") -> 
A79: ='Sjekkliste for utfylling'!A158 -> 78 | B79: =IF('Sjekkliste for utfylling'!E158<>"",1,0) -> 0 | C79: 0 | E79: =IF($C79=1,'Sjekkliste for utfylling'!A158,"") ->  | F79: =IF($C79=1,'Sjekkliste for utfylling'!B158,"") ->  | H79: =IF(C79=1,'Sjekkliste for utfylling'!H158," ") -> 
A80: ='Sjekkliste for utfylling'!A160 -> 79 | B80: =IF('Sjekkliste for utfylling'!E160<>"",1,0) -> 0 | C80: =SUM(B80:B80) -> 0 | E80: =IF($C80=1,'Sjekkliste for utfylling'!A160,"") ->  | F80: =IF($C80=1,'Sjekkliste for utfylling'!B160,"") ->  | H80: =IF(C80=1,'Sjekkliste for utfylling'!H160," ") -> 
A81: ='Sjekkliste for utfylling'!A161 -> 80 | B81: =IF('Sjekkliste for utfylling'!E161<>"",1,0) -> 0 | C81: 0 | E81: =IF($C81=1,'Sjekkliste for utfylling'!A161,"") ->  | F81: =IF($C81=1,'Sjekkliste for utfylling'!B161,"") ->  | H81: =IF(C81=1,'Sjekkliste for utfylling'!H161," ") -> 
A82: ='Sjekkliste for utfylling'!A162 -> 81 | B82: =IF('Sjekkliste for utfylling'!E162<>"",1,0) -> 0 | C82: 0 | E82: =IF($C82=1,'Sjekkliste for utfylling'!A162,"") ->  | F82: =IF($C82=1,'Sjekkliste for utfylling'!B162,"") ->  | H82: =IF(C82=1,'Sjekkliste for utfylling'!H162," ") -> 
A83: ='Sjekkliste for utfylling'!A169 -> 82 | B83: =IF('Sjekkliste for utfylling'!E169<>"",1,0) -> 0 | C83: =SUM(B83:B83) -> 0 | E83: =IF($C83=1,'Sjekkliste for utfylling'!A169,"") ->  | F83: =IF($C83=1,'Sjekkliste for utfylling'!B169,"") ->  | H83: =IF(C83=1,'Sjekkliste for utfylling'!H169," ") -> 
A84: ='Sjekkliste for utfylling'!A170 -> 83 | B84: =IF('Sjekkliste for utfylling'!E170<>"",1,0) -> 0 | C84: =SUM(B84:B84) -> 0 | E84: =IF($C84=1,'Sjekkliste for utfylling'!A170,"") ->  | F84: =IF($C84=1,'Sjekkliste for utfylling'!B170,"") ->  | H84: =IF(C84=1,'Sjekkliste for utfylling'!H170," ") -> 
A85: ='Sjekkliste for utfylling'!A171 -> 84 | B85: =IF('Sjekkliste for utfylling'!E171<>"",1,0) -> 0 | C85: =SUM(B85:B85) -> 0 | E85: =IF($C85=1,'Sjekkliste for utfylling'!A171,"") ->  | F85: =IF($C85=1,'Sjekkliste for utfylling'!B171,"") ->  | H85: =IF(C85=1,'Sjekkliste for utfylling'!H171," ") -> 
A86: ='Sjekkliste for utfylling'!A173 -> 85 | B86: =IF('Sjekkliste for utfylling'!E173<>"",1,0) -> 0 | C86: =SUM(B86:B86) -> 0 | E86: =IF($C86=1,'Sjekkliste for utfylling'!A173,"") ->  | F86: =IF($C86=1,'Sjekkliste for utfylling'!B173,"") ->  | H86: =IF(C86=1,'Sjekkliste for utfylling'!H173," ") -> 
A87: ='Sjekkliste for utfylling'!A174 -> 86 | B87: =IF('Sjekkliste for utfylling'!E174<>"",1,0) -> 0 | C87: 0 | E87: =IF($C87=1,'Sjekkliste for utfylling'!A174,"") ->  | F87: =IF($C87=1,'Sjekkliste for utfylling'!B174,"") ->  | H87: =IF(C87=1,'Sjekkliste for utfylling'!H174," ") -> 
A88: ='Sjekkliste for utfylling'!A175 -> 87 | B88: =IF('Sjekkliste for utfylling'!E175<>"",1,0) -> 0 | C88: 0 | E88: =IF($C88=1,'Sjekkliste for utfylling'!A175,"") ->  | F88: =IF($C88=1,'Sjekkliste for utfylling'!B175,"") ->  | H88: =IF(C88=1,'Sjekkliste for utfylling'!H175," ") -> 
A89: ='Sjekkliste for utfylling'!A177 -> 88 | B89: =IF('Sjekkliste for utfylling'!E177<>"",1,0) -> 0 | C89: =SUM(B89:B89) -> 0 | E89: =IF($C89=1,'Sjekkliste for utfylling'!A177,"") ->  | F89: =IF($C89=1,'Sjekkliste for utfylling'!B177,"") ->  | H89: =IF(C89=1,'Sjekkliste for utfylling'!H177," ") -> 
A90: ='Sjekkliste for utfylling'!A178 -> 89 | B90: =IF('Sjekkliste for utfylling'!E178<>"",1,0) -> 0 | C90: 0 | E90: =IF($C90=1,'Sjekkliste for utfylling'!A178,"") ->  | F90: =IF($C90=1,'Sjekkliste for utfylling'!B178,"") ->  | H90: =IF(C90=1,'Sjekkliste for utfylling'!H178," ") -> 
A91: ='Sjekkliste for utfylling'!A179 -> 90 | B91: =IF('Sjekkliste for utfylling'!E179<>"",1,0) -> 0 | C91: 0 | E91: =IF($C91=1,'Sjekkliste for utfylling'!A179,"") ->  | F91: =IF($C91=1,'Sjekkliste for utfylling'!B179,"") ->  | H91: =IF(C91=1,'Sjekkliste for utfylling'!H179," ") -> 
A92: ='Sjekkliste for utfylling'!A180 -> 91 | B92: =IF('Sjekkliste for utfylling'!E180<>"",1,0) -> 0 | C92: 0 | E92: =IF($C92=1,'Sjekkliste for utfylling'!A180,"") ->  | F92: =IF($C92=1,'Sjekkliste for utfylling'!B180,"") ->  | H92: =IF(C92=1,'Sjekkliste for utfylling'!H180," ") -> 
A93: ='Sjekkliste for utfylling'!A181 -> 92 | B93: =IF('Sjekkliste for utfylling'!E181<>"",1,0) -> 0 | C93: 0 | E93: =IF($C93=1,'Sjekkliste for utfylling'!A181,"") ->  | F93: =IF($C93=1,'Sjekkliste for utfylling'!B181,"") ->  | H93: =IF(C93=1,'Sjekkliste for utfylling'!H181," ") -> 
A94: ='Sjekkliste for utfylling'!A193 -> 93 | B94: =IF('Sjekkliste for utfylling'!E193<>"",1,0) -> 0 | C94: 0 | E94: =IF($C94=1,'Sjekkliste for utfylling'!A193,"") ->  | F94: =IF($C94=1,'Sjekkliste for utfylling'!B193,"") ->  | H94: =IF(C94=1,'Sjekkliste for utfylling'!H193," ") -> 
A95: ='Sjekkliste for utfylling'!A195 -> 94 | B95: =IF('Sjekkliste for utfylling'!E195<>"",1,0) -> 0 | C95: 0 | E95: =IF($C95=1,'Sjekkliste for utfylling'!A195,"") ->  | F95: =IF($C95=1,'Sjekkliste for utfylling'!B195,"") ->  | H95: =IF(C95=1,'Sjekkliste for utfylling'!H195," ") -> 
A96: ='Sjekkliste for utfylling'!A196 -> 95 | B96: =IF('Sjekkliste for utfylling'!E196<>"",1,0) -> 0 | C96: 0 | E96: =IF($C96=1,'Sjekkliste for utfylling'!A196,"") ->  | F96: =IF($C96=1,'Sjekkliste for utfylling'!B196,"") ->  | H96: =IF(C96=1,'Sjekkliste for utfylling'!H196," ") -> 
A97: ='Sjekkliste for utfylling'!A197 -> 96 | B97: =IF('Sjekkliste for utfylling'!E197<>"",1,0) -> 0 | C97: 0 | E97: =IF($C97=1,'Sjekkliste for utfylling'!A197,"") ->  | F97: =IF($C97=1,'Sjekkliste for utfylling'!B197,"") ->  | H97: =IF(C97=1,'Sjekkliste for utfylling'!H197," ") -> 
A98: ='Sjekkliste for utfylling'!A198 -> 97 | B98: =IF('Sjekkliste for utfylling'!E198<>"",1,0) -> 0 | C98: 0 | E98: =IF($C98=1,'Sjekkliste for utfylling'!A198,"") ->  | F98: =IF($C98=1,'Sjekkliste for utfylling'!B198,"") ->  | H98: =IF(C98=1,'Sjekkliste for utfylling'!H198," ") -> 
A99: ='Sjekkliste for utfylling'!A199 -> 98 | B99: =IF('Sjekkliste for utfylling'!E199<>"",1,0) -> 0 | C99: 0 | E99: =IF($C99=1,'Sjekkliste for utfylling'!A199,"") ->  | F99: =IF($C99=1,'Sjekkliste for utfylling'!B199,"") ->  | H99: =IF(C99=1,'Sjekkliste for utfylling'!H199," ") -> 
A100: ='Sjekkliste for utfylling'!A201 -> 99 | B100: =IF('Sjekkliste for utfylling'!E201<>"",1,0) -> 0 | C100: 0 | E100: =IF($C100=1,'Sjekkliste for utfylling'!A201,"") ->  | F100: =IF($C100=1,'Sjekkliste for utfylling'!B201,"") ->  | H100: =IF(C100=1,'Sjekkliste for utfylling'!H201," ") -> 
A101: ='Sjekkliste for utfylling'!A202 -> 100 | B101: =IF('Sjekkliste for utfylling'!E202<>"",1,0) -> 0 | C101: 0 | E101: =IF($C101=1,'Sjekkliste for utfylling'!A202,"") ->  | F101: =IF($C101=1,'Sjekkliste for utfylling'!B202,"") ->  | H101: =IF(C101=1,'Sjekkliste for utfylling'!H202," ") -> 
A102: ='Sjekkliste for utfylling'!A205 -> 101 | B102: =IF('Sjekkliste for utfylling'!E205<>"",1,0) -> 0 | C102: 0 | E102: =IF($C102=1,'Sjekkliste for utfylling'!A205,"") ->  | F102: =IF($C102=1,'Sjekkliste for utfylling'!B205,"") ->  | H102: =IF(C102=1,'Sjekkliste for utfylling'!H205," ") -> 
A103: ='Sjekkliste for utfylling'!A206 -> 102 | B103: =IF('Sjekkliste for utfylling'!E206<>"",1,0) -> 0 | C103: 0 | E103: =IF($C103=1,'Sjekkliste for utfylling'!A206,"") ->  | F103: =IF($C103=1,'Sjekkliste for utfylling'!B206,"") ->  | H103: =IF(C103=1,'Sjekkliste for utfylling'!H206," ") -> 
A104: ='Sjekkliste for utfylling'!A207 -> 103 | B104: =IF('Sjekkliste for utfylling'!E207<>"",1,0) -> 0 | C104: 0 | E104: =IF($C104=1,'Sjekkliste for utfylling'!A207,"") ->  | F104: =IF($C104=1,'Sjekkliste for utfylling'!B207,"") ->  | H104: =IF(C104=1,'Sjekkliste for utfylling'!H207," ") -> 
A105: ='Sjekkliste for utfylling'!A209 -> 104 | B105: =IF('Sjekkliste for utfylling'!E209<>"",1,0) -> 0 | C105: 0 | E105: =IF($C105=1,'Sjekkliste for utfylling'!A209,"") ->  | F105: =IF($C105=1,'Sjekkliste for utfylling'!B209,"") ->  | H105: =IF(C105=1,'Sjekkliste for utfylling'!H209," ") -> 
A106: ='Sjekkliste for utfylling'!A211 -> 105 | B106: =IF('Sjekkliste for utfylling'!E211<>"",1,0) -> 0 | C106: 0 | E106: =IF($C106=1,'Sjekkliste for utfylling'!A211,"") ->  | F106: =IF($C106=1,'Sjekkliste for utfylling'!B211,"") ->  | H106: =IF(C106=1,'Sjekkliste for utfylling'!H211," ") -> 
A107: ='Sjekkliste for utfylling'!A212 -> 106 | B107: =IF('Sjekkliste for utfylling'!E212<>"",1,0) -> 0 | C107: 0 | E107: =IF($C107=1,'Sjekkliste for utfylling'!A212,"") ->  | F107: =IF($C107=1,'Sjekkliste for utfylling'!B212,"") ->  | H107: =IF(C107=1,'Sjekkliste for utfylling'!H212," ") -> 
A108: ='Sjekkliste for utfylling'!A213 -> 107 | B108: =IF('Sjekkliste for utfylling'!E213<>"",1,0) -> 0 | C108: 0 | E108: =IF($C108=1,'Sjekkliste for utfylling'!A213,"") ->  | F108: =IF($C108=1,'Sjekkliste for utfylling'!B213,"") ->  | H108: =IF(C108=1,'Sjekkliste for utfylling'!H213," ") -> 
A109: ='Sjekkliste for utfylling'!A214 -> 108 | B109: =IF('Sjekkliste for utfylling'!E214<>"",1,0) -> 0 | C109: 0 | E109: =IF($C109=1,'Sjekkliste for utfylling'!A214,"") ->  | F109: =IF($C109=1,'Sjekkliste for utfylling'!B214,"") ->  | H109: =IF(C109=1,'Sjekkliste for utfylling'!H214," ") -> 
A110: ='Sjekkliste for utfylling'!A215 -> 109 | B110: =IF('Sjekkliste for utfylling'!E215<>"",1,0) -> 0 | C110: 0 | E110: =IF($C110=1,'Sjekkliste for utfylling'!A215,"") ->  | F110: =IF($C110=1,'Sjekkliste for utfylling'!B215,"") ->  | H110: =IF(C110=1,'Sjekkliste for utfylling'!H215," ") -> 
A111: ='Sjekkliste for utfylling'!A216 -> 110 | B111: =IF('Sjekkliste for utfylling'!E216<>"",1,0) -> 0 | C111: 0 | E111: =IF($C111=1,'Sjekkliste for utfylling'!A216,"") ->  | F111: =IF($C111=1,'Sjekkliste for utfylling'!B216,"") ->  | H111: =IF(C111=1,'Sjekkliste for utfylling'!H216," ") -> 
A112: ='Sjekkliste for utfylling'!A217 -> 111 | B112: =IF('Sjekkliste for utfylling'!E217<>"",1,0) -> 0 | C112: 0 | E112: =IF($C112=1,'Sjekkliste for utfylling'!A217,"") ->  | F112: =IF($C112=1,'Sjekkliste for utfylling'!B217,"") ->  | H112: =IF(C112=1,'Sjekkliste for utfylling'!H217," ") -> 
A113: ='Sjekkliste for utfylling'!A218 -> 112 | B113: =IF('Sjekkliste for utfylling'!E218<>"",1,0) -> 0 | C113: 0 | E113: =IF($C113=1,'Sjekkliste for utfylling'!A218,"") ->  | F113: =IF($C113=1,'Sjekkliste for utfylling'!B218,"") ->  | H113: =IF(C113=1,'Sjekkliste for utfylling'!H218," ") -> 
A114: ='Sjekkliste for utfylling'!A219 -> 113 | B114: =IF('Sjekkliste for utfylling'!E219<>"",1,0) -> 0 | C114: 0 | E114: =IF($C114=1,'Sjekkliste for utfylling'!A219,"") ->  | F114: =IF($C114=1,'Sjekkliste for utfylling'!B219,"") ->  | H114: =IF(C114=1,'Sjekkliste for utfylling'!H219," ") -> 
A115: ='Sjekkliste for utfylling'!A220 -> 114 | B115: =IF('Sjekkliste for utfylling'!E220<>"",1,0) -> 0 | C115: 0 | E115: =IF($C115=1,'Sjekkliste for utfylling'!A220,"") ->  | F115: =IF($C115=1,'Sjekkliste for utfylling'!B220,"") ->  | H115: =IF(C115=1,'Sjekkliste for utfylling'!H220," ") -> 
A116: ='Sjekkliste for utfylling'!A224 -> 115 | B116: =IF('Sjekkliste for utfylling'!E224<>"",1,0) -> 0 | C116: 0 | E116: =IF($C116=1,'Sjekkliste for utfylling'!A224,"") ->  | F116: =IF($C116=1,'Sjekkliste for utfylling'!B224,"") ->  | H116: =IF(C116=1,'Sjekkliste for utfylling'!H224," ") -> 
A117: ='Sjekkliste for utfylling'!A227 -> 116 | B117: =IF('Sjekkliste for utfylling'!E227<>"",1,0) -> 0 | C117: 0 | E117: =IF($C117=1,'Sjekkliste for utfylling'!A227,"") ->  | F117: =IF($C117=1,'Sjekkliste for utfylling'!B227,"") ->  | H117: =IF(C117=1,'Sjekkliste for utfylling'!H227," ") -> 
A118: ='Sjekkliste for utfylling'!A229 -> 117 | B118: =IF('Sjekkliste for utfylling'!E229<>"",1,0) -> 0 | C118: 0 | E118: =IF($C118=1,'Sjekkliste for utfylling'!A229,"") ->  | F118: =IF($C118=1,'Sjekkliste for utfylling'!B229,"") ->  | H118: =IF(C118=1,'Sjekkliste for utfylling'!H229," ") -> 
A119: ='Sjekkliste for utfylling'!A231 -> 118 | B119: =IF('Sjekkliste for utfylling'!E231<>"",1,0) -> 0 | C119: 0 | E119: =IF($C119=1,'Sjekkliste for utfylling'!A231,"") ->  | F119: =IF($C119=1,'Sjekkliste for utfylling'!B231,"") ->  | H119: =IF(C119=1,'Sjekkliste for utfylling'!H231," ") -> 
A120: ='Sjekkliste for utfylling'!A235 -> 119 | B120: =IF('Sjekkliste for utfylling'!E235<>"",1,0) -> 0 | C120: 0 | E120: =IF($C120=1,'Sjekkliste for utfylling'!A235,"") ->  | F120: =IF($C120=1,'Sjekkliste for utfylling'!B235,"") ->  | H120: =IF(C120=1,'Sjekkliste for utfylling'!H235," ") -> 
A121: ='Sjekkliste for utfylling'!A236 -> 120 | B121: =IF('Sjekkliste for utfylling'!E236<>"",1,0) -> 0 | C121: 0 | E121: =IF($C121=1,'Sjekkliste for utfylling'!A236,"") ->  | F121: =IF($C121=1,'Sjekkliste for utfylling'!B236,"") ->  | H121: =IF(C121=1,'Sjekkliste for utfylling'!H236," ") -> 
A122: ='Sjekkliste for utfylling'!A237 -> 121 | B122: =IF('Sjekkliste for utfylling'!E237<>"",1,0) -> 0 | C122: 0 | E122: =IF($C122=1,'Sjekkliste for utfylling'!A237,"") ->  | F122: =IF($C122=1,'Sjekkliste for utfylling'!B237,"") ->  | H122: =IF(C122=1,'Sjekkliste for utfylling'!H237," ") -> 
A123: ='Sjekkliste for utfylling'!A238 -> 122 | B123: =IF('Sjekkliste for utfylling'!E238<>"",1,0) -> 0 | C123: 0 | E123: =IF($C123=1,'Sjekkliste for utfylling'!A238,"") ->  | F123: =IF($C123=1,'Sjekkliste for utfylling'!B238,"") ->  | H123: =IF(C123=1,'Sjekkliste for utfylling'!H238," ") -> 
A124: ='Sjekkliste for utfylling'!A239 -> 123 | B124: =IF('Sjekkliste for utfylling'!E239<>"",1,0) -> 0 | C124: 0 | E124: =IF($C124=1,'Sjekkliste for utfylling'!A239,"") ->  | F124: =IF($C124=1,'Sjekkliste for utfylling'!B239,"") ->  | H124: =IF(C124=1,'Sjekkliste for utfylling'!H239," ") -> 
A125: ='Sjekkliste for utfylling'!A243 -> 124 | B125: =IF('Sjekkliste for utfylling'!E243<>"",1,0) -> 0 | C125: 0 | E125: =IF($C125=1,'Sjekkliste for utfylling'!A243,"") ->  | F125: =IF($C125=1,'Sjekkliste for utfylling'!B243,"") ->  | H125: =IF(C125=1,'Sjekkliste for utfylling'!H243," ") -> 
A126: ='Sjekkliste for utfylling'!A246 -> 125 | B126: =IF('Sjekkliste for utfylling'!E246<>"",1,0) -> 0 | C126: 0 | E126: =IF($C126=1,'Sjekkliste for utfylling'!A246,"") ->  | F126: =IF($C126=1,'Sjekkliste for utfylling'!B246,"") ->  | H126: =IF(C126=1,'Sjekkliste for utfylling'!H246," ") -> 
A127: ='Sjekkliste for utfylling'!A247 -> 126 | B127: =IF('Sjekkliste for utfylling'!E247<>"",1,0) -> 0 | C127: 0 | E127: =IF($C127=1,'Sjekkliste for utfylling'!A247,"") ->  | F127: =IF($C127=1,'Sjekkliste for utfylling'!B247,"") ->  | H127: =IF(C127=1,'Sjekkliste for utfylling'!H247," ") -> 
A128: ='Sjekkliste for utfylling'!A248 -> 127 | B128: =IF('Sjekkliste for utfylling'!E248<>"",1,0) -> 0 | C128: 0 | E128: =IF($C128=1,'Sjekkliste for utfylling'!A248,"") ->  | F128: =IF($C128=1,'Sjekkliste for utfylling'!B248,"") ->  | H128: =IF(C128=1,'Sjekkliste for utfylling'!H248," ") -> 
A129: ='Sjekkliste for utfylling'!A249 -> 128 | B129: =IF('Sjekkliste for utfylling'!E249<>"",1,0) -> 0 | C129: 0 | E129: =IF($C129=1,'Sjekkliste for utfylling'!A249,"") ->  | F129: =IF($C129=1,'Sjekkliste for utfylling'!B249,"") ->  | H129: =IF(C129=1,'Sjekkliste for utfylling'!H249," ") -> 
A130: ='Sjekkliste for utfylling'!A250 -> 129 | B130: =IF('Sjekkliste for utfylling'!E250<>"",1,0) -> 0 | C130: =SUM(B130:B130) -> 0 | E130: =IF($C130=1,'Sjekkliste for utfylling'!A250,"") ->  | F130: =IF($C130=1,'Sjekkliste for utfylling'!B250,"") ->  | H130: =IF(C130=1,'Sjekkliste for utfylling'!H250," ") -> 
A131: ='Sjekkliste for utfylling'!A251 -> 130 | B131: =IF('Sjekkliste for utfylling'!E251<>"",1,0) -> 0 | C131: 0 | E131: =IF($C131=1,'Sjekkliste for utfylling'!A251,"") ->  | F131: =IF($C131=1,'Sjekkliste for utfylling'!B251,"") ->  | H131: =IF(C131=1,'Sjekkliste for utfylling'!H251," ") -> 
A132: ='Sjekkliste for utfylling'!A254 -> 131 | B132: =IF('Sjekkliste for utfylling'!E254<>"",1,0) -> 0 | C132: =SUM(B132:B132) -> 0 | E132: =IF($C132=1,'Sjekkliste for utfylling'!A254,"") ->  | F132: =IF($C132=1,'Sjekkliste for utfylling'!B254,"") ->  | H132: =IF(C132=1,'Sjekkliste for utfylling'!H254," ") -> 

Sheet Nei-svar (hidden)
C1: =COUNTIF(C2:C60,"=1")-D1 -> 0 | D1: =SUM(D2:D25) -> 0 | E1: Nei-svar | F1: ='Sjekkliste for utfylling'!B2 -> 0 | G1: ='Sjekkliste for utfylling'!B3 -> 2024 | H1: ='Sjekkliste for utfylling'!C3 -> 0
A2: ='Sjekkliste for utfylling'!A13 -> 1 | B2: =IF('Sjekkliste for utfylling'!F13<>"",1,0) -> 0 | C2: =SUM(B2:B2) -> 0 | E2: =IF($C2=1,'Sjekkliste for utfylling'!A13,"") ->  | F2: =IF($C2=1,'Sjekkliste for utfylling'!B13,"") ->  | H2: =IF(C2=1,'Sjekkliste for utfylling'!H13," ") -> 
A3: ='Sjekkliste for utfylling'!A14 -> 2 | B3: =IF('Sjekkliste for utfylling'!F14<>"",1,0) -> 0 | C3: 0 | E3: =IF($C3=1,'Sjekkliste for utfylling'!A14,"") ->  | F3: =IF($C3=1,'Sjekkliste for utfylling'!B14,"") ->  | H3: =IF(C3=1,'Sjekkliste for utfylling'!H14," ") -> 
A4: ='Sjekkliste for utfylling'!A15 -> 3 | B4: =IF('Sjekkliste for utfylling'!F15<>"",1,0) -> 0 | C4: 0 | E4: =IF($C4=1,'Sjekkliste for utfylling'!A15,"") ->  | F4: =IF($C4=1,'Sjekkliste for utfylling'!B15,"") ->  | H4: =IF(C4=1,'Sjekkliste for utfylling'!H15," ") -> 
A5: ='Sjekkliste for utfylling'!A18 -> 4 | B5: =IF('Sjekkliste for utfylling'!F18<>"",1,0) -> 0 | C5: 0 | E5: =IF($C5=1,'Sjekkliste for utfylling'!A18,"") ->  | F5: =IF($C5=1,'Sjekkliste for utfylling'!B18,"") ->  | H5: =IF(C5=1,'Sjekkliste for utfylling'!H18," ") -> 
A6: ='Sjekkliste for utfylling'!A21 -> 5 | B6: =IF('Sjekkliste for utfylling'!F21<>"",1,0) -> 0 | C6: 0 | E6: =IF($C6=1,'Sjekkliste for utfylling'!A21,"") ->  | F6: =IF($C6=1,'Sjekkliste for utfylling'!B21,"") ->  | H6: =IF(C6=1,'Sjekkliste for utfylling'!H21," ") -> 
A7: ='Sjekkliste for utfylling'!A22 -> 6 | B7: =IF('Sjekkliste for utfylling'!F22<>"",1,0) -> 0 | C7: 0 | E7: =IF($C7=1,'Sjekkliste for utfylling'!A22,"") ->  | F7: =IF($C7=1,'Sjekkliste for utfylling'!B22,"") ->  | H7: =IF(C7=1,'Sjekkliste for utfylling'!H22," ") -> 
A8: ='Sjekkliste for utfylling'!A23 -> 7 | B8: =IF('Sjekkliste for utfylling'!F23<>"",1,0) -> 0 | C8: 0 | E8: =IF($C8=1,'Sjekkliste for utfylling'!A23,"") ->  | F8: =IF($C8=1,'Sjekkliste for utfylling'!B23,"") ->  | H8: =IF(C8=1,'Sjekkliste for utfylling'!H23," ") -> 
A9: ='Sjekkliste for utfylling'!A24 -> 8 | B9: =IF('Sjekkliste for utfylling'!F24<>"",1,0) -> 0 | C9: 0 | E9: =IF($C9=1,'Sjekkliste for utfylling'!A24,"") ->  | F9: =IF($C9=1,'Sjekkliste for utfylling'!B24,"") ->  | H9: =IF(C9=1,'Sjekkliste for utfylling'!H24," ") -> 
A10: ='Sjekkliste for utfylling'!A25 -> 9 | B10: =IF('Sjekkliste for utfylling'!F25<>"",1,0) -> 0 | C10: 0 | E10: =IF($C10=1,'Sjekkliste for utfylling'!A25,"") ->  | F10: =IF($C10=1,'Sjekkliste for utfylling'!B25,"") ->  | H10: =IF(C10=1,'Sjekkliste for utfylling'!H25," ") -> 
A11: ='Sjekkliste for utfylling'!A26 -> 10 | B11: =IF('Sjekkliste for utfylling'!F26<>"",1,0) -> 0 | C11: 0 | E11: =IF($C11=1,'Sjekkliste for utfylling'!A26,"") ->  | F11: =IF($C11=1,'Sjekkliste for utfylling'!B26,"") ->  | H11: =IF(C11=1,'Sjekkliste for utfylling'!H26," ") -> 
A12: ='Sjekkliste for utfylling'!A27 -> 11 | B12: =IF('Sjekkliste for utfylling'!F27<>"",1,0) -> 0 | C12: 0 | E12: =IF($C12=1,'Sjekkliste for utfylling'!A27,"") ->  | F12: =IF($C12=1,'Sjekkliste for utfylling'!B27,"") ->  | H12: =IF(C12=1,'Sjekkliste for utfylling'!H27," ") -> 
A13: ='Sjekkliste for utfylling'!A29 -> 12 | B13: =IF('Sjekkliste for utfylling'!F29<>"",1,0) -> 0 | C13: 0 | E13: =IF($C13=1,'Sjekkliste for utfylling'!A29,"") ->  | F13: =IF($C13=1,'Sjekkliste for utfylling'!B29,"") ->  | H13: =IF(C13=1,'Sjekkliste for utfylling'!H29," ") -> 
A14: ='Sjekkliste for utfylling'!A32 -> 13 | B14: =IF('Sjekkliste for utfylling'!F32<>"",1,0) -> 0 | C14: 0 | E14: =IF($C14=1,'Sjekkliste for utfylling'!A32,"") ->  | F14: =IF($C14=1,'Sjekkliste for utfylling'!B32,"") ->  | H14: =IF(C14=1,'Sjekkliste for utfylling'!H32," ") -> 
A15: ='Sjekkliste for utfylling'!A33 -> 14 | B15: =IF('Sjekkliste for utfylling'!F33<>"",1,0) -> 0 | C15: 0 | E15: =IF($C15=1,'Sjekkliste for utfylling'!A33,"") ->  | F15: =IF($C15=1,'Sjekkliste for utfylling'!B33,"") ->  | H15: =IF(C15=1,'Sjekkliste for utfylling'!H33," ") -> 
A16: ='Sjekkliste for utfylling'!A34 -> 15 | B16: =IF('Sjekkliste for utfylling'!F34<>"",1,0) -> 0 | C16: 0 | E16: =IF($C16=1,'Sjekkliste for utfylling'!A34,"") ->  | F16: =IF($C16=1,'Sjekkliste for utfylling'!B34,"") ->  | H16: =IF(C16=1,'Sjekkliste for utfylling'!H34," ") -> 
A17: ='Sjekkliste for utfylling'!A35 -> 16 | B17: =IF('Sjekkliste for utfylling'!F35<>"",1,0) -> 0 | C17: 0 | E17: =IF($C17=1,'Sjekkliste for utfylling'!A35,"") ->  | F17: =IF($C17=1,'Sjekkliste for utfylling'!B35,"") ->  | H17: =IF(C17=1,'Sjekkliste for utfylling'!H35," ") -> 
A18: ='Sjekkliste for utfylling'!A40 -> 17 | B18: =IF('Sjekkliste for utfylling'!F40<>"",1,0) -> 0 | C18: 0 | E18: =IF($C18=1,'Sjekkliste for utfylling'!A40,"") ->  | F18: =IF($C18=1,'Sjekkliste for utfylling'!B40,"") ->  | H18: =IF(C18=1,'Sjekkliste for utfylling'!H40," ") -> 
A19: ='Sjekkliste for utfylling'!A41 -> 18 | B19: =IF('Sjekkliste for utfylling'!F41<>"",1,0) -> 0 | C19: 0 | E19: =IF($C19=1,'Sjekkliste for utfylling'!A41,"") ->  | F19: =IF($C19=1,'Sjekkliste for utfylling'!B41,"") ->  | H19: =IF(C19=1,'Sjekkliste for utfylling'!H41," ") -> 
A20: ='Sjekkliste for utfylling'!A42 -> 19 | B20: =IF('Sjekkliste for utfylling'!F42<>"",1,0) -> 0 | C20: 0 | E20: =IF($C20=1,'Sjekkliste for utfylling'!A42,"") ->  | F20: =IF($C20=1,'Sjekkliste for utfylling'!B42,"") ->  | H20: =IF(C20=1,'Sjekkliste for utfylling'!H42," ") -> 
A21: ='Sjekkliste for utfylling'!A43 -> 20 | B21: =IF('Sjekkliste for utfylling'!F43<>"",1,0) -> 0 | C21: 0 | E21: =IF($C21=1,'Sjekkliste for utfylling'!A43,"") ->  | F21: =IF($C21=1,'Sjekkliste for utfylling'!B43,"") ->  | H21: =IF(C21=1,'Sjekkliste for utfylling'!H43," ") -> 
A22: ='Sjekkliste for utfylling'!A44 -> 21 | B22: =IF('Sjekkliste for utfylling'!F44<>"",1,0) -> 0 | C22: 0 | E22: =IF($C22=1,'Sjekkliste for utfylling'!A44,"") ->  | F22: =IF($C22=1,'Sjekkliste for utfylling'!B44,"") ->  | H22: =IF(C22=1,'Sjekkliste for utfylling'!H44," ") -> 
A23: ='Sjekkliste for utfylling'!A45 -> 22 | B23: =IF('Sjekkliste for utfylling'!F45<>"",1,0) -> 0 | C23: 0 | E23: =IF($C23=1,'Sjekkliste for utfylling'!A45,"") ->  | F23: =IF($C23=1,'Sjekkliste for utfylling'!B45,"") ->  | H23: =IF(C23=1,'Sjekkliste for utfylling'!H45," ") -> 
A24: ='Sjekkliste for utfylling'!A46 -> 23 | B24: =IF('Sjekkliste for utfylling'!F46<>"",1,0) -> 0 | C24: 0 | E24: =IF($C24=1,'Sjekkliste for utfylling'!A46,"") ->  | F24: =IF($C24=1,'Sjekkliste for utfylling'!B46,"") ->  | H24: =IF(C24=1,'Sjekkliste for utfylling'!H46," ") -> 
A25: ='Sjekkliste for utfylling'!A47 -> 24 | B25: =IF('Sjekkliste for utfylling'!F47<>"",1,0) -> 0 | C25: 0 | E25: =IF($C25=1,'Sjekkliste for utfylling'!A47,"") ->  | F25: =IF($C25=1,'Sjekkliste for utfylling'!B47,"") ->  | H25: =IF(C25=1,'Sjekkliste for utfylling'!H47," ") -> 
A26: ='Sjekkliste for utfylling'!A48 -> 25 | B26: =IF('Sjekkliste for utfylling'!F48<>"",1,0) -> 0 | C26: 0 | E26: =IF($C26=1,'Sjekkliste for utfylling'!A48,"") ->  | F26: =IF($C26=1,'Sjekkliste for utfylling'!B48,"") ->  | H26: =IF(C26=1,'Sjekkliste for utfylling'!H48," ") -> 
A27: ='Sjekkliste for utfylling'!A49 -> 26 | B27: =IF('Sjekkliste for utfylling'!F49<>"",1,0) -> 0 | C27: 0 | E27: =IF($C27=1,'Sjekkliste for utfylling'!A49,"") ->  | F27: =IF($C27=1,'Sjekkliste for utfylling'!B49,"") ->  | H27: =IF(C27=1,'Sjekkliste for utfylling'!H49," ") -> 
A28: ='Sjekkliste for utfylling'!A50 -> 27 | B28: =IF('Sjekkliste for utfylling'!F50<>"",1,0) -> 0 | C28: 0 | E28: =IF($C28=1,'Sjekkliste for utfylling'!A50,"") ->  | F28: =IF($C28=1,'Sjekkliste for utfylling'!B50,"") ->  | H28: =IF(C28=1,'Sjekkliste for utfylling'!H50," ") -> 
A29: ='Sjekkliste for utfylling'!A51 -> 28 | B29: =IF('Sjekkliste for utfylling'!F51<>"",1,0) -> 0 | C29: 0 | E29: =IF($C29=1,'Sjekkliste for utfylling'!A51,"") ->  | F29: =IF($C29=1,'Sjekkliste for utfylling'!B51,"") ->  | H29: =IF(C29=1,'Sjekkliste for utfylling'!H51," ") -> 
A30: ='Sjekkliste for utfylling'!A53 -> 29 | B30: =IF('Sjekkliste for utfylling'!F53<>"",1,0) -> 0 | C30: 0 | E30: =IF($C30=1,'Sjekkliste for utfylling'!A53,"") ->  | F30: =IF($C30=1,'Sjekkliste for utfylling'!B53,"") ->  | H30: =IF(C30=1,'Sjekkliste for utfylling'!H53," ") -> 
A31: ='Sjekkliste for utfylling'!A54 -> 30 | B31: =IF('Sjekkliste for utfylling'!F54<>"",1,0) -> 0 | C31: 0 | E31: =IF($C31=1,'Sjekkliste for utfylling'!A54,"") ->  | F31: =IF($C31=1,'Sjekkliste for utfylling'!B54,"") ->  | H31: =IF(C31=1,'Sjekkliste for utfylling'!H54," ") -> 
A32: ='Sjekkliste for utfylling'!A56 -> 31 | B32: =IF('Sjekkliste for utfylling'!F56<>"",1,0) -> 0 | C32: 0 | E32: =IF($C32=1,'Sjekkliste for utfylling'!A56,"") ->  | F32: =IF($C32=1,'Sjekkliste for utfylling'!B56,"") ->  | H32: =IF(C32=1,'Sjekkliste for utfylling'!H56," ") -> 
A33: ='Sjekkliste for utfylling'!A60 -> 32 | B33: =IF('Sjekkliste for utfylling'!F60<>"",1,0) -> 0 | C33: 0 | E33: =IF($C33=1,'Sjekkliste for utfylling'!A60,"") ->  | F33: =IF($C33=1,'Sjekkliste for utfylling'!B60,"") ->  | H33: =IF(C33=1,'Sjekkliste for utfylling'!H60," ") -> 
A34: ='Sjekkliste for utfylling'!A64 -> 33 | B34: =IF('Sjekkliste for utfylling'!F64<>"",1,0) -> 0 | C34: =SUM(B34:B34) -> 0 | E34: =IF($C34=1,'Sjekkliste for utfylling'!A64,"") ->  | F34: =IF($C34=1,'Sjekkliste for utfylling'!B64,"") ->  | H34: =IF(C34=1,'Sjekkliste for utfylling'!H64," ") -> 
A35: ='Sjekkliste for utfylling'!A65 -> 34 | B35: =IF('Sjekkliste for utfylling'!F65<>"",1,0) -> 0 | C35: 0 | E35: =IF($C35=1,'Sjekkliste for utfylling'!A65,"") ->  | F35: =IF($C35=1,'Sjekkliste for utfylling'!B65,"") ->  | H35: =IF(C35=1,'Sjekkliste for utfylling'!H65," ") -> 
A36: ='Sjekkliste for utfylling'!A66 -> 35 | B36: =IF('Sjekkliste for utfylling'!F66<>"",1,0) -> 0 | C36: 0 | E36: =IF($C36=1,'Sjekkliste for utfylling'!A66,"") ->  | F36: =IF($C36=1,'Sjekkliste for utfylling'!B66,"") ->  | H36: =IF(C36=1,'Sjekkliste for utfylling'!H66," ") -> 
A37: ='Sjekkliste for utfylling'!A67 -> 36 | B37: =IF('Sjekkliste for utfylling'!F67<>"",1,0) -> 0 | C37: 0 | E37: =IF($C37=1,'Sjekkliste for utfylling'!A67,"") ->  | F37: =IF($C37=1,'Sjekkliste for utfylling'!B67,"") ->  | H37: =IF(C37=1,'Sjekkliste for utfylling'!H67," ") -> 
A38: ='Sjekkliste for utfylling'!A68 -> 37 | B38: =IF('Sjekkliste for utfylling'!F68<>"",1,0) -> 0 | C38: 0 | E38: =IF($C38=1,'Sjekkliste for utfylling'!A68,"") ->  | F38: =IF($C38=1,'Sjekkliste for utfylling'!B68,"") ->  | H38: =IF(C38=1,'Sjekkliste for utfylling'!H68," ") -> 
A39: ='Sjekkliste for utfylling'!A75 -> 38 | B39: =IF('Sjekkliste for utfylling'!F75<>"",1,0) -> 0 | C39: 0 | E39: =IF($C39=1,'Sjekkliste for utfylling'!A75,"") ->  | F39: =IF($C39=1,'Sjekkliste for utfylling'!B75,"") ->  | H39: =IF(C39=1,'Sjekkliste for utfylling'!H75," ") -> 
A40: ='Sjekkliste for utfylling'!A76 -> 39 | B40: =IF('Sjekkliste for utfylling'!F76<>"",1,0) -> 0 | C40: 0 | E40: =IF($C40=1,'Sjekkliste for utfylling'!A76,"") ->  | F40: =IF($C40=1,'Sjekkliste for utfylling'!B76,"") ->  | H40: =IF(C40=1,'Sjekkliste for utfylling'!H76," ") -> 
A41: ='Sjekkliste for utfylling'!A77 -> 40 | B41: =IF('Sjekkliste for utfylling'!F77<>"",1,0) -> 0 | C41: 0 | E41: =IF($C41=1,'Sjekkliste for utfylling'!A77,"") ->  | F41: =IF($C41=1,'Sjekkliste for utfylling'!B77,"") ->  | H41: =IF(C41=1,'Sjekkliste for utfylling'!H77," ") -> 
A42: ='Sjekkliste for utfylling'!A78 -> 41 | B42: =IF('Sjekkliste for utfylling'!F78<>"",1,0) -> 0 | C42: 0 | E42: =IF($C42=1,'Sjekkliste for utfylling'!A78,"") ->  | F42: =IF($C42=1,'Sjekkliste for utfylling'!B78,"") ->  | H42: =IF(C42=1,'Sjekkliste for utfylling'!H78," ") -> 
A43: ='Sjekkliste for utfylling'!A79 -> 42 | B43: =IF('Sjekkliste for utfylling'!F79<>"",1,0) -> 0 | C43: 0 | E43: =IF($C43=1,'Sjekkliste for utfylling'!A79,"") ->  | F43: =IF($C43=1,'Sjekkliste for utfylling'!B79,"") ->  | H43: =IF(C43=1,'Sjekkliste for utfylling'!H79," ") -> 
A44: ='Sjekkliste for utfylling'!A81 -> 43 | B44: =IF('Sjekkliste for utfylling'!F81<>"",1,0) -> 0 | C44: 0 | E44: =IF($C44=1,'Sjekkliste for utfylling'!A81,"") ->  | F44: =IF($C44=1,'Sjekkliste for utfylling'!B81,"") ->  | H44: =IF(C44=1,'Sjekkliste for utfylling'!H81," ") -> 
A45: ='Sjekkliste for utfylling'!A84 -> 44 | B45: =IF('Sjekkliste for utfylling'!F84<>"",1,0) -> 0 | C45: 0 | E45: =IF($C45=1,'Sjekkliste for utfylling'!A84,"") ->  | F45: =IF($C45=1,'Sjekkliste for utfylling'!B84,"") ->  | H45: =IF(C45=1,'Sjekkliste for utfylling'!H84," ") -> 
A46: ='Sjekkliste for utfylling'!A85 -> 45 | B46: =IF('Sjekkliste for utfylling'!F85<>"",1,0) -> 0 | C46: 0 | E46: =IF($C46=1,'Sjekkliste for utfylling'!A85,"") ->  | F46: =IF($C46=1,'Sjekkliste for utfylling'!B85,"") ->  | H46: =IF(C46=1,'Sjekkliste for utfylling'!H85," ") -> 
A47: ='Sjekkliste for utfylling'!A87 -> 46 | B47: =IF('Sjekkliste for utfylling'!F87<>"",1,0) -> 0 | C47: 0 | E47: =IF($C47=1,'Sjekkliste for utfylling'!A87,"") ->  | F47: =IF($C47=1,'Sjekkliste for utfylling'!B87,"") ->  | H47: =IF(C47=1,'Sjekkliste for utfylling'!H87," ") -> 
A48: ='Sjekkliste for utfylling'!A88 -> 47 | B48: =IF('Sjekkliste for utfylling'!F88<>"",1,0) -> 0 | C48: 0 | E48: =IF($C48=1,'Sjekkliste for utfylling'!A88,"") ->  | F48: =IF($C48=1,'Sjekkliste for utfylling'!B88,"") ->  | H48: =IF(C48=1,'Sjekkliste for utfylling'!H88," ") -> 
A49: ='Sjekkliste for utfylling'!A92 -> 48 | B49: =IF('Sjekkliste for utfylling'!F92<>"",1,0) -> 0 | C49: 0 | E49: =IF($C49=1,'Sjekkliste for utfylling'!A92,"") ->  | F49: =IF($C49=1,'Sjekkliste for utfylling'!B92,"") ->  | H49: =IF(C49=1,'Sjekkliste for utfylling'!H92," ") -> 
A50: ='Sjekkliste for utfylling'!A93 -> 49 | B50: =IF('Sjekkliste for utfylling'!F93<>"",1,0) -> 0 | C50: 0 | E50: =IF($C50=1,'Sjekkliste for utfylling'!A93,"") ->  | F50: =IF($C50=1,'Sjekkliste for utfylling'!B93,"") ->  | H50: =IF(C50=1,'Sjekkliste for utfylling'!H93," ") -> 
A51: ='Sjekkliste for utfylling'!A99 -> 50 | B51: =IF('Sjekkliste for utfylling'!F99<>"",1,0) -> 0 | C51: 0 | E51: =IF($C51=1,'Sjekkliste for utfylling'!A99,"") ->  | F51: =IF($C51=1,'Sjekkliste for utfylling'!B99,"") ->  | H51: =IF(C51=1,'Sjekkliste for utfylling'!H99," ") -> 
A52: ='Sjekkliste for utfylling'!A101 -> 51 | B52: =IF('Sjekkliste for utfylling'!F101<>"",1,0) -> 0 | C52: 0 | E52: =IF($C52=1,'Sjekkliste for utfylling'!A101,"") ->  | F52: =IF($C52=1,'Sjekkliste for utfylling'!B101,"") ->  | H52: =IF(C52=1,'Sjekkliste for utfylling'!H101," ") -> 
A53: ='Sjekkliste for utfylling'!A103 -> 52 | B53: =IF('Sjekkliste for utfylling'!F103<>"",1,0) -> 0 | C53: 0 | E53: =IF($C53=1,'Sjekkliste for utfylling'!A103,"") ->  | F53: =IF($C53=1,'Sjekkliste for utfylling'!B103,"") ->  | H53: =IF(C53=1,'Sjekkliste for utfylling'!H103," ") -> 
A54: ='Sjekkliste for utfylling'!A104 -> 53 | B54: =IF('Sjekkliste for utfylling'!F104<>"",1,0) -> 0 | C54: 0 | E54: =IF($C54=1,'Sjekkliste for utfylling'!A104,"") ->  | F54: =IF($C54=1,'Sjekkliste for utfylling'!B104,"") ->  | H54: =IF(C54=1,'Sjekkliste for utfylling'!H104," ") -> 
A55: ='Sjekkliste for utfylling'!A105 -> 54 | B55: =IF('Sjekkliste for utfylling'!F105<>"",1,0) -> 0 | C55: 0 | E55: =IF($C55=1,'Sjekkliste for utfylling'!A105,"") ->  | F55: =IF($C55=1,'Sjekkliste for utfylling'!B105,"") ->  | H55: =IF(C55=1,'Sjekkliste for utfylling'!H105," ") -> 
A56: ='Sjekkliste for utfylling'!A107 -> 55 | B56: =IF('Sjekkliste for utfylling'!F107<>"",1,0) -> 0 | C56: 0 | E56: =IF($C56=1,'Sjekkliste for utfylling'!A107,"") ->  | F56: =IF($C56=1,'Sjekkliste for utfylling'!B107,"") ->  | H56: =IF(C56=1,'Sjekkliste for utfylling'!H107," ") -> 
A57: ='Sjekkliste for utfylling'!A111 -> 56 | B57: =IF('Sjekkliste for utfylling'!F111<>"",1,0) -> 0 | C57: 0 | E57: =IF($C57=1,'Sjekkliste for utfylling'!A111,"") ->  | F57: =IF($C57=1,'Sjekkliste for utfylling'!B111,"") ->  | H57: =IF(C57=1,'Sjekkliste for utfylling'!H111," ") -> 
A58: ='Sjekkliste for utfylling'!A119 -> 57 | B58: =IF('Sjekkliste for utfylling'!F119<>"",1,0) -> 0 | C58: 0 | E58: =IF($C58=1,'Sjekkliste for utfylling'!A119,"") ->  | F58: =IF($C58=1,'Sjekkliste for utfylling'!B119,"") ->  | H58: =IF(C58=1,'Sjekkliste for utfylling'!H119," ") -> 
A59: ='Sjekkliste for utfylling'!A120 -> 58 | B59: =IF('Sjekkliste for utfylling'!F120<>"",1,0) -> 0 | C59: 0 | E59: =IF($C59=1,'Sjekkliste for utfylling'!A120,"") ->  | F59: =IF($C59=1,'Sjekkliste for utfylling'!B120,"") ->  | H59: =IF(C59=1,'Sjekkliste for utfylling'!H120," ") -> 
A60: ='Sjekkliste for utfylling'!A121 -> 59 | B60: =IF('Sjekkliste for utfylling'!F121<>"",1,0) -> 0 | C60: 0 | E60: =IF($C60=1,'Sjekkliste for utfylling'!A121,"") ->  | F60: =IF($C60=1,'Sjekkliste for utfylling'!B121,"") ->  | H60: =IF(C60=1,'Sjekkliste for utfylling'!H121," ") -> 
A61: ='Sjekkliste for utfylling'!A122 -> 60 | B61: =IF('Sjekkliste for utfylling'!F122<>"",1,0) -> 0 | C61: 0 | E61: =IF($C61=1,'Sjekkliste for utfylling'!A122,"") ->  | F61: =IF($C61=1,'Sjekkliste for utfylling'!B122,"") ->  | H61: =IF(C61=1,'Sjekkliste for utfylling'!H122," ") -> 
A62: ='Sjekkliste for utfylling'!A123 -> 61 | B62: =IF('Sjekkliste for utfylling'!F123<>"",1,0) -> 0 | C62: 0 | E62: =IF($C62=1,'Sjekkliste for utfylling'!A123,"") ->  | F62: =IF($C62=1,'Sjekkliste for utfylling'!B123,"") ->  | H62: =IF(C62=1,'Sjekkliste for utfylling'!H123," ") -> 
A63: ='Sjekkliste for utfylling'!A124 -> 62 | B63: =IF('Sjekkliste for utfylling'!F124<>"",1,0) -> 0 | C63: 0 | E63: =IF($C63=1,'Sjekkliste for utfylling'!A124,"") ->  | F63: =IF($C63=1,'Sjekkliste for utfylling'!B124,"") ->  | H63: =IF(C63=1,'Sjekkliste for utfylling'!H124," ") -> 
A64: ='Sjekkliste for utfylling'!A129 -> 63 | B64: =IF('Sjekkliste for utfylling'!F129<>"",1,0) -> 0 | C64: 0 | E64: =IF($C64=1,'Sjekkliste for utfylling'!A129,"") ->  | F64: =IF($C64=1,'Sjekkliste for utfylling'!B129,"") ->  | H64: =IF(C64=1,'Sjekkliste for utfylling'!H129," ") -> 
A65: ='Sjekkliste for utfylling'!A131 -> 64 | B65: =IF('Sjekkliste for utfylling'!F131<>"",1,0) -> 0 | C65: 0 | E65: =IF($C65=1,'Sjekkliste for utfylling'!A131,"") ->  | F65: =IF($C65=1,'Sjekkliste for utfylling'!B131,"") ->  | H65: =IF(C65=1,'Sjekkliste for utfylling'!H131," ") -> 
A66: ='Sjekkliste for utfylling'!A132 -> 65 | B66: =IF('Sjekkliste for utfylling'!F132<>"",1,0) -> 0 | C66: =SUM(B66:B66) -> 0 | E66: =IF($C66=1,'Sjekkliste for utfylling'!A132,"") ->  | F66: =IF($C66=1,'Sjekkliste for utfylling'!B132,"") ->  | H66: =IF(C66=1,'Sjekkliste for utfylling'!H132," ") -> 
A67: ='Sjekkliste for utfylling'!A133 -> 66 | B67: =IF('Sjekkliste for utfylling'!F133<>"",1,0) -> 0 | C67: 0 | E67: =IF($C67=1,'Sjekkliste for utfylling'!A133,"") ->  | F67: =IF($C67=1,'Sjekkliste for utfylling'!B133,"") ->  | H67: =IF(C67=1,'Sjekkliste for utfylling'!H133," ") -> 
A68: ='Sjekkliste for utfylling'!A138 -> 67 | B68: =IF('Sjekkliste for utfylling'!F138<>"",1,0) -> 0 | C68: 0 | E68: =IF($C68=1,'Sjekkliste for utfylling'!A138,"") ->  | F68: =IF($C68=1,'Sjekkliste for utfylling'!B138,"") ->  | H68: =IF(C68=1,'Sjekkliste for utfylling'!H138," ") -> 
A69: ='Sjekkliste for utfylling'!A139 -> 68 | B69: =IF('Sjekkliste for utfylling'!F139<>"",1,0) -> 0 | C69: 0 | E69: =IF($C69=1,'Sjekkliste for utfylling'!A139,"") ->  | F69: =IF($C69=1,'Sjekkliste for utfylling'!B139,"") ->  | H69: =IF(C69=1,'Sjekkliste for utfylling'!H139," ") -> 
A70: ='Sjekkliste for utfylling'!A140 -> 69 | B70: =IF('Sjekkliste for utfylling'!F140<>"",1,0) -> 0 | C70: 0 | E70: =IF($C70=1,'Sjekkliste for utfylling'!A140,"") ->  | F70: =IF($C70=1,'Sjekkliste for utfylling'!B140,"") ->  | H70: =IF(C70=1,'Sjekkliste for utfylling'!H140," ") -> 
A71: ='Sjekkliste for utfylling'!A142 -> 70 | B71: =IF('Sjekkliste for utfylling'!F142<>"",1,0) -> 0 | C71: 0 | E71: =IF($C71=1,'Sjekkliste for utfylling'!A142,"") ->  | F71: =IF($C71=1,'Sjekkliste for utfylling'!B142,"") ->  | H71: =IF(C71=1,'Sjekkliste for utfylling'!H142," ") -> 
A72: ='Sjekkliste for utfylling'!A144 -> 71 | B72: =IF('Sjekkliste for utfylling'!F144<>"",1,0) -> 0 | C72: 0 | E72: =IF($C72=1,'Sjekkliste for utfylling'!A144,"") ->  | F72: =IF($C72=1,'Sjekkliste for utfylling'!B144,"") ->  | H72: =IF(C72=1,'Sjekkliste for utfylling'!H144," ") -> 
A73: ='Sjekkliste for utfylling'!A146 -> 72 | B73: =IF('Sjekkliste for utfylling'!F146<>"",1,0) -> 0 | C73: 0 | E73: =IF($C73=1,'Sjekkliste for utfylling'!A146,"") ->  | F73: =IF($C73=1,'Sjekkliste for utfylling'!B146,"") ->  | H73: =IF(C73=1,'Sjekkliste for utfylling'!H146," ") -> 
A74: ='Sjekkliste for utfylling'!A149 -> 73 | B74: =IF('Sjekkliste for utfylling'!F149<>"",1,0) -> 0 | C74: 0 | E74: =IF($C74=1,'Sjekkliste for utfylling'!A149,"") ->  | F74: =IF($C74=1,'Sjekkliste for utfylling'!B149,"") ->  | H74: =IF(C74=1,'Sjekkliste for utfylling'!H149," ") -> 
A75: ='Sjekkliste for utfylling'!A150 -> 74 | B75: =IF('Sjekkliste for utfylling'!F150<>"",1,0) -> 0 | C75: 0 | E75: =IF($C75=1,'Sjekkliste for utfylling'!A150,"") ->  | F75: =IF($C75=1,'Sjekkliste for utfylling'!B150,"") ->  | H75: =IF(C75=1,'Sjekkliste for utfylling'!H150," ") -> 
A76: ='Sjekkliste for utfylling'!A151 -> 75 | B76: =IF('Sjekkliste for utfylling'!F151<>"",1,0) -> 0 | C76: 0 | E76: =IF($C76=1,'Sjekkliste for utfylling'!A151,"") ->  | F76: =IF($C76=1,'Sjekkliste for utfylling'!B151,"") ->  | H76: =IF(C76=1,'Sjekkliste for utfylling'!H151," ") -> 
A77: ='Sjekkliste for utfylling'!A152 -> 76 | B77: =IF('Sjekkliste for utfylling'!F152<>"",1,0) -> 0 | C77: 0 | E77: =IF($C77=1,'Sjekkliste for utfylling'!A152,"") ->  | F77: =IF($C77=1,'Sjekkliste for utfylling'!B152,"") ->  | H77: =IF(C77=1,'Sjekkliste for utfylling'!H152," ") -> 
A78: ='Sjekkliste for utfylling'!A154 -> 77 | B78: =IF('Sjekkliste for utfylling'!F154<>"",1,0) -> 0 | C78: 0 | E78: =IF($C78=1,'Sjekkliste for utfylling'!A154,"") ->  | F78: =IF($C78=1,'Sjekkliste for utfylling'!B154,"") ->  | H78: =IF(C78=1,'Sjekkliste for utfylling'!H154," ") -> 
A79: ='Sjekkliste for utfylling'!A158 -> 78 | B79: =IF('Sjekkliste for utfylling'!F158<>"",1,0) -> 0 | C79: 0 | E79: =IF($C79=1,'Sjekkliste for utfylling'!A158,"") ->  | F79: =IF($C79=1,'Sjekkliste for utfylling'!B158,"") ->  | H79: =IF(C79=1,'Sjekkliste for utfylling'!H158," ") -> 
A80: ='Sjekkliste for utfylling'!A160 -> 79 | B80: =IF('Sjekkliste for utfylling'!F160<>"",1,0) -> 0 | C80: 0 | E80: =IF($C80=1,'Sjekkliste for utfylling'!A160,"") ->  | F80: =IF($C80=1,'Sjekkliste for utfylling'!B160,"") ->  | H80: =IF(C80=1,'Sjekkliste for utfylling'!H160," ") -> 
A81: ='Sjekkliste for utfylling'!A161 -> 80 | B81: =IF('Sjekkliste for utfylling'!F161<>"",1,0) -> 0 | C81: 0 | E81: =IF($C81=1,'Sjekkliste for utfylling'!A161,"") ->  | F81: =IF($C81=1,'Sjekkliste for utfylling'!B161,"") ->  | H81: =IF(C81=1,'Sjekkliste for utfylling'!H161," ") -> 
A82: ='Sjekkliste for utfylling'!A162 -> 81 | B82: =IF('Sjekkliste for utfylling'!F162<>"",1,0) -> 0 | C82: 0 | E82: =IF($C82=1,'Sjekkliste for utfylling'!A162,"") ->  | F82: =IF($C82=1,'Sjekkliste for utfylling'!B162,"") ->  | H82: =IF(C82=1,'Sjekkliste for utfylling'!H162," ") -> 
A83: ='Sjekkliste for utfylling'!A169 -> 82 | B83: =IF('Sjekkliste for utfylling'!F169<>"",1,0) -> 0 | C83: 0 | E83: =IF($C83=1,'Sjekkliste for utfylling'!A169,"") ->  | F83: =IF($C83=1,'Sjekkliste for utfylling'!B169,"") ->  | H83: =IF(C83=1,'Sjekkliste for utfylling'!H169," ") -> 
A84: ='Sjekkliste for utfylling'!A170 -> 83 | B84: =IF('Sjekkliste for utfylling'!F170<>"",1,0) -> 0 | C84: 0 | E84: =IF($C84=1,'Sjekkliste for utfylling'!A170,"") ->  | F84: =IF($C84=1,'Sjekkliste for utfylling'!B170,"") ->  | H84: =IF(C84=1,'Sjekkliste for utfylling'!H170," ") -> 
A85: ='Sjekkliste for utfylling'!A171 -> 84 | B85: =IF('Sjekkliste for utfylling'!F171<>"",1,0) -> 0 | C85: 0 | E85: =IF($C85=1,'Sjekkliste for utfylling'!A171,"") ->  | F85: =IF($C85=1,'Sjekkliste for utfylling'!B171,"") ->  | H85: =IF(C85=1,'Sjekkliste for utfylling'!H171," ") -> 
A86: ='Sjekkliste for utfylling'!A173 -> 85 | B86: =IF('Sjekkliste for utfylling'!F173<>"",1,0) -> 0 | C86: 0 | E86: =IF($C86=1,'Sjekkliste for utfylling'!A173,"") ->  | F86: =IF($C86=1,'Sjekkliste for utfylling'!B173,"") ->  | H86: =IF(C86=1,'Sjekkliste for utfylling'!H173," ") -> 
A87: ='Sjekkliste for utfylling'!A174 -> 86 | B87: =IF('Sjekkliste for utfylling'!F174<>"",1,0) -> 0 | C87: 0 | E87: =IF($C87=1,'Sjekkliste for utfylling'!A174,"") ->  | F87: =IF($C87=1,'Sjekkliste for utfylling'!B174,"") ->  | H87: =IF(C87=1,'Sjekkliste for utfylling'!H174," ") -> 
A88: ='Sjekkliste for utfylling'!A175 -> 87 | B88: =IF('Sjekkliste for utfylling'!F175<>"",1,0) -> 0 | C88: 0 | E88: =IF($C88=1,'Sjekkliste for utfylling'!A175,"") ->  | F88: =IF($C88=1,'Sjekkliste for utfylling'!B175,"") ->  | H88: =IF(C88=1,'Sjekkliste for utfylling'!H175," ") -> 
A89: ='Sjekkliste for utfylling'!A177 -> 88 | B89: =IF('Sjekkliste for utfylling'!F177<>"",1,0) -> 0 | C89: 0 | E89: =IF($C89=1,'Sjekkliste for utfylling'!A177,"") ->  | F89: =IF($C89=1,'Sjekkliste for utfylling'!B177,"") ->  | H89: =IF(C89=1,'Sjekkliste for utfylling'!H177," ") -> 
A90: ='Sjekkliste for utfylling'!A178 -> 89 | B90: =IF('Sjekkliste for utfylling'!F178<>"",1,0) -> 0 | C90: 0 | E90: =IF($C90=1,'Sjekkliste for utfylling'!A178,"") ->  | F90: =IF($C90=1,'Sjekkliste for utfylling'!B178,"") ->  | H90: =IF(C90=1,'Sjekkliste for utfylling'!H178," ") -> 
A91: ='Sjekkliste for utfylling'!A179 -> 90 | B91: =IF('Sjekkliste for utfylling'!F179<>"",1,0) -> 0 | C91: 0 | E91: =IF($C91=1,'Sjekkliste for utfylling'!A179,"") ->  | F91: =IF($C91=1,'Sjekkliste for utfylling'!B179,"") ->  | H91: =IF(C91=1,'Sjekkliste for utfylling'!H179," ") -> 
A92: ='Sjekkliste for utfylling'!A180 -> 91 | B92: =IF('Sjekkliste for utfylling'!F180<>"",1,0) -> 0 | C92: 0 | E92: =IF($C92=1,'Sjekkliste for utfylling'!A180,"") ->  | F92: =IF($C92=1,'Sjekkliste for utfylling'!B180,"") ->  | H92: =IF(C92=1,'Sjekkliste for utfylling'!H180," ") -> 
A93: ='Sjekkliste for utfylling'!A181 -> 92 | B93: =IF('Sjekkliste for utfylling'!F181<>"",1,0) -> 0 | C93: 0 | E93: =IF($C93=1,'Sjekkliste for utfylling'!A181,"") ->  | F93: =IF($C93=1,'Sjekkliste for utfylling'!B181,"") ->  | H93: =IF(C93=1,'Sjekkliste for utfylling'!H181," ") -> 
A94: ='Sjekkliste for utfylling'!A193 -> 93 | B94: =IF('Sjekkliste for utfylling'!F193<>"",1,0) -> 0 | C94: 0 | E94: =IF($C94=1,'Sjekkliste for utfylling'!A193,"") ->  | F94: =IF($C94=1,'Sjekkliste for utfylling'!B193,"") ->  | H94: =IF(C94=1,'Sjekkliste for utfylling'!H193," ") -> 
A95: ='Sjekkliste for utfylling'!A195 -> 94 | B95: =IF('Sjekkliste for utfylling'!F195<>"",1,0) -> 0 | C95: 0 | E95: =IF($C95=1,'Sjekkliste for utfylling'!A195,"") ->  | F95: =IF($C95=1,'Sjekkliste for utfylling'!B195,"") ->  | H95: =IF(C95=1,'Sjekkliste for utfylling'!H195," ") -> 
A96: ='Sjekkliste for utfylling'!A196 -> 95 | B96: =IF('Sjekkliste for utfylling'!F196<>"",1,0) -> 0 | C96: 0 | E96: =IF($C96=1,'Sjekkliste for utfylling'!A196,"") ->  | F96: =IF($C96=1,'Sjekkliste for utfylling'!B196,"") ->  | H96: =IF(C96=1,'Sjekkliste for utfylling'!H196," ") -> 
A97: ='Sjekkliste for utfylling'!A197 -> 96 | B97: =IF('Sjekkliste for utfylling'!F197<>"",1,0) -> 0 | C97: =SUM(B97:B97) -> 0 | E97: =IF($C97=1,'Sjekkliste for utfylling'!A197,"") ->  | F97: =IF($C97=1,'Sjekkliste for utfylling'!B197,"") ->  | H97: =IF(C97=1,'Sjekkliste for utfylling'!H197," ") -> 
A98: ='Sjekkliste for utfylling'!A198 -> 97 | B98: =IF('Sjekkliste for utfylling'!F198<>"",1,0) -> 0 | C98: 0 | E98: =IF($C98=1,'Sjekkliste for utfylling'!A198,"") ->  | F98: =IF($C98=1,'Sjekkliste for utfylling'!B198,"") ->  | H98: =IF(C98=1,'Sjekkliste for utfylling'!H198," ") -> 
A99: ='Sjekkliste for utfylling'!A199 -> 98 | B99: =IF('Sjekkliste for utfylling'!F199<>"",1,0) -> 0 | C99: 0 | E99: =IF($C99=1,'Sjekkliste for utfylling'!A199,"") ->  | F99: =IF($C99=1,'Sjekkliste for utfylling'!B199,"") ->  | H99: =IF(C99=1,'Sjekkliste for utfylling'!H199," ") -> 
A100: ='Sjekkliste for utfylling'!A201 -> 99 | B100: =IF('Sjekkliste for utfylling'!F201<>"",1,0) -> 0 | C100: 0 | E100: =IF($C100=1,'Sjekkliste for utfylling'!A201,"") ->  | F100: =IF($C100=1,'Sjekkliste for utfylling'!B201,"") ->  | H100: =IF(C100=1,'Sjekkliste for utfylling'!H201," ") -> 
A101: ='Sjekkliste for utfylling'!A202 -> 100 | B101: =IF('Sjekkliste for utfylling'!F202<>"",1,0) -> 0 | C101: 0 | E101: =IF($C101=1,'Sjekkliste for utfylling'!A202,"") ->  | F101: =IF($C101=1,'Sjekkliste for utfylling'!B202,"") ->  | H101: =IF(C101=1,'Sjekkliste for utfylling'!H202," ") -> 
A102: ='Sjekkliste for utfylling'!A205 -> 101 | B102: =IF('Sjekkliste for utfylling'!F205<>"",1,0) -> 0 | C102: 0 | E102: =IF($C102=1,'Sjekkliste for utfylling'!A205,"") ->  | F102: =IF($C102=1,'Sjekkliste for utfylling'!B205,"") ->  | H102: =IF(C102=1,'Sjekkliste for utfylling'!H205," ") -> 
A103: ='Sjekkliste for utfylling'!A206 -> 102 | B103: =IF('Sjekkliste for utfylling'!F206<>"",1,0) -> 0 | C103: 0 | E103: =IF($C103=1,'Sjekkliste for utfylling'!A206,"") ->  | F103: =IF($C103=1,'Sjekkliste for utfylling'!B206,"") ->  | H103: =IF(C103=1,'Sjekkliste for utfylling'!H206," ") -> 
A104: ='Sjekkliste for utfylling'!A207 -> 103 | B104: =IF('Sjekkliste for utfylling'!F207<>"",1,0) -> 0 | C104: 0 | E104: =IF($C104=1,'Sjekkliste for utfylling'!A207,"") ->  | F104: =IF($C104=1,'Sjekkliste for utfylling'!B207,"") ->  | H104: =IF(C104=1,'Sjekkliste for utfylling'!H207," ") -> 
A105: ='Sjekkliste for utfylling'!A209 -> 104 | B105: =IF('Sjekkliste for utfylling'!F209<>"",1,0) -> 0 | C105: 0 | E105: =IF($C105=1,'Sjekkliste for utfylling'!A209,"") ->  | F105: =IF($C105=1,'Sjekkliste for utfylling'!B209,"") ->  | H105: =IF(C105=1,'Sjekkliste for utfylling'!H209," ") -> 
A106: ='Sjekkliste for utfylling'!A211 -> 105 | B106: =IF('Sjekkliste for utfylling'!F211<>"",1,0) -> 0 | C106: 0 | E106: =IF($C106=1,'Sjekkliste for utfylling'!A211,"") ->  | F106: =IF($C106=1,'Sjekkliste for utfylling'!B211,"") ->  | H106: =IF(C106=1,'Sjekkliste for utfylling'!H211," ") -> 
A107: ='Sjekkliste for utfylling'!A212 -> 106 | B107: =IF('Sjekkliste for utfylling'!F212<>"",1,0) -> 0 | C107: 0 | E107: =IF($C107=1,'Sjekkliste for utfylling'!A212,"") ->  | F107: =IF($C107=1,'Sjekkliste for utfylling'!B212,"") ->  | H107: =IF(C107=1,'Sjekkliste for utfylling'!H212," ") -> 
A108: ='Sjekkliste for utfylling'!A213 -> 107 | B108: =IF('Sjekkliste for utfylling'!F213<>"",1,0) -> 0 | C108: 0 | E108: =IF($C108=1,'Sjekkliste for utfylling'!A213,"") ->  | F108: =IF($C108=1,'Sjekkliste for utfylling'!B213,"") ->  | H108: =IF(C108=1,'Sjekkliste for utfylling'!H213," ") -> 
A109: ='Sjekkliste for utfylling'!A214 -> 108 | B109: =IF('Sjekkliste for utfylling'!F214<>"",1,0) -> 0 | C109: 0 | E109: =IF($C109=1,'Sjekkliste for utfylling'!A214,"") ->  | F109: =IF($C109=1,'Sjekkliste for utfylling'!B214,"") ->  | H109: =IF(C109=1,'Sjekkliste for utfylling'!H214," ") -> 
A110: ='Sjekkliste for utfylling'!A215 -> 109 | B110: =IF('Sjekkliste for utfylling'!F215<>"",1,0) -> 0 | C110: 0 | E110: =IF($C110=1,'Sjekkliste for utfylling'!A215,"") ->  | F110: =IF($C110=1,'Sjekkliste for utfylling'!B215,"") ->  | H110: =IF(C110=1,'Sjekkliste for utfylling'!H215," ") -> 
A111: ='Sjekkliste for utfylling'!A216 -> 110 | B111: =IF('Sjekkliste for utfylling'!F216<>"",1,0) -> 0 | C111: 0 | E111: =IF($C111=1,'Sjekkliste for utfylling'!A216,"") ->  | F111: =IF($C111=1,'Sjekkliste for utfylling'!B216,"") ->  | H111: =IF(C111=1,'Sjekkliste for utfylling'!H216," ") -> 
A112: ='Sjekkliste for utfylling'!A217 -> 111 | B112: =IF('Sjekkliste for utfylling'!F217<>"",1,0) -> 0 | C112: 0 | E112: =IF($C112=1,'Sjekkliste for utfylling'!A217,"") ->  | F112: =IF($C112=1,'Sjekkliste for utfylling'!B217,"") ->  | H112: =IF(C112=1,'Sjekkliste for utfylling'!H217," ") -> 
A113: ='Sjekkliste for utfylling'!A218 -> 112 | B113: =IF('Sjekkliste for utfylling'!F218<>"",1,0) -> 0 | C113: 0 | E113: =IF($C113=1,'Sjekkliste for utfylling'!A218,"") ->  | F113: =IF($C113=1,'Sjekkliste for utfylling'!B218,"") ->  | H113: =IF(C113=1,'Sjekkliste for utfylling'!H218," ") -> 
A114: ='Sjekkliste for utfylling'!A219 -> 113 | B114: =IF('Sjekkliste for utfylling'!F219<>"",1,0) -> 0 | C114: 0 | E114: =IF($C114=1,'Sjekkliste for utfylling'!A219,"") ->  | F114: =IF($C114=1,'Sjekkliste for utfylling'!B219,"") ->  | H114: =IF(C114=1,'Sjekkliste for utfylling'!H219," ") -> 
A115: ='Sjekkliste for utfylling'!A220 -> 114 | B115: =IF('Sjekkliste for utfylling'!F220<>"",1,0) -> 0 | C115: 0 | E115: =IF($C115=1,'Sjekkliste for utfylling'!A220,"") ->  | F115: =IF($C115=1,'Sjekkliste for utfylling'!B220,"") ->  | H115: =IF(C115=1,'Sjekkliste for utfylling'!H220," ") -> 
A116: ='Sjekkliste for utfylling'!A224 -> 115 | B116: =IF('Sjekkliste for utfylling'!F224<>"",1,0) -> 0 | C116: 0 | E116: =IF($C116=1,'Sjekkliste for utfylling'!A224,"") ->  | F116: =IF($C116=1,'Sjekkliste for utfylling'!B224,"") ->  | H116: =IF(C116=1,'Sjekkliste for utfylling'!H224," ") -> 
A117: ='Sjekkliste for utfylling'!A227 -> 116 | B117: =IF('Sjekkliste for utfylling'!F227<>"",1,0) -> 0 | C117: 0 | E117: =IF($C117=1,'Sjekkliste for utfylling'!A227,"") ->  | F117: =IF($C117=1,'Sjekkliste for utfylling'!B227,"") ->  | H117: =IF(C117=1,'Sjekkliste for utfylling'!H227," ") -> 
A118: ='Sjekkliste for utfylling'!A229 -> 117 | B118: =IF('Sjekkliste for utfylling'!F229<>"",1,0) -> 0 | C118: 0 | E118: =IF($C118=1,'Sjekkliste for utfylling'!A229,"") ->  | F118: =IF($C118=1,'Sjekkliste for utfylling'!B229,"") ->  | H118: =IF(C118=1,'Sjekkliste for utfylling'!H229," ") -> 
A119: ='Sjekkliste for utfylling'!A231 -> 118 | B119: =IF('Sjekkliste for utfylling'!F231<>"",1,0) -> 0 | C119: 0 | E119: =IF($C119=1,'Sjekkliste for utfylling'!A231,"") ->  | F119: =IF($C119=1,'Sjekkliste for utfylling'!B231,"") ->  | H119: =IF(C119=1,'Sjekkliste for utfylling'!H231," ") -> 
A120: ='Sjekkliste for utfylling'!A235 -> 119 | B120: =IF('Sjekkliste for utfylling'!F235<>"",1,0) -> 0 | C120: 0 | E120: =IF($C120=1,'Sjekkliste for utfylling'!A235,"") ->  | F120: =IF($C120=1,'Sjekkliste for utfylling'!B235,"") ->  | H120: =IF(C120=1,'Sjekkliste for utfylling'!H235," ") -> 
A121: ='Sjekkliste for utfylling'!A236 -> 120 | B121: =IF('Sjekkliste for utfylling'!F236<>"",1,0) -> 0 | C121: 0 | E121: =IF($C121=1,'Sjekkliste for utfylling'!A236,"") ->  | F121: =IF($C121=1,'Sjekkliste for utfylling'!B236,"") ->  | H121: =IF(C121=1,'Sjekkliste for utfylling'!H236," ") -> 
A122: ='Sjekkliste for utfylling'!A237 -> 121 | B122: =IF('Sjekkliste for utfylling'!F237<>"",1,0) -> 0 | C122: 0 | E122: =IF($C122=1,'Sjekkliste for utfylling'!A237,"") ->  | F122: =IF($C122=1,'Sjekkliste for utfylling'!B237,"") ->  | H122: =IF(C122=1,'Sjekkliste for utfylling'!H237," ") -> 
A123: ='Sjekkliste for utfylling'!A238 -> 122 | B123: =IF('Sjekkliste for utfylling'!F238<>"",1,0) -> 0 | C123: 0 | E123: =IF($C123=1,'Sjekkliste for utfylling'!A238,"") ->  | F123: =IF($C123=1,'Sjekkliste for utfylling'!B238,"") ->  | H123: =IF(C123=1,'Sjekkliste for utfylling'!H238," ") -> 
A124: ='Sjekkliste for utfylling'!A239 -> 123 | B124: =IF('Sjekkliste for utfylling'!F239<>"",1,0) -> 0 | C124: 0 | E124: =IF($C124=1,'Sjekkliste for utfylling'!A239,"") ->  | F124: =IF($C124=1,'Sjekkliste for utfylling'!B239,"") ->  | H124: =IF(C124=1,'Sjekkliste for utfylling'!H239," ") -> 
A125: ='Sjekkliste for utfylling'!A243 -> 124 | B125: =IF('Sjekkliste for utfylling'!F243<>"",1,0) -> 0 | C125: 0 | E125: =IF($C125=1,'Sjekkliste for utfylling'!A243,"") ->  | F125: =IF($C125=1,'Sjekkliste for utfylling'!B243,"") ->  | H125: =IF(C125=1,'Sjekkliste for utfylling'!H243," ") -> 
A126: ='Sjekkliste for utfylling'!A246 -> 125 | B126: =IF('Sjekkliste for utfylling'!F246<>"",1,0) -> 0 | C126: 0 | E126: =IF($C126=1,'Sjekkliste for utfylling'!A246,"") ->  | F126: =IF($C126=1,'Sjekkliste for utfylling'!B246,"") ->  | H126: =IF(C126=1,'Sjekkliste for utfylling'!H246," ") -> 
A127: ='Sjekkliste for utfylling'!A247 -> 126 | B127: =IF('Sjekkliste for utfylling'!F247<>"",1,0) -> 0 | C127: 0 | E127: =IF($C127=1,'Sjekkliste for utfylling'!A247,"") ->  | F127: =IF($C127=1,'Sjekkliste for utfylling'!B247,"") ->  | H127: =IF(C127=1,'Sjekkliste for utfylling'!H247," ") -> 
A128: ='Sjekkliste for utfylling'!A248 -> 127 | B128: =IF('Sjekkliste for utfylling'!F248<>"",1,0) -> 0 | C128: 0 | E128: =IF($C128=1,'Sjekkliste for utfylling'!A248,"") ->  | F128: =IF($C128=1,'Sjekkliste for utfylling'!B248,"") ->  | H128: =IF(C128=1,'Sjekkliste for utfylling'!H248," ") -> 
A129: ='Sjekkliste for utfylling'!A249 -> 128 | B129: =IF('Sjekkliste for utfylling'!F249<>"",1,0) -> 0 | C129: =SUM(B129:B129) -> 0 | E129: =IF($C129=1,'Sjekkliste for utfylling'!A249,"") ->  | F129: =IF($C129=1,'Sjekkliste for utfylling'!B249,"") ->  | H129: =IF(C129=1,'Sjekkliste for utfylling'!H249," ") -> 
A130: ='Sjekkliste for utfylling'!A250 -> 129 | B130: =IF('Sjekkliste for utfylling'!F250<>"",1,0) -> 0 | C130: 0 | E130: =IF($C130=1,'Sjekkliste for utfylling'!A250,"") ->  | F130: =IF($C130=1,'Sjekkliste for utfylling'!B250,"") ->  | H130: =IF(C130=1,'Sjekkliste for utfylling'!H250," ") -> 
A131: ='Sjekkliste for utfylling'!A251 -> 130 | B131: =IF('Sjekkliste for utfylling'!F251<>"",1,0) -> 0 | C131: 0 | E131: =IF($C131=1,'Sjekkliste for utfylling'!A251,"") ->  | F131: =IF($C131=1,'Sjekkliste for utfylling'!B251,"") ->  | H131: =IF(C131=1,'Sjekkliste for utfylling'!H251," ") -> 
A132: ='Sjekkliste for utfylling'!A254 -> 131 | B132: =IF('Sjekkliste for utfylling'!F254<>"",1,0) -> 0 | C132: 0 | E132: =IF($C132=1,'Sjekkliste for utfylling'!A254,"") ->  | F132: =IF($C132=1,'Sjekkliste for utfylling'!B254,"") ->  | H132: =IF(C132=1,'Sjekkliste for utfylling'!H254," ") -> 

Sheet IA-svar (hidden)
C1: =COUNTIF(C2:C11,"=1")-D1 -> 0 | D1: =SUM(D2:D132) -> 0 | E1: IA-svar | F1: ='Sjekkliste for utfylling'!B2 -> 0 | G1: ='Sjekkliste for utfylling'!B3 -> 2024 | H1: ='Sjekkliste for utfylling'!C3 -> 0
A2: ='Sjekkliste for utfylling'!A13 -> 1 | B2: =IF('Sjekkliste for utfylling'!G13<>"",1,0) -> 0 | C2: =SUM(B2:B2) -> 0 | E2: =IF($C2=1,'Sjekkliste for utfylling'!A13,"") ->  | F2: =IF($C2=1,'Sjekkliste for utfylling'!B13,"") ->  | H2: =IF(C2=1,'Sjekkliste for utfylling'!H13," ") -> 
A3: ='Sjekkliste for utfylling'!A14 -> 2 | B3: =IF('Sjekkliste for utfylling'!G14<>"",1,0) -> 0 | C3: 0 | E3: =IF($C3=1,'Sjekkliste for utfylling'!A14,"") ->  | F3: =IF($C3=1,'Sjekkliste for utfylling'!B14,"") ->  | H3: =IF(C3=1,'Sjekkliste for utfylling'!H14," ") -> 
A4: ='Sjekkliste for utfylling'!A15 -> 3 | B4: =IF('Sjekkliste for utfylling'!G15<>"",1,0) -> 0 | C4: 0 | E4: =IF($C4=1,'Sjekkliste for utfylling'!A15,"") ->  | F4: =IF($C4=1,'Sjekkliste for utfylling'!B15,"") ->  | H4: =IF(C4=1,'Sjekkliste for utfylling'!H15," ") -> 
A5: ='Sjekkliste for utfylling'!A18 -> 4 | B5: =IF('Sjekkliste for utfylling'!G18<>"",1,0) -> 0 | C5: 0 | E5: =IF($C5=1,'Sjekkliste for utfylling'!A18,"") ->  | F5: =IF($C5=1,'Sjekkliste for utfylling'!B18,"") ->  | H5: =IF(C5=1,'Sjekkliste for utfylling'!H18," ") -> 
A6: ='Sjekkliste for utfylling'!A21 -> 5 | B6: =IF('Sjekkliste for utfylling'!G21<>"",1,0) -> 0 | C6: 0 | E6: =IF($C6=1,'Sjekkliste for utfylling'!A21,"") ->  | F6: =IF($C6=1,'Sjekkliste for utfylling'!B21,"") ->  | H6: =IF(C6=1,'Sjekkliste for utfylling'!H21," ") -> 
A7: ='Sjekkliste for utfylling'!A22 -> 6 | B7: =IF('Sjekkliste for utfylling'!G22<>"",1,0) -> 0 | C7: 0 | E7: =IF($C7=1,'Sjekkliste for utfylling'!A22,"") ->  | F7: =IF($C7=1,'Sjekkliste for utfylling'!B22,"") ->  | H7: =IF(C7=1,'Sjekkliste for utfylling'!H22," ") -> 
A8: ='Sjekkliste for utfylling'!A23 -> 7 | B8: =IF('Sjekkliste for utfylling'!G23<>"",1,0) -> 0 | C8: 0 | E8: =IF($C8=1,'Sjekkliste for utfylling'!A23,"") ->  | F8: =IF($C8=1,'Sjekkliste for utfylling'!B23,"") ->  | H8: =IF(C8=1,'Sjekkliste for utfylling'!H23," ") -> 
A9: ='Sjekkliste for utfylling'!A24 -> 8 | B9: =IF('Sjekkliste for utfylling'!G24<>"",1,0) -> 0 | C9: 0 | E9: =IF($C9=1,'Sjekkliste for utfylling'!A24,"") ->  | F9: =IF($C9=1,'Sjekkliste for utfylling'!B24,"") ->  | H9: =IF(C9=1,'Sjekkliste for utfylling'!H24," ") -> 
A10: ='Sjekkliste for utfylling'!A25 -> 9 | B10: =IF('Sjekkliste for utfylling'!G25<>"",1,0) -> 0 | C10: 0 | E10: =IF($C10=1,'Sjekkliste for utfylling'!A25,"") ->  | F10: =IF($C10=1,'Sjekkliste for utfylling'!B25,"") ->  | H10: =IF(C10=1,'Sjekkliste for utfylling'!H25," ") -> 
A11: ='Sjekkliste for utfylling'!A26 -> 10 | B11: =IF('Sjekkliste for utfylling'!G26<>"",1,0) -> 0 | C11: 0 | E11: =IF($C11=1,'Sjekkliste for utfylling'!A26,"") ->  | F11: =IF($C11=1,'Sjekkliste for utfylling'!B26,"") ->  | H11: =IF(C11=1,'Sjekkliste for utfylling'!H26," ") -> 
A12: ='Sjekkliste for utfylling'!A27 -> 11 | B12: =IF('Sjekkliste for utfylling'!G27<>"",1,0) -> 0 | C12: 0 | E12: =IF($C12=1,'Sjekkliste for utfylling'!A27,"") ->  | F12: =IF($C12=1,'Sjekkliste for utfylling'!B27,"") ->  | H12: =IF(C12=1,'Sjekkliste for utfylling'!H27," ") -> 
A13: ='Sjekkliste for utfylling'!A29 -> 12 | B13: =IF('Sjekkliste for utfylling'!G29<>"",1,0) -> 0 | C13: 0 | E13: =IF($C13=1,'Sjekkliste for utfylling'!A29,"") ->  | F13: =IF($C13=1,'Sjekkliste for utfylling'!B29,"") ->  | H13: =IF(C13=1,'Sjekkliste for utfylling'!H29," ") -> 
A14: ='Sjekkliste for utfylling'!A32 -> 13 | B14: =IF('Sjekkliste for utfylling'!G32<>"",1,0) -> 0 | C14: 0 | E14: =IF($C14=1,'Sjekkliste for utfylling'!A32,"") ->  | F14: =IF($C14=1,'Sjekkliste for utfylling'!B32,"") ->  | H14: =IF(C14=1,'Sjekkliste for utfylling'!H32," ") -> 
A15: ='Sjekkliste for utfylling'!A33 -> 14 | B15: =IF('Sjekkliste for utfylling'!G33<>"",1,0) -> 0 | C15: 0 | E15: =IF($C15=1,'Sjekkliste for utfylling'!A33,"") ->  | F15: =IF($C15=1,'Sjekkliste for utfylling'!B33,"") ->  | H15: =IF(C15=1,'Sjekkliste for utfylling'!H33," ") -> 
A16: ='Sjekkliste for utfylling'!A34 -> 15 | B16: =IF('Sjekkliste for utfylling'!G34<>"",1,0) -> 0 | C16: 0 | E16: =IF($C16=1,'Sjekkliste for utfylling'!A34,"") ->  | F16: =IF($C16=1,'Sjekkliste for utfylling'!B34,"") ->  | H16: =IF(C16=1,'Sjekkliste for utfylling'!H34," ") -> 
A17: ='Sjekkliste for utfylling'!A35 -> 16 | B17: =IF('Sjekkliste for utfylling'!G35<>"",1,0) -> 0 | C17: 0 | E17: =IF($C17=1,'Sjekkliste for utfylling'!A35,"") ->  | F17: =IF($C17=1,'Sjekkliste for utfylling'!B35,"") ->  | H17: =IF(C17=1,'Sjekkliste for utfylling'!H35," ") -> 
A18: ='Sjekkliste for utfylling'!A40 -> 17 | B18: =IF('Sjekkliste for utfylling'!G40<>"",1,0) -> 0 | C18: 0 | E18: =IF($C18=1,'Sjekkliste for utfylling'!A40,"") ->  | F18: =IF($C18=1,'Sjekkliste for utfylling'!B40,"") ->  | H18: =IF(C18=1,'Sjekkliste for utfylling'!H40," ") -> 
A19: ='Sjekkliste for utfylling'!A41 -> 18 | B19: =IF('Sjekkliste for utfylling'!G41<>"",1,0) -> 0 | C19: 0 | E19: =IF($C19=1,'Sjekkliste for utfylling'!A41,"") ->  | F19: =IF($C19=1,'Sjekkliste for utfylling'!B41,"") ->  | H19: =IF(C19=1,'Sjekkliste for utfylling'!H41," ") -> 
A20: ='Sjekkliste for utfylling'!A42 -> 19 | B20: =IF('Sjekkliste for utfylling'!G42<>"",1,0) -> 0 | C20: 0 | E20: =IF($C20=1,'Sjekkliste for utfylling'!A42,"") ->  | F20: =IF($C20=1,'Sjekkliste for utfylling'!B42,"") ->  | H20: =IF(C20=1,'Sjekkliste for utfylling'!H42," ") -> 
A21: ='Sjekkliste for utfylling'!A43 -> 20 | B21: =IF('Sjekkliste for utfylling'!G43<>"",1,0) -> 0 | C21: 0 | E21: =IF($C21=1,'Sjekkliste for utfylling'!A43,"") ->  | F21: =IF($C21=1,'Sjekkliste for utfylling'!B43,"") ->  | H21: =IF(C21=1,'Sjekkliste for utfylling'!H43," ") -> 
A22: ='Sjekkliste for utfylling'!A44 -> 21 | B22: =IF('Sjekkliste for utfylling'!G44<>"",1,0) -> 0 | C22: 0 | E22: =IF($C22=1,'Sjekkliste for utfylling'!A44,"") ->  | F22: =IF($C22=1,'Sjekkliste for utfylling'!B44,"") ->  | H22: =IF(C22=1,'Sjekkliste for utfylling'!H44," ") -> 
A23: ='Sjekkliste for utfylling'!A45 -> 22 | B23: =IF('Sjekkliste for utfylling'!G45<>"",1,0) -> 0 | C23: 0 | E23: =IF($C23=1,'Sjekkliste for utfylling'!A45,"") ->  | F23: =IF($C23=1,'Sjekkliste for utfylling'!B45,"") ->  | H23: =IF(C23=1,'Sjekkliste for utfylling'!H45," ") -> 
A24: ='Sjekkliste for utfylling'!A46 -> 23 | B24: =IF('Sjekkliste for utfylling'!G46<>"",1,0) -> 0 | C24: 0 | E24: =IF($C24=1,'Sjekkliste for utfylling'!A46,"") ->  | F24: =IF($C24=1,'Sjekkliste for utfylling'!B46,"") ->  | H24: =IF(C24=1,'Sjekkliste for utfylling'!H46," ") -> 
A25: ='Sjekkliste for utfylling'!A47 -> 24 | B25: =IF('Sjekkliste for utfylling'!G47<>"",1,0) -> 0 | C25: 0 | E25: =IF($C25=1,'Sjekkliste for utfylling'!A47,"") ->  | F25: =IF($C25=1,'Sjekkliste for utfylling'!B47,"") ->  | H25: =IF(C25=1,'Sjekkliste for utfylling'!H47," ") -> 
A26: ='Sjekkliste for utfylling'!A48 -> 25 | B26: =IF('Sjekkliste for utfylling'!G48<>"",1,0) -> 0 | C26: 0 | E26: =IF($C26=1,'Sjekkliste for utfylling'!A48,"") ->  | F26: =IF($C26=1,'Sjekkliste for utfylling'!B48,"") ->  | H26: =IF(C26=1,'Sjekkliste for utfylling'!H48," ") -> 
A27: ='Sjekkliste for utfylling'!A49 -> 26 | B27: =IF('Sjekkliste for utfylling'!G49<>"",1,0) -> 0 | C27: 0 | E27: =IF($C27=1,'Sjekkliste for utfylling'!A49,"") ->  | F27: =IF($C27=1,'Sjekkliste for utfylling'!B49,"") ->  | H27: =IF(C27=1,'Sjekkliste for utfylling'!H49," ") -> 
A28: ='Sjekkliste for utfylling'!A50 -> 27 | B28: =IF('Sjekkliste for utfylling'!G50<>"",1,0) -> 0 | C28: 0 | E28: =IF($C28=1,'Sjekkliste for utfylling'!A50,"") ->  | F28: =IF($C28=1,'Sjekkliste for utfylling'!B50,"") ->  | H28: =IF(C28=1,'Sjekkliste for utfylling'!H50," ") -> 
A29: ='Sjekkliste for utfylling'!A51 -> 28 | B29: =IF('Sjekkliste for utfylling'!G51<>"",1,0) -> 0 | C29: 0 | E29: =IF($C29=1,'Sjekkliste for utfylling'!A51,"") ->  | F29: =IF($C29=1,'Sjekkliste for utfylling'!B51,"") ->  | H29: =IF(C29=1,'Sjekkliste for utfylling'!H51," ") -> 
A30: ='Sjekkliste for utfylling'!A53 -> 29 | B30: =IF('Sjekkliste for utfylling'!G53<>"",1,0) -> 0 | C30: 0 | E30: =IF($C30=1,'Sjekkliste for utfylling'!A53,"") ->  | F30: =IF($C30=1,'Sjekkliste for utfylling'!B53,"") ->  | H30: =IF(C30=1,'Sjekkliste for utfylling'!H53," ") -> 
A31: ='Sjekkliste for utfylling'!A54 -> 30 | B31: =IF('Sjekkliste for utfylling'!G54<>"",1,0) -> 0 | C31: 0 | E31: =IF($C31=1,'Sjekkliste for utfylling'!A54,"") ->  | F31: =IF($C31=1,'Sjekkliste for utfylling'!B54,"") ->  | H31: =IF(C31=1,'Sjekkliste for utfylling'!H54," ") -> 
A32: ='Sjekkliste for utfylling'!A56 -> 31 | B32: =IF('Sjekkliste for utfylling'!G56<>"",1,0) -> 0 | C32: 0 | E32: =IF($C32=1,'Sjekkliste for utfylling'!A56,"") ->  | F32: =IF($C32=1,'Sjekkliste for utfylling'!B56,"") ->  | H32: =IF(C32=1,'Sjekkliste for utfylling'!H56," ") -> 
A33: ='Sjekkliste for utfylling'!A60 -> 32 | B33: =IF('Sjekkliste for utfylling'!G60<>"",1,0) -> 0 | C33: 0 | E33: =IF($C33=1,'Sjekkliste for utfylling'!A60,"") ->  | F33: =IF($C33=1,'Sjekkliste for utfylling'!B60,"") ->  | H33: =IF(C33=1,'Sjekkliste for utfylling'!H60," ") -> 
A34: ='Sjekkliste for utfylling'!A64 -> 33 | B34: =IF('Sjekkliste for utfylling'!G64<>"",1,0) -> 0 | C34: =SUM(B34:B34) -> 0 | E34: =IF($C34=1,'Sjekkliste for utfylling'!A64,"") ->  | F34: =IF($C34=1,'Sjekkliste for utfylling'!B64,"") ->  | H34: =IF(C34=1,'Sjekkliste for utfylling'!H64," ") -> 
A35: ='Sjekkliste for utfylling'!A65 -> 34 | B35: =IF('Sjekkliste for utfylling'!G65<>"",1,0) -> 0 | C35: 0 | E35: =IF($C35=1,'Sjekkliste for utfylling'!A65,"") ->  | F35: =IF($C35=1,'Sjekkliste for utfylling'!B65,"") ->  | H35: =IF(C35=1,'Sjekkliste for utfylling'!H65," ") -> 
A36: ='Sjekkliste for utfylling'!A66 -> 35 | B36: =IF('Sjekkliste for utfylling'!G66<>"",1,0) -> 0 | C36: 0 | E36: =IF($C36=1,'Sjekkliste for utfylling'!A66,"") ->  | F36: =IF($C36=1,'Sjekkliste for utfylling'!B66,"") ->  | H36: =IF(C36=1,'Sjekkliste for utfylling'!H66," ") -> 
A37: ='Sjekkliste for utfylling'!A67 -> 36 | B37: =IF('Sjekkliste for utfylling'!G67<>"",1,0) -> 0 | C37: 0 | E37: =IF($C37=1,'Sjekkliste for utfylling'!A67,"") ->  | F37: =IF($C37=1,'Sjekkliste for utfylling'!B67,"") ->  | H37: =IF(C37=1,'Sjekkliste for utfylling'!H67," ") -> 
A38: ='Sjekkliste for utfylling'!A68 -> 37 | B38: =IF('Sjekkliste for utfylling'!G68<>"",1,0) -> 0 | C38: 0 | E38: =IF($C38=1,'Sjekkliste for utfylling'!A68,"") ->  | F38: =IF($C38=1,'Sjekkliste for utfylling'!B68,"") ->  | H38: =IF(C38=1,'Sjekkliste for utfylling'!H68," ") -> 
A39: ='Sjekkliste for utfylling'!A75 -> 38 | B39: =IF('Sjekkliste for utfylling'!G75<>"",1,0) -> 0 | C39: 0 | E39: =IF($C39=1,'Sjekkliste for utfylling'!A75,"") ->  | F39: =IF($C39=1,'Sjekkliste for utfylling'!B75,"") ->  | H39: =IF(C39=1,'Sjekkliste for utfylling'!H75," ") -> 
A40: ='Sjekkliste for utfylling'!A76 -> 39 | B40: =IF('Sjekkliste for utfylling'!G76<>"",1,0) -> 0 | C40: 0 | E40: =IF($C40=1,'Sjekkliste for utfylling'!A76,"") ->  | F40: =IF($C40=1,'Sjekkliste for utfylling'!B76,"") ->  | H40: =IF(C40=1,'Sjekkliste for utfylling'!H76," ") -> 
A41: ='Sjekkliste for utfylling'!A77 -> 40 | B41: =IF('Sjekkliste for utfylling'!G77<>"",1,0) -> 0 | C41: 0 | E41: =IF($C41=1,'Sjekkliste for utfylling'!A77,"") ->  | F41: =IF($C41=1,'Sjekkliste for utfylling'!B77,"") ->  | H41: =IF(C41=1,'Sjekkliste for utfylling'!H77," ") -> 
A42: ='Sjekkliste for utfylling'!A78 -> 41 | B42: =IF('Sjekkliste for utfylling'!G78<>"",1,0) -> 0 | C42: 0 | E42: =IF($C42=1,'Sjekkliste for utfylling'!A78,"") ->  | F42: =IF($C42=1,'Sjekkliste for utfylling'!B78,"") ->  | H42: =IF(C42=1,'Sjekkliste for utfylling'!H78," ") -> 
A43: ='Sjekkliste for utfylling'!A79 -> 42 | B43: =IF('Sjekkliste for utfylling'!G79<>"",1,0) -> 0 | C43: 0 | E43: =IF($C43=1,'Sjekkliste for utfylling'!A79,"") ->  | F43: =IF($C43=1,'Sjekkliste for utfylling'!B79,"") ->  | H43: =IF(C43=1,'Sjekkliste for utfylling'!H79," ") -> 
A44: ='Sjekkliste for utfylling'!A81 -> 43 | B44: =IF('Sjekkliste for utfylling'!G81<>"",1,0) -> 0 | C44: 0 | E44: =IF($C44=1,'Sjekkliste for utfylling'!A81,"") ->  | F44: =IF($C44=1,'Sjekkliste for utfylling'!B81,"") ->  | H44: =IF(C44=1,'Sjekkliste for utfylling'!H81," ") -> 
A45: ='Sjekkliste for utfylling'!A84 -> 44 | B45: =IF('Sjekkliste for utfylling'!G84<>"",1,0) -> 0 | C45: 0 | E45: =IF($C45=1,'Sjekkliste for utfylling'!A84,"") ->  | F45: =IF($C45=1,'Sjekkliste for utfylling'!B84,"") ->  | H45: =IF(C45=1,'Sjekkliste for utfylling'!H84," ") -> 
A46: ='Sjekkliste for utfylling'!A85 -> 45 | B46: =IF('Sjekkliste for utfylling'!G85<>"",1,0) -> 0 | C46: 0 | E46: =IF($C46=1,'Sjekkliste for utfylling'!A85,"") ->  | F46: =IF($C46=1,'Sjekkliste for utfylling'!B85,"") ->  | H46: =IF(C46=1,'Sjekkliste for utfylling'!H85," ") -> 
A47: ='Sjekkliste for utfylling'!A87 -> 46 | B47: =IF('Sjekkliste for utfylling'!G87<>"",1,0) -> 0 | C47: 0 | E47: =IF($C47=1,'Sjekkliste for utfylling'!A87,"") ->  | F47: =IF($C47=1,'Sjekkliste for utfylling'!B87,"") ->  | H47: =IF(C47=1,'Sjekkliste for utfylling'!H87," ") -> 
A48: ='Sjekkliste for utfylling'!A88 -> 47 | B48: =IF('Sjekkliste for utfylling'!G88<>"",1,0) -> 0 | C48: 0 | E48: =IF($C48=1,'Sjekkliste for utfylling'!A88,"") ->  | F48: =IF($C48=1,'Sjekkliste for utfylling'!B88,"") ->  | H48: =IF(C48=1,'Sjekkliste for utfylling'!H88," ") -> 
A49: ='Sjekkliste for utfylling'!A92 -> 48 | B49: =IF('Sjekkliste for utfylling'!G92<>"",1,0) -> 0 | C49: 0 | E49: =IF($C49=1,'Sjekkliste for utfylling'!A92,"") ->  | F49: =IF($C49=1,'Sjekkliste for utfylling'!B92,"") ->  | H49: =IF(C49=1,'Sjekkliste for utfylling'!H92," ") -> 
A50: ='Sjekkliste for utfylling'!A93 -> 49 | B50: =IF('Sjekkliste for utfylling'!G93<>"",1,0) -> 0 | C50: 0 | E50: =IF($C50=1,'Sjekkliste for utfylling'!A93,"") ->  | F50: =IF($C50=1,'Sjekkliste for utfylling'!B93,"") ->  | H50: =IF(C50=1,'Sjekkliste for utfylling'!H93," ") -> 
A51: ='Sjekkliste for utfylling'!A99 -> 50 | B51: =IF('Sjekkliste for utfylling'!G99<>"",1,0) -> 0 | C51: 0 | E51: =IF($C51=1,'Sjekkliste for utfylling'!A99,"") ->  | F51: =IF($C51=1,'Sjekkliste for utfylling'!B99,"") ->  | H51: =IF(C51=1,'Sjekkliste for utfylling'!H99," ") -> 
A52: ='Sjekkliste for utfylling'!A101 -> 51 | B52: =IF('Sjekkliste for utfylling'!G101<>"",1,0) -> 0 | C52: 0 | E52: =IF($C52=1,'Sjekkliste for utfylling'!A101,"") ->  | F52: =IF($C52=1,'Sjekkliste for utfylling'!B101,"") ->  | H52: =IF(C52=1,'Sjekkliste for utfylling'!H101," ") -> 
A53: ='Sjekkliste for utfylling'!A103 -> 52 | B53: =IF('Sjekkliste for utfylling'!G103<>"",1,0) -> 0 | C53: 0 | E53: =IF($C53=1,'Sjekkliste for utfylling'!A103,"") ->  | F53: =IF($C53=1,'Sjekkliste for utfylling'!B103,"") ->  | H53: =IF(C53=1,'Sjekkliste for utfylling'!H103," ") -> 
A54: ='Sjekkliste for utfylling'!A104 -> 53 | B54: =IF('Sjekkliste for utfylling'!G104<>"",1,0) -> 0 | C54: 0 | E54: =IF($C54=1,'Sjekkliste for utfylling'!A104,"") ->  | F54: =IF($C54=1,'Sjekkliste for utfylling'!B104,"") ->  | H54: =IF(C54=1,'Sjekkliste for utfylling'!H104," ") -> 
A55: ='Sjekkliste for utfylling'!A105 -> 54 | B55: =IF('Sjekkliste for utfylling'!G105<>"",1,0) -> 0 | C55: 0 | E55: =IF($C55=1,'Sjekkliste for utfylling'!A105,"") ->  | F55: =IF($C55=1,'Sjekkliste for utfylling'!B105,"") ->  | H55: =IF(C55=1,'Sjekkliste for utfylling'!H105," ") -> 
A56: ='Sjekkliste for utfylling'!A107 -> 55 | B56: =IF('Sjekkliste for utfylling'!G107<>"",1,0) -> 0 | C56: 0 | E56: =IF($C56=1,'Sjekkliste for utfylling'!A107,"") ->  | F56: =IF($C56=1,'Sjekkliste for utfylling'!B107,"") ->  | H56: =IF(C56=1,'Sjekkliste for utfylling'!H107," ") -> 
A57: ='Sjekkliste for utfylling'!A111 -> 56 | B57: =IF('Sjekkliste for utfylling'!G111<>"",1,0) -> 0 | C57: 0 | E57: =IF($C57=1,'Sjekkliste for utfylling'!A111,"") ->  | F57: =IF($C57=1,'Sjekkliste for utfylling'!B111,"") ->  | H57: =IF(C57=1,'Sjekkliste for utfylling'!H111," ") -> 
A58: ='Sjekkliste for utfylling'!A119 -> 57 | B58: =IF('Sjekkliste for utfylling'!G119<>"",1,0) -> 0 | C58: 0 | E58: =IF($C58=1,'Sjekkliste for utfylling'!A119,"") ->  | F58: =IF($C58=1,'Sjekkliste for utfylling'!B119,"") ->  | H58: =IF(C58=1,'Sjekkliste for utfylling'!H119," ") -> 
A59: ='Sjekkliste for utfylling'!A120 -> 58 | B59: =IF('Sjekkliste for utfylling'!G120<>"",1,0) -> 0 | C59: 0 | E59: =IF($C59=1,'Sjekkliste for utfylling'!A120,"") ->  | F59: =IF($C59=1,'Sjekkliste for utfylling'!B120,"") ->  | H59: =IF(C59=1,'Sjekkliste for utfylling'!H120," ") -> 
A60: ='Sjekkliste for utfylling'!A121 -> 59 | B60: =IF('Sjekkliste for utfylling'!G121<>"",1,0) -> 0 | C60: 0 | E60: =IF($C60=1,'Sjekkliste for utfylling'!A121,"") ->  | F60: =IF($C60=1,'Sjekkliste for utfylling'!B121,"") ->  | H60: =IF(C60=1,'Sjekkliste for utfylling'!H121," ") -> 
A61: ='Sjekkliste for utfylling'!A122 -> 60 | B61: =IF('Sjekkliste for utfylling'!G122<>"",1,0) -> 0 | C61: 0 | E61: =IF($C61=1,'Sjekkliste for utfylling'!A122,"") ->  | F61: =IF($C61=1,'Sjekkliste for utfylling'!B122,"") ->  | H61: =IF(C61=1,'Sjekkliste for utfylling'!H122," ") -> 
A62: ='Sjekkliste for utfylling'!A123 -> 61 | B62: =IF('Sjekkliste for utfylling'!G123<>"",1,0) -> 0 | C62: 0 | E62: =IF($C62=1,'Sjekkliste for utfylling'!A123,"") ->  | F62: =IF($C62=1,'Sjekkliste for utfylling'!B123,"") ->  | H62: =IF(C62=1,'Sjekkliste for utfylling'!H123," ") -> 
A63: ='Sjekkliste for utfylling'!A124 -> 62 | B63: =IF('Sjekkliste for utfylling'!G124<>"",1,0) -> 0 | C63: 0 | E63: =IF($C63=1,'Sjekkliste for utfylling'!A124,"") ->  | F63: =IF($C63=1,'Sjekkliste for utfylling'!B124,"") ->  | H63: =IF(C63=1,'Sjekkliste for utfylling'!H124," ") -> 
A64: ='Sjekkliste for utfylling'!A129 -> 63 | B64: =IF('Sjekkliste for utfylling'!G129<>"",1,0) -> 0 | C64: 0 | E64: =IF($C64=1,'Sjekkliste for utfylling'!A129,"") ->  | F64: =IF($C64=1,'Sjekkliste for utfylling'!B129,"") ->  | H64: =IF(C64=1,'Sjekkliste for utfylling'!H129," ") -> 
A65: ='Sjekkliste for utfylling'!A131 -> 64 | B65: =IF('Sjekkliste for utfylling'!G131<>"",1,0) -> 0 | C65: 0 | E65: =IF($C65=1,'Sjekkliste for utfylling'!A131,"") ->  | F65: =IF($C65=1,'Sjekkliste for utfylling'!B131,"") ->  | H65: =IF(C65=1,'Sjekkliste for utfylling'!H131," ") -> 
A66: ='Sjekkliste for utfylling'!A132 -> 65 | B66: =IF('Sjekkliste for utfylling'!G132<>"",1,0) -> 0 | C66: =SUM(B66:B66) -> 0 | E66: =IF($C66=1,'Sjekkliste for utfylling'!A132,"") ->  | F66: =IF($C66=1,'Sjekkliste for utfylling'!B132,"") ->  | H66: =IF(C66=1,'Sjekkliste for utfylling'!H132," ") -> 
A67: ='Sjekkliste for utfylling'!A133 -> 66 | B67: =IF('Sjekkliste for utfylling'!G133<>"",1,0) -> 0 | C67: 0 | E67: =IF($C67=1,'Sjekkliste for utfylling'!A133,"") ->  | F67: =IF($C67=1,'Sjekkliste for utfylling'!B133,"") ->  | H67: =IF(C67=1,'Sjekkliste for utfylling'!H133," ") -> 
A68: ='Sjekkliste for utfylling'!A138 -> 67 | B68: =IF('Sjekkliste for utfylling'!G138<>"",1,0) -> 0 | C68: 0 | E68: =IF($C68=1,'Sjekkliste for utfylling'!A138,"") ->  | F68: =IF($C68=1,'Sjekkliste for utfylling'!B138,"") ->  | H68: =IF(C68=1,'Sjekkliste for utfylling'!H138," ") -> 
A69: ='Sjekkliste for utfylling'!A139 -> 68 | B69: =IF('Sjekkliste for utfylling'!G139<>"",1,0) -> 0 | C69: 0 | E69: =IF($C69=1,'Sjekkliste for utfylling'!A139,"") ->  | F69: =IF($C69=1,'Sjekkliste for utfylling'!B139,"") ->  | H69: =IF(C69=1,'Sjekkliste for utfylling'!H139," ") -> 
A70: ='Sjekkliste for utfylling'!A140 -> 69 | B70: =IF('Sjekkliste for utfylling'!G140<>"",1,0) -> 0 | C70: 0 | E70: =IF($C70=1,'Sjekkliste for utfylling'!A140,"") ->  | F70: =IF($C70=1,'Sjekkliste for utfylling'!B140,"") ->  | H70: =IF(C70=1,'Sjekkliste for utfylling'!H140," ") -> 
A71: ='Sjekkliste for utfylling'!A142 -> 70 | B71: =IF('Sjekkliste for utfylling'!G142<>"",1,0) -> 0 | C71: 0 | E71: =IF($C71=1,'Sjekkliste for utfylling'!A142,"") ->  | F71: =IF($C71=1,'Sjekkliste for utfylling'!B142,"") ->  | H71: =IF(C71=1,'Sjekkliste for utfylling'!H142," ") -> 
A72: ='Sjekkliste for utfylling'!A144 -> 71 | B72: =IF('Sjekkliste for utfylling'!G144<>"",1,0) -> 0 | C72: 0 | E72: =IF($C72=1,'Sjekkliste for utfylling'!A144,"") ->  | F72: =IF($C72=1,'Sjekkliste for utfylling'!B144,"") ->  | H72: =IF(C72=1,'Sjekkliste for utfylling'!H144," ") -> 
A73: ='Sjekkliste for utfylling'!A146 -> 72 | B73: =IF('Sjekkliste for utfylling'!G146<>"",1,0) -> 0 | C73: 0 | E73: =IF($C73=1,'Sjekkliste for utfylling'!A146,"") ->  | F73: =IF($C73=1,'Sjekkliste for utfylling'!B146,"") ->  | H73: =IF(C73=1,'Sjekkliste for utfylling'!H146," ") -> 
A74: ='Sjekkliste for utfylling'!A149 -> 73 | B74: =IF('Sjekkliste for utfylling'!G149<>"",1,0) -> 0 | C74: 0 | E74: =IF($C74=1,'Sjekkliste for utfylling'!A149,"") ->  | F74: =IF($C74=1,'Sjekkliste for utfylling'!B149,"") ->  | H74: =IF(C74=1,'Sjekkliste for utfylling'!H149," ") -> 
A75: ='Sjekkliste for utfylling'!A150 -> 74 | B75: =IF('Sjekkliste for utfylling'!G150<>"",1,0) -> 0 | C75: 0 | E75: =IF($C75=1,'Sjekkliste for utfylling'!A150,"") ->  | F75: =IF($C75=1,'Sjekkliste for utfylling'!B150,"") ->  | H75: =IF(C75=1,'Sjekkliste for utfylling'!H150," ") -> 
A76: ='Sjekkliste for utfylling'!A151 -> 75 | B76: =IF('Sjekkliste for utfylling'!G151<>"",1,0) -> 0 | C76: 0 | E76: =IF($C76=1,'Sjekkliste for utfylling'!A151,"") ->  | F76: =IF($C76=1,'Sjekkliste for utfylling'!B151,"") ->  | H76: =IF(C76=1,'Sjekkliste for utfylling'!H151," ") -> 
A77: ='Sjekkliste for utfylling'!A152 -> 76 | B77: =IF('Sjekkliste for utfylling'!G152<>"",1,0) -> 0 | C77: 0 | E77: =IF($C77=1,'Sjekkliste for utfylling'!A152,"") ->  | F77: =IF($C77=1,'Sjekkliste for utfylling'!B152,"") ->  | H77: =IF(C77=1,'Sjekkliste for utfylling'!H152," ") -> 
A78: ='Sjekkliste for utfylling'!A154 -> 77 | B78: =IF('Sjekkliste for utfylling'!G154<>"",1,0) -> 0 | C78: 0 | E78: =IF($C78=1,'Sjekkliste for utfylling'!A154,"") ->  | F78: =IF($C78=1,'Sjekkliste for utfylling'!B154,"") ->  | H78: =IF(C78=1,'Sjekkliste for utfylling'!H154," ") -> 
A79: ='Sjekkliste for utfylling'!A158 -> 78 | B79: =IF('Sjekkliste for utfylling'!G158<>"",1,0) -> 0 | C79: 0 | E79: =IF($C79=1,'Sjekkliste for utfylling'!A158,"") ->  | F79: =IF($C79=1,'Sjekkliste for utfylling'!B158,"") ->  | H79: =IF(C79=1,'Sjekkliste for utfylling'!H158," ") -> 
A80: ='Sjekkliste for utfylling'!A160 -> 79 | B80: =IF('Sjekkliste for utfylling'!G160<>"",1,0) -> 0 | C80: 0 | E80: =IF($C80=1,'Sjekkliste for utfylling'!A160,"") ->  | F80: =IF($C80=1,'Sjekkliste for utfylling'!B160,"") ->  | H80: =IF(C80=1,'Sjekkliste for utfylling'!H160," ") -> 
A81: ='Sjekkliste for utfylling'!A161 -> 80 | B81: =IF('Sjekkliste for utfylling'!G161<>"",1,0) -> 0 | C81: 0 | E81: =IF($C81=1,'Sjekkliste for utfylling'!A161,"") ->  | F81: =IF($C81=1,'Sjekkliste for utfylling'!B161,"") ->  | H81: =IF(C81=1,'Sjekkliste for utfylling'!H161," ") -> 
A82: ='Sjekkliste for utfylling'!A162 -> 81 | B82: =IF('Sjekkliste for utfylling'!G162<>"",1,0) -> 0 | C82: 0 | E82: =IF($C82=1,'Sjekkliste for utfylling'!A162,"") ->  | F82: =IF($C82=1,'Sjekkliste for utfylling'!B162,"") ->  | H82: =IF(C82=1,'Sjekkliste for utfylling'!H162," ") -> 
A83: ='Sjekkliste for utfylling'!A169 -> 82 | B83: =IF('Sjekkliste for utfylling'!G169<>"",1,0) -> 0 | C83: 0 | E83: =IF($C83=1,'Sjekkliste for utfylling'!A169,"") ->  | F83: =IF($C83=1,'Sjekkliste for utfylling'!B169,"") ->  | H83: =IF(C83=1,'Sjekkliste for utfylling'!H169," ") -> 
A84: ='Sjekkliste for utfylling'!A170 -> 83 | B84: =IF('Sjekkliste for utfylling'!G170<>"",1,0) -> 0 | C84: 0 | E84: =IF($C84=1,'Sjekkliste for utfylling'!A170,"") ->  | F84: =IF($C84=1,'Sjekkliste for utfylling'!B170,"") ->  | H84: =IF(C84=1,'Sjekkliste for utfylling'!H170," ") -> 
A85: ='Sjekkliste for utfylling'!A171 -> 84 | B85: =IF('Sjekkliste for utfylling'!G171<>"",1,0) -> 0 | C85: 0 | E85: =IF($C85=1,'Sjekkliste for utfylling'!A171,"") ->  | F85: =IF($C85=1,'Sjekkliste for utfylling'!B171,"") ->  | H85: =IF(C85=1,'Sjekkliste for utfylling'!H171," ") -> 
A86: ='Sjekkliste for utfylling'!A173 -> 85 | B86: =IF('Sjekkliste for utfylling'!G173<>"",1,0) -> 0 | C86: 0 | E86: =IF($C86=1,'Sjekkliste for utfylling'!A173,"") ->  | F86: =IF($C86=1,'Sjekkliste for utfylling'!B173,"") ->  | H86: =IF(C86=1,'Sjekkliste for utfylling'!H173," ") -> 
A87: ='Sjekkliste for utfylling'!A174 -> 86 | B87: =IF('Sjekkliste for utfylling'!G174<>"",1,0) -> 0 | C87: 0 | E87: =IF($C87=1,'Sjekkliste for utfylling'!A174,"") ->  | F87: =IF($C87=1,'Sjekkliste for utfylling'!B174,"") ->  | H87: =IF(C87=1,'Sjekkliste for utfylling'!H174," ") -> 
A88: ='Sjekkliste for utfylling'!A175 -> 87 | B88: =IF('Sjekkliste for utfylling'!G175<>"",1,0) -> 0 | C88: 0 | E88: =IF($C88=1,'Sjekkliste for utfylling'!A175,"") ->  | F88: =IF($C88=1,'Sjekkliste for utfylling'!B175,"") ->  | H88: =IF(C88=1,'Sjekkliste for utfylling'!H175," ") -> 
A89: ='Sjekkliste for utfylling'!A177 -> 88 | B89: =IF('Sjekkliste for utfylling'!G177<>"",1,0) -> 0 | C89: 0 | E89: =IF($C89=1,'Sjekkliste for utfylling'!A177,"") ->  | F89: =IF($C89=1,'Sjekkliste for utfylling'!B177,"") ->  | H89: =IF(C89=1,'Sjekkliste for utfylling'!H177," ") -> 
A90: ='Sjekkliste for utfylling'!A178 -> 89 | B90: =IF('Sjekkliste for utfylling'!G178<>"",1,0) -> 0 | C90: 0 | E90: =IF($C90=1,'Sjekkliste for utfylling'!A178,"") ->  | F90: =IF($C90=1,'Sjekkliste for utfylling'!B178,"") ->  | H90: =IF(C90=1,'Sjekkliste for utfylling'!H178," ") -> 
A91: ='Sjekkliste for utfylling'!A179 -> 90 | B91: =IF('Sjekkliste for utfylling'!G179<>"",1,0) -> 0 | C91: 0 | E91: =IF($C91=1,'Sjekkliste for utfylling'!A179,"") ->  | F91: =IF($C91=1,'Sjekkliste for utfylling'!B179,"") ->  | H91: =IF(C91=1,'Sjekkliste for utfylling'!H179," ") -> 
A92: ='Sjekkliste for utfylling'!A180 -> 91 | B92: =IF('Sjekkliste for utfylling'!G180<>"",1,0) -> 0 | C92: 0 | E92: =IF($C92=1,'Sjekkliste for utfylling'!A180,"") ->  | F92: =IF($C92=1,'Sjekkliste for utfylling'!B180,"") ->  | H92: =IF(C92=1,'Sjekkliste for utfylling'!H180," ") -> 
A93: ='Sjekkliste for utfylling'!A181 -> 92 | B93: =IF('Sjekkliste for utfylling'!G181<>"",1,0) -> 0 | C93: 0 | E93: =IF($C93=1,'Sjekkliste for utfylling'!A181,"") ->  | F93: =IF($C93=1,'Sjekkliste for utfylling'!B181,"") ->  | H93: =IF(C93=1,'Sjekkliste for utfylling'!H181," ") -> 
A94: ='Sjekkliste for utfylling'!A193 -> 93 | B94: =IF('Sjekkliste for utfylling'!G193<>"",1,0) -> 0 | C94: 0 | E94: =IF($C94=1,'Sjekkliste for utfylling'!A193,"") ->  | F94: =IF($C94=1,'Sjekkliste for utfylling'!B193,"") ->  | H94: =IF(C94=1,'Sjekkliste for utfylling'!H193," ") -> 
A95: ='Sjekkliste for utfylling'!A195 -> 94 | B95: =IF('Sjekkliste for utfylling'!G195<>"",1,0) -> 0 | C95: 0 | E95: =IF($C95=1,'Sjekkliste for utfylling'!A195,"") ->  | F95: =IF($C95=1,'Sjekkliste for utfylling'!B195,"") ->  | H95: =IF(C95=1,'Sjekkliste for utfylling'!H195," ") -> 
A96: ='Sjekkliste for utfylling'!A196 -> 95 | B96: =IF('Sjekkliste for utfylling'!G196<>"",1,0) -> 0 | C96: 0 | E96: =IF($C96=1,'Sjekkliste for utfylling'!A196,"") ->  | F96: =IF($C96=1,'Sjekkliste for utfylling'!B196,"") ->  | H96: =IF(C96=1,'Sjekkliste for utfylling'!H196," ") -> 
A97: ='Sjekkliste for utfylling'!A197 -> 96 | B97: =IF('Sjekkliste for utfylling'!G197<>"",1,0) -> 0 | C97: =SUM(B97:B97) -> 0 | E97: =IF($C97=1,'Sjekkliste for utfylling'!A197,"") ->  | F97: =IF($C97=1,'Sjekkliste for utfylling'!B197,"") ->  | H97: =IF(C97=1,'Sjekkliste for utfylling'!H197," ") -> 
A98: ='Sjekkliste for utfylling'!A198 -> 97 | B98: =IF('Sjekkliste for utfylling'!G198<>"",1,0) -> 0 | C98: 0 | E98: =IF($C98=1,'Sjekkliste for utfylling'!A198,"") ->  | F98: =IF($C98=1,'Sjekkliste for utfylling'!B198,"") ->  | H98: =IF(C98=1,'Sjekkliste for utfylling'!H198," ") -> 
A99: ='Sjekkliste for utfylling'!A199 -> 98 | B99: =IF('Sjekkliste for utfylling'!G199<>"",1,0) -> 0 | C99: 0 | E99: =IF($C99=1,'Sjekkliste for utfylling'!A199,"") ->  | F99: =IF($C99=1,'Sjekkliste for utfylling'!B199,"") ->  | H99: =IF(C99=1,'Sjekkliste for utfylling'!H199," ") -> 
A100: ='Sjekkliste for utfylling'!A201 -> 99 | B100: =IF('Sjekkliste for utfylling'!G201<>"",1,0) -> 0 | C100: 0 | E100: =IF($C100=1,'Sjekkliste for utfylling'!A201,"") ->  | F100: =IF($C100=1,'Sjekkliste for utfylling'!B201,"") ->  | H100: =IF(C100=1,'Sjekkliste for utfylling'!H201," ") -> 
A101: ='Sjekkliste for utfylling'!A202 -> 100 | B101: =IF('Sjekkliste for utfylling'!G202<>"",1,0) -> 0 | C101: 0 | E101: =IF($C101=1,'Sjekkliste for utfylling'!A202,"") ->  | F101: =IF($C101=1,'Sjekkliste for utfylling'!B202,"") ->  | H101: =IF(C101=1,'Sjekkliste for utfylling'!H202," ") -> 
A102: ='Sjekkliste for utfylling'!A205 -> 101 | B102: =IF('Sjekkliste for utfylling'!G205<>"",1,0) -> 0 | C102: 0 | E102: =IF($C102=1,'Sjekkliste for utfylling'!A205,"") ->  | F102: =IF($C102=1,'Sjekkliste for utfylling'!B205,"") ->  | H102: =IF(C102=1,'Sjekkliste for utfylling'!H205," ") -> 
A103: ='Sjekkliste for utfylling'!A206 -> 102 | B103: =IF('Sjekkliste for utfylling'!G206<>"",1,0) -> 0 | C103: 0 | E103: =IF($C103=1,'Sjekkliste for utfylling'!A206,"") ->  | F103: =IF($C103=1,'Sjekkliste for utfylling'!B206,"") ->  | H103: =IF(C103=1,'Sjekkliste for utfylling'!H206," ") -> 
A104: ='Sjekkliste for utfylling'!A207 -> 103 | B104: =IF('Sjekkliste for utfylling'!G207<>"",1,0) -> 0 | C104: 0 | E104: =IF($C104=1,'Sjekkliste for utfylling'!A207,"") ->  | F104: =IF($C104=1,'Sjekkliste for utfylling'!B207,"") ->  | H104: =IF(C104=1,'Sjekkliste for utfylling'!H207," ") -> 
A105: ='Sjekkliste for utfylling'!A209 -> 104 | B105: =IF('Sjekkliste for utfylling'!G209<>"",1,0) -> 0 | C105: 0 | E105: =IF($C105=1,'Sjekkliste for utfylling'!A209,"") ->  | F105: =IF($C105=1,'Sjekkliste for utfylling'!B209,"") ->  | H105: =IF(C105=1,'Sjekkliste for utfylling'!H209," ") -> 
A106: ='Sjekkliste for utfylling'!A211 -> 105 | B106: =IF('Sjekkliste for utfylling'!G211<>"",1,0) -> 0 | C106: 0 | E106: =IF($C106=1,'Sjekkliste for utfylling'!A211,"") ->  | F106: =IF($C106=1,'Sjekkliste for utfylling'!B211,"") ->  | H106: =IF(C106=1,'Sjekkliste for utfylling'!H211," ") -> 
A107: ='Sjekkliste for utfylling'!A212 -> 106 | B107: =IF('Sjekkliste for utfylling'!G212<>"",1,0) -> 0 | C107: 0 | E107: =IF($C107=1,'Sjekkliste for utfylling'!A212,"") ->  | F107: =IF($C107=1,'Sjekkliste for utfylling'!B212,"") ->  | H107: =IF(C107=1,'Sjekkliste for utfylling'!H212," ") -> 
A108: ='Sjekkliste for utfylling'!A213 -> 107 | B108: =IF('Sjekkliste for utfylling'!G213<>"",1,0) -> 0 | C108: 0 | E108: =IF($C108=1,'Sjekkliste for utfylling'!A213,"") ->  | F108: =IF($C108=1,'Sjekkliste for utfylling'!B213,"") ->  | H108: =IF(C108=1,'Sjekkliste for utfylling'!H213," ") -> 
A109: ='Sjekkliste for utfylling'!A214 -> 108 | B109: =IF('Sjekkliste for utfylling'!G214<>"",1,0) -> 0 | C109: 0 | E109: =IF($C109=1,'Sjekkliste for utfylling'!A214,"") ->  | F109: =IF($C109=1,'Sjekkliste for utfylling'!B214,"") ->  | H109: =IF(C109=1,'Sjekkliste for utfylling'!H214," ") -> 
A110: ='Sjekkliste for utfylling'!A215 -> 109 | B110: =IF('Sjekkliste for utfylling'!G215<>"",1,0) -> 0 | C110: 0 | E110: =IF($C110=1,'Sjekkliste for utfylling'!A215,"") ->  | F110: =IF($C110=1,'Sjekkliste for utfylling'!B215,"") ->  | H110: =IF(C110=1,'Sjekkliste for utfylling'!H215," ") -> 
A111: ='Sjekkliste for utfylling'!A216 -> 110 | B111: =IF('Sjekkliste for utfylling'!G216<>"",1,0) -> 0 | C111: 0 | E111: =IF($C111=1,'Sjekkliste for utfylling'!A216,"") ->  | F111: =IF($C111=1,'Sjekkliste for utfylling'!B216,"") ->  | H111: =IF(C111=1,'Sjekkliste for utfylling'!H216," ") -> 
A112: ='Sjekkliste for utfylling'!A217 -> 111 | B112: =IF('Sjekkliste for utfylling'!G217<>"",1,0) -> 0 | C112: 0 | E112: =IF($C112=1,'Sjekkliste for utfylling'!A217,"") ->  | F112: =IF($C112=1,'Sjekkliste for utfylling'!B217,"") ->  | H112: =IF(C112=1,'Sjekkliste for utfylling'!H217," ") -> 
A113: ='Sjekkliste for utfylling'!A218 -> 112 | B113: =IF('Sjekkliste for utfylling'!G218<>"",1,0) -> 0 | C113: 0 | E113: =IF($C113=1,'Sjekkliste for utfylling'!A218,"") ->  | F113: =IF($C113=1,'Sjekkliste for utfylling'!B218,"") ->  | H113: =IF(C113=1,'Sjekkliste for utfylling'!H218," ") -> 
A114: ='Sjekkliste for utfylling'!A219 -> 113 | B114: =IF('Sjekkliste for utfylling'!G219<>"",1,0) -> 0 | C114: 0 | E114: =IF($C114=1,'Sjekkliste for utfylling'!A219,"") ->  | F114: =IF($C114=1,'Sjekkliste for utfylling'!B219,"") ->  | H114: =IF(C114=1,'Sjekkliste for utfylling'!H219," ") -> 
A115: ='Sjekkliste for utfylling'!A220 -> 114 | B115: =IF('Sjekkliste for utfylling'!G220<>"",1,0) -> 0 | C115: 0 | E115: =IF($C115=1,'Sjekkliste for utfylling'!A220,"") ->  | F115: =IF($C115=1,'Sjekkliste for utfylling'!B220,"") ->  | H115: =IF(C115=1,'Sjekkliste for utfylling'!H220," ") -> 
A116: ='Sjekkliste for utfylling'!A224 -> 115 | B116: =IF('Sjekkliste for utfylling'!G224<>"",1,0) -> 0 | C116: 0 | E116: =IF($C116=1,'Sjekkliste for utfylling'!A224,"") ->  | F116: =IF($C116=1,'Sjekkliste for utfylling'!B224,"") ->  | H116: =IF(C116=1,'Sjekkliste for utfylling'!H224," ") -> 
A117: ='Sjekkliste for utfylling'!A227 -> 116 | B117: =IF('Sjekkliste for utfylling'!G227<>"",1,0) -> 0 | C117: 0 | E117: =IF($C117=1,'Sjekkliste for utfylling'!A227,"") ->  | F117: =IF($C117=1,'Sjekkliste for utfylling'!B227,"") ->  | H117: =IF(C117=1,'Sjekkliste for utfylling'!H227," ") -> 
A118: ='Sjekkliste for utfylling'!A229 -> 117 | B118: =IF('Sjekkliste for utfylling'!G229<>"",1,0) -> 0 | C118: 0 | E118: =IF($C118=1,'Sjekkliste for utfylling'!A229,"") ->  | F118: =IF($C118=1,'Sjekkliste for utfylling'!B229,"") ->  | H118: =IF(C118=1,'Sjekkliste for utfylling'!H229," ") -> 
A119: ='Sjekkliste for utfylling'!A231 -> 118 | B119: =IF('Sjekkliste for utfylling'!G231<>"",1,0) -> 0 | C119: 0 | E119: =IF($C119=1,'Sjekkliste for utfylling'!A231,"") ->  | F119: =IF($C119=1,'Sjekkliste for utfylling'!B231,"") ->  | H119: =IF(C119=1,'Sjekkliste for utfylling'!H231," ") -> 
A120: ='Sjekkliste for utfylling'!A235 -> 119 | B120: =IF('Sjekkliste for utfylling'!G235<>"",1,0) -> 0 | C120: 0 | E120: =IF($C120=1,'Sjekkliste for utfylling'!A235,"") ->  | F120: =IF($C120=1,'Sjekkliste for utfylling'!B235,"") ->  | H120: =IF(C120=1,'Sjekkliste for utfylling'!H235," ") -> 
A121: ='Sjekkliste for utfylling'!A236 -> 120 | B121: =IF('Sjekkliste for utfylling'!G236<>"",1,0) -> 0 | C121: 0 | E121: =IF($C121=1,'Sjekkliste for utfylling'!A236,"") ->  | F121: =IF($C121=1,'Sjekkliste for utfylling'!B236,"") ->  | H121: =IF(C121=1,'Sjekkliste for utfylling'!H236," ") -> 
A122: ='Sjekkliste for utfylling'!A237 -> 121 | B122: =IF('Sjekkliste for utfylling'!G237<>"",1,0) -> 0 | C122: 0 | E122: =IF($C122=1,'Sjekkliste for utfylling'!A237,"") ->  | F122: =IF($C122=1,'Sjekkliste for utfylling'!B237,"") ->  | H122: =IF(C122=1,'Sjekkliste for utfylling'!H237," ") -> 
A123: ='Sjekkliste for utfylling'!A238 -> 122 | B123: =IF('Sjekkliste for utfylling'!G238<>"",1,0) -> 0 | C123: 0 | E123: =IF($C123=1,'Sjekkliste for utfylling'!A238,"") ->  | F123: =IF($C123=1,'Sjekkliste for utfylling'!B238,"") ->  | H123: =IF(C123=1,'Sjekkliste for utfylling'!H238," ") -> 
A124: ='Sjekkliste for utfylling'!A239 -> 123 | B124: =IF('Sjekkliste for utfylling'!G239<>"",1,0) -> 0 | C124: 0 | E124: =IF($C124=1,'Sjekkliste for utfylling'!A239,"") ->  | F124: =IF($C124=1,'Sjekkliste for utfylling'!B239,"") ->  | H124: =IF(C124=1,'Sjekkliste for utfylling'!H239," ") -> 
A125: ='Sjekkliste for utfylling'!A243 -> 124 | B125: =IF('Sjekkliste for utfylling'!G243<>"",1,0) -> 0 | C125: 0 | E125: =IF($C125=1,'Sjekkliste for utfylling'!A243,"") ->  | F125: =IF($C125=1,'Sjekkliste for utfylling'!B243,"") ->  | H125: =IF(C125=1,'Sjekkliste for utfylling'!H243," ") -> 
A126: ='Sjekkliste for utfylling'!A246 -> 125 | B126: =IF('Sjekkliste for utfylling'!G246<>"",1,0) -> 0 | C126: 0 | E126: =IF($C126=1,'Sjekkliste for utfylling'!A246,"") ->  | F126: =IF($C126=1,'Sjekkliste for utfylling'!B246,"") ->  | H126: =IF(C126=1,'Sjekkliste for utfylling'!H246," ") -> 
A127: ='Sjekkliste for utfylling'!A247 -> 126 | B127: =IF('Sjekkliste for utfylling'!G247<>"",1,0) -> 0 | C127: 0 | E127: =IF($C127=1,'Sjekkliste for utfylling'!A247,"") ->  | F127: =IF($C127=1,'Sjekkliste for utfylling'!B247,"") ->  | H127: =IF(C127=1,'Sjekkliste for utfylling'!H247," ") -> 
A128: ='Sjekkliste for utfylling'!A248 -> 127 | B128: =IF('Sjekkliste for utfylling'!G248<>"",1,0) -> 0 | C128: 0 | E128: =IF($C128=1,'Sjekkliste for utfylling'!A248,"") ->  | F128: =IF($C128=1,'Sjekkliste for utfylling'!B248,"") ->  | H128: =IF(C128=1,'Sjekkliste for utfylling'!H248," ") -> 
A129: ='Sjekkliste for utfylling'!A249 -> 128 | B129: =IF('Sjekkliste for utfylling'!G249<>"",1,0) -> 0 | C129: =SUM(B129:B129) -> 0 | E129: =IF($C129=1,'Sjekkliste for utfylling'!A249,"") ->  | F129: =IF($C129=1,'Sjekkliste for utfylling'!B249,"") ->  | H129: =IF(C129=1,'Sjekkliste for utfylling'!H249," ") -> 
A130: ='Sjekkliste for utfylling'!A250 -> 129 | B130: =IF('Sjekkliste for utfylling'!G250<>"",1,0) -> 0 | C130: 0 | E130: =IF($C130=1,'Sjekkliste for utfylling'!A250,"") ->  | F130: =IF($C130=1,'Sjekkliste for utfylling'!B250,"") ->  | H130: =IF(C130=1,'Sjekkliste for utfylling'!H250," ") -> 
A131: ='Sjekkliste for utfylling'!A251 -> 130 | B131: =IF('Sjekkliste for utfylling'!G251<>"",1,0) -> 0 | C131: 0 | E131: =IF($C131=1,'Sjekkliste for utfylling'!A251,"") ->  | F131: =IF($C131=1,'Sjekkliste for utfylling'!B251,"") ->  | H131: =IF(C131=1,'Sjekkliste for utfylling'!H251," ") -> 
A132: ='Sjekkliste for utfylling'!A254 -> 131 | B132: =IF('Sjekkliste for utfylling'!G254<>"",1,0) -> 0 | C132: 0 | E132: =IF($C132=1,'Sjekkliste for utfylling'!A254,"") ->  | F132: =IF($C132=1,'Sjekkliste for utfylling'!B254,"") ->  | H132: =IF(C132=1,'Sjekkliste for utfylling'!H254," ") -> 
